Organisation Code,Organisation Label,Effective Date,Organisational Unit,Service Division Label,Category Internal Name,Purpose,Detailed Expenditure Code,Payment Date,Transaction Number,Irrecoverable VAT Amount,Amount,Capital Or Revenue,Benificiary Name,Procurement Card
Http://opendatacommunities.org/id/metropolitan-district-council/leeds,Leeds City Council,31/07/2016,Citizens And Communities,Communities  ,Supplies and Services,'Well Being' Large Grants Projects,230,17-Jun-2016,1607-00001,0.00,80.00,R,A & C Audio Visual Ltd,Yes
Http://opendatacommunities.org/id/metropolitan-district-council/leeds,Leeds City Council,31/07/2016,Citizens and Communities,Elections  Licensing and Registration,Income,Admissions  Booking Fees & Ticket Sales,933,14-Jul-2016,1607-00002,0.00,132.50,R,A & C Mcnaught,No
Http://opendatacommunities.org/id/metropolitan-district-council/leeds,Leeds City Council,31/07/2016,Environment & Housing,Leeds Building Services,Supplies and Services,Operational Materials,205,01-Jul-2016,1607-00003,0.00,170.39,R,A Andrews & Sons (Marbles & Tiles),No
Http://opendatacommunities.org/id/metropolitan-district-council/leeds,Leeds City Council,31/07/2016,Environment & Housing,Leeds Building Services,Supplies and Services,Operational Materials,205,04-Jul-2016,1607-00004,0.00,50.11,R,A Andrews & Sons (Marbles & Tiles),No
Http://opendatacommunities.org/id/metropolitan-district-council/leeds,Leeds City Council,31/07/2016,Environment & Housing,Leeds Building Services,Supplies and Services,Operational Materials,205,04-Jul-2016,1607-00005,0.00,-0.17,R,A Andrews & Sons (Marbles & Tiles),No
Http://opendatacommunities.org/id/metropolitan-district-council/leeds,Leeds City Council,31/07/2016,Environment & Housing,Leeds Building Services,Supplies and Services,Operational Materials,205,06-Jul-2016,1607-00006,0.00,11.00,R,A Andrews & Sons (Marbles & Tiles),No
Http://opendatacommunities.org/id/metropolitan-district-council/leeds,Leeds City Council,31/07/2016,Environment & Housing,Leeds Building Services,Supplies and Services,Operational Materials,205,22-Jul-2016,1607-00007,0.00,27.20,R,A Andrews & Sons (Marbles & Tiles),No
Http://opendatacommunities.org/id/metropolitan-district-council/leeds,Leeds City Council,31/07/2016,City Development,Libraries  Arts & Heritage,Supplies and Services,Other Hired And Contracted Services,265,27-Jul-2016,1607-00008,0.00,300.00,R,A B Jones,No
Http://opendatacommunities.org/id/metropolitan-district-council/leeds,Leeds City Council,31/07/2016,Childrens Services,Safeguarding Targeted & Specialist,Third Party Payments,Allowances,546,14-Jul-2016,1607-00009,0.00,500.00,R,REDACTED PERSONAL DATA,No
Http://opendatacommunities.org/id/metropolitan-district-council/leeds,Leeds City Council,31/07/2016,Childrens Services,Safeguarding Targeted & Specialist,Third Party Payments,Allowances,546,28-Jul-2016,1607-00010,0.00,104.50,R,REDACTED PERSONAL DATA,No
Http://opendatacommunities.org/id/metropolitan-district-council/leeds,Leeds City Council,31/07/2016,City Development,Libraries  Arts & Heritage,Supplies and Services,Operational Materials,205,12-Jul-2016,1607-00011,0.00,325.34,R,A C Entertainment Technologies Ltd,No
Http://opendatacommunities.org/id/metropolitan-district-council/leeds,Leeds City Council,31/07/2016,City Development,Libraries  Arts & Heritage,Supplies and Services,Office Furniture & Equipment,201,15-Jul-2016,1607-00012,0.00,273.13,R,A C Entertainment Technologies Ltd,No
Http://opendatacommunities.org/id/metropolitan-district-council/leeds,Leeds City Council,31/07/2016,City Development,Libraries  Arts & Heritage,Supplies and Services,Office Consumables,210,15-Jul-2016,1607-00013,0.00,14.00,R,A C Entertainment Technologies Ltd,No
Http://opendatacommunities.org/id/metropolitan-district-council/leeds,Leeds City Council,31/07/2016,City Development,Libraries  Arts & Heritage,Supplies and Services,Operational Materials,205,15-Jul-2016,1607-00014,0.00,15.26,R,A C Entertainment Technologies Ltd,No
Http://opendatacommunities.org/id/metropolitan-district-council/leeds,Leeds City Council,31/07/2016,City Development,Libraries  Arts & Heritage,Supplies and Services,Operational Materials,205,15-Jul-2016,1607-00015,0.00,139.39,R,A C Entertainment Technologies Ltd,No
Http://opendatacommunities.org/id/metropolitan-district-council/leeds,Leeds City Council,31/07/2016,City Development,Libraries  Arts & Heritage,Supplies and Services,Operational Materials,205,20-Jul-2016,1607-00016,0.00,250.31,R,A C Entertainment Technologies Ltd,No
Http://opendatacommunities.org/id/metropolitan-district-council/leeds,Leeds City Council,31/07/2016,City Development,Libraries  Arts & Heritage,Supplies and Services,Operational Materials,205,20-Jul-2016,1607-00017,0.00,39.58,R,A C Entertainment Technologies Ltd,No
Http://opendatacommunities.org/id/metropolitan-district-council/leeds,Leeds City Council,31/07/2016,Childrens Services,Learning Skills & Universal,Third Party Payments,Services Rendered By Other Organisations,511,11-Jul-2016,1607-00018,0.00,189.15,R,A Clarkson,No
Http://opendatacommunities.org/id/metropolitan-district-council/leeds,Leeds City Council,31/07/2016,Environment & Housing,Parks and Countryside,Supplies and Services,Bought In Professional Services,277,08-Jul-2016,1607-00019,0.00,2809.63,R,REDACTED COMMERCIAL CONFIDENTIALITY,No
Http://opendatacommunities.org/id/metropolitan-district-council/leeds,Leeds City Council,31/07/2016,Environment & Housing,Parks and Countryside,Supplies and Services,Bought In Professional Services,277,13-Jul-2016,1607-00020,0.00,4477.29,R,REDACTED COMMERCIAL CONFIDENTIALITY,No
Http://opendatacommunities.org/id/metropolitan-district-council/leeds,Leeds City Council,31/07/2016,Environment & Housing,Parks and Countryside,Supplies and Services,Bought In Professional Services,277,28-Jul-2016,1607-00021,0.00,2456.50,R,REDACTED COMMERCIAL CONFIDENTIALITY,No
Http://opendatacommunities.org/id/metropolitan-district-council/leeds,Leeds City Council,31/07/2016,Childrens Services,Learning Skills & Universal,Third Party Payments,Services Rendered By Voluntary Sector,505,11-Jul-2016,1607-00022,0.00,1196.01,R,A E Speight,No
Http://opendatacommunities.org/id/metropolitan-district-council/leeds,Leeds City Council,31/07/2016,Childrens Services,Learning Skills & Universal,Third Party Payments,Services Rendered By Voluntary Sector,505,18-Jul-2016,1607-00023,0.00,825.21,R,A E Speight,No
Http://opendatacommunities.org/id/metropolitan-district-council/leeds,Leeds City Council,31/07/2016,Childrens Services,Learning Skills & Universal,Third Party Payments,Services Rendered By Voluntary Sector,505,18-Jul-2016,1607-00024,0.00,4046.70,R,A E Speight,No
Http://opendatacommunities.org/id/metropolitan-district-council/leeds,Leeds City Council,31/07/2016,Childrens Services,Learning Skills & Universal,Third Party Payments,Services Rendered By Other Organisations,511,18-Jul-2016,1607-00025,0.00,108.68,R,A Foley,No
Http://opendatacommunities.org/id/metropolitan-district-council/leeds,Leeds City Council,31/07/2016,Childrens Services,Safeguarding Targeted & Specialist,Supplies and Services,General Amenity For Clients/Residents,285,07-Jul-2016,1607-00026,0.00,60.00,R,REDACTED PERSONAL DATA,No
Http://opendatacommunities.org/id/metropolitan-district-council/leeds,Leeds City Council,31/07/2016,Childrens Services,Safeguarding Targeted & Specialist,Transport,Public Transport Expenses,310,07-Jul-2016,1607-00027,0.00,25.20,R,REDACTED PERSONAL DATA,No
Http://opendatacommunities.org/id/metropolitan-district-council/leeds,Leeds City Council,31/07/2016,Childrens Services,Learning Skills & Universal,Third Party Payments,Services Rendered By Other Organisations,511,11-Jul-2016,1607-00028,0.00,378.30,R,A Green,No
Http://opendatacommunities.org/id/metropolitan-district-council/leeds,Leeds City Council,31/07/2016,Childrens Services,Learning Skills & Universal,Third Party Payments,Services Rendered By Other Organisations,511,18-Jul-2016,1607-00029,0.00,296.40,R,A Green,No
Http://opendatacommunities.org/id/metropolitan-district-council/leeds,Leeds City Council,31/07/2016,Childrens Services,Learning Skills & Universal,Third Party Payments,Services Rendered By Other Organisations,511,18-Jul-2016,1607-00030,0.00,207.48,R,A Hayes,No
Http://opendatacommunities.org/id/metropolitan-district-council/leeds,Leeds City Council,31/07/2016,Childrens Services,Learning Skills & Universal,Third Party Payments,Services Rendered By Other Organisations,511,18-Jul-2016,1607-00031,0.00,296.40,R,A Hodgson,No
Http://opendatacommunities.org/id/metropolitan-district-council/leeds,Leeds City Council,31/07/2016,City Development,Libraries  Arts & Heritage,Supplies and Services,Other Hired And Contracted Services,265,08-Jul-2016,1607-00032,0.00,1830.00,R,REDACTED COMMERCIAL CONFIDENTIALITY,No
Http://opendatacommunities.org/id/metropolitan-district-council/leeds,Leeds City Council,31/07/2016,Environment & Housing,Leeds Building Services,Supplies and Services,Operational Materials,205,01-Jul-2016,1607-00033,0.00,944.04,R,A J H  Pump Supply & Repair Ltd,No
Http://opendatacommunities.org/id/metropolitan-district-council/leeds,Leeds City Council,31/07/2016,Environment & Housing,Leeds Building Services,Supplies and Services,Operational Materials,205,01-Jul-2016,1607-00034,0.00,30.02,R,A J H  Pump Supply & Repair Ltd,No
Http://opendatacommunities.org/id/metropolitan-district-council/leeds,Leeds City Council,31/07/2016,Environment & Housing,Leeds Building Services,Supplies and Services,Operational Materials,205,01-Jul-2016,1607-00035,0.00,604.50,R,A J H  Pump Supply & Repair Ltd,No
Http://opendatacommunities.org/id/metropolitan-district-council/leeds,Leeds City Council,31/07/2016,Environment & Housing,Leeds Building Services,Supplies and Services,Operational Materials,205,01-Jul-2016,1607-00036,0.00,4.00,R,A J H  Pump Supply & Repair Ltd,No
Http://opendatacommunities.org/id/metropolitan-district-council/leeds,Leeds City Council,31/07/2016,Environment & Housing,Leeds Building Services,Supplies and Services,Operational Materials,205,01-Jul-2016,1607-00037,0.00,37.90,R,A J H  Pump Supply & Repair Ltd,No
Http://opendatacommunities.org/id/metropolitan-district-council/leeds,Leeds City Council,31/07/2016,Environment & Housing,Leeds Building Services,Supplies and Services,Operational Materials,205,01-Jul-2016,1607-00038,0.00,7.00,R,A J H  Pump Supply & Repair Ltd,No
Http://opendatacommunities.org/id/metropolitan-district-council/leeds,Leeds City Council,31/07/2016,Environment & Housing,Leeds Building Services,Supplies and Services,Operational Materials,205,01-Jul-2016,1607-00039,0.00,115.00,R,A J H  Pump Supply & Repair Ltd,No
Http://opendatacommunities.org/id/metropolitan-district-council/leeds,Leeds City Council,31/07/2016,Environment & Housing,Leeds Building Services,Supplies and Services,Operational Materials,205,01-Jul-2016,1607-00040,0.00,19.83,R,A J H  Pump Supply & Repair Ltd,No
Http://opendatacommunities.org/id/metropolitan-district-council/leeds,Leeds City Council,31/07/2016,Environment & Housing,Leeds Building Services,Supplies and Services,Operational Materials,205,01-Jul-2016,1607-00041,0.00,146.41,R,A J H  Pump Supply & Repair Ltd,No
Http://opendatacommunities.org/id/metropolitan-district-council/leeds,Leeds City Council,31/07/2016,Environment & Housing,Leeds Building Services,Supplies and Services,Operational Materials,205,01-Jul-2016,1607-00042,0.00,263.62,R,A J H  Pump Supply & Repair Ltd,No
Http://opendatacommunities.org/id/metropolitan-district-council/leeds,Leeds City Council,31/07/2016,Environment & Housing,Leeds Building Services,Supplies and Services,Operational Materials,205,01-Jul-2016,1607-00043,0.00,650.00,R,A J H  Pump Supply & Repair Ltd,No
Http://opendatacommunities.org/id/metropolitan-district-council/leeds,Leeds City Council,31/07/2016,Environment & Housing,Leeds Building Services,Supplies and Services,Operational Materials,205,01-Jul-2016,1607-00044,0.00,109.00,R,A J H  Pump Supply & Repair Ltd,No
Http://opendatacommunities.org/id/metropolitan-district-council/leeds,Leeds City Council,31/07/2016,Environment & Housing,Leeds Building Services,Supplies and Services,Operational Materials,205,01-Jul-2016,1607-00045,0.00,221.50,R,A J H  Pump Supply & Repair Ltd,No
Http://opendatacommunities.org/id/metropolitan-district-council/leeds,Leeds City Council,31/07/2016,Environment & Housing,Leeds Building Services,Supplies and Services,Operational Materials,205,01-Jul-2016,1607-00046,0.00,390.00,R,A J H  Pump Supply & Repair Ltd,No
Http://opendatacommunities.org/id/metropolitan-district-council/leeds,Leeds City Council,31/07/2016,Environment & Housing,Leeds Building Services,Supplies and Services,Operational Materials,205,01-Jul-2016,1607-00047,0.00,297.67,R,A J H  Pump Supply & Repair Ltd,No
Http://opendatacommunities.org/id/metropolitan-district-council/leeds,Leeds City Council,31/07/2016,Environment & Housing,Leeds Building Services,Supplies and Services,Operational Materials,205,01-Jul-2016,1607-00048,0.00,16.20,R,A J H  Pump Supply & Repair Ltd,No
Http://opendatacommunities.org/id/metropolitan-district-council/leeds,Leeds City Council,31/07/2016,Environment & Housing,Leeds Building Services,Supplies and Services,Operational Materials,205,01-Jul-2016,1607-00049,0.00,39.50,R,A J H  Pump Supply & Repair Ltd,No
Http://opendatacommunities.org/id/metropolitan-district-council/leeds,Leeds City Council,31/07/2016,Environment & Housing,Leeds Building Services,Supplies and Services,Operational Materials,205,01-Jul-2016,1607-00050,0.00,55.40,R,A J H  Pump Supply & Repair Ltd,No
Http://opendatacommunities.org/id/metropolitan-district-council/leeds,Leeds City Council,31/07/2016,Environment & Housing,Leeds Building Services,Supplies and Services,Operational Materials,205,01-Jul-2016,1607-00051,0.00,114.62,R,A J H  Pump Supply & Repair Ltd,No
Http://opendatacommunities.org/id/metropolitan-district-council/leeds,Leeds City Council,31/07/2016,Environment & Housing,Leeds Building Services,Supplies and Services,Operational Materials,205,01-Jul-2016,1607-00052,0.00,124.50,R,A J H  Pump Supply & Repair Ltd,No
Http://opendatacommunities.org/id/metropolitan-district-council/leeds,Leeds City Council,31/07/2016,Environment & Housing,Leeds Building Services,Supplies and Services,Operational Materials,205,01-Jul-2016,1607-00053,0.00,239.23,R,A J H  Pump Supply & Repair Ltd,No
Http://opendatacommunities.org/id/metropolitan-district-council/leeds,Leeds City Council,31/07/2016,Environment & Housing,Leeds Building Services,Supplies and Services,Operational Materials,205,01-Jul-2016,1607-00054,0.00,41.90,R,A J H  Pump Supply & Repair Ltd,No
Http://opendatacommunities.org/id/metropolitan-district-council/leeds,Leeds City Council,31/07/2016,Environment & Housing,Leeds Building Services,Supplies and Services,Operational Materials,205,01-Jul-2016,1607-00055,0.00,218.00,R,A J H  Pump Supply & Repair Ltd,No
Http://opendatacommunities.org/id/metropolitan-district-council/leeds,Leeds City Council,31/07/2016,Environment & Housing,Leeds Building Services,Supplies and Services,Other Hired And Contracted Services,265,06-Jul-2016,1607-00056,0.00,189.00,R,A J H  Pump Supply & Repair Ltd,No
Http://opendatacommunities.org/id/metropolitan-district-council/leeds,Leeds City Council,31/07/2016,Environment & Housing,Leeds Building Services,Supplies and Services,Operational Materials,205,06-Jul-2016,1607-00057,0.00,44.20,R,A J H  Pump Supply & Repair Ltd,No
Http://opendatacommunities.org/id/metropolitan-district-council/leeds,Leeds City Council,31/07/2016,Environment & Housing,Leeds Building Services,Supplies and Services,Operational Materials,205,08-Jul-2016,1607-00058,0.00,1718.00,R,A J H  Pump Supply & Repair Ltd,No
Http://opendatacommunities.org/id/metropolitan-district-council/leeds,Leeds City Council,31/07/2016,Environment & Housing,Leeds Building Services,Supplies and Services,Operational Materials,205,15-Jul-2016,1607-00059,0.00,582.00,R,A J H  Pump Supply & Repair Ltd,No
Http://opendatacommunities.org/id/metropolitan-district-council/leeds,Leeds City Council,31/07/2016,Environment & Housing,Leeds Building Services,Supplies and Services,Operational Materials,205,15-Jul-2016,1607-00060,0.00,31.80,R,A J H  Pump Supply & Repair Ltd,No
Http://opendatacommunities.org/id/metropolitan-district-council/leeds,Leeds City Council,31/07/2016,Environment & Housing,Leeds Building Services,Supplies and Services,Operational Materials,205,15-Jul-2016,1607-00061,0.00,5.50,R,A J H  Pump Supply & Repair Ltd,No
Http://opendatacommunities.org/id/metropolitan-district-council/leeds,Leeds City Council,31/07/2016,Environment & Housing,Leeds Building Services,Supplies and Services,Operational Materials,205,15-Jul-2016,1607-00062,0.00,73.99,R,A J H  Pump Supply & Repair Ltd,No
Http://opendatacommunities.org/id/metropolitan-district-council/leeds,Leeds City Council,31/07/2016,Environment & Housing,Leeds Building Services,Supplies and Services,Operational Materials,205,15-Jul-2016,1607-00063,0.00,66.80,R,A J H  Pump Supply & Repair Ltd,No
Http://opendatacommunities.org/id/metropolitan-district-council/leeds,Leeds City Council,31/07/2016,Environment & Housing,Leeds Building Services,Supplies and Services,Operational Materials,205,15-Jul-2016,1607-00064,0.00,58.10,R,A J H  Pump Supply & Repair Ltd,No
Http://opendatacommunities.org/id/metropolitan-district-council/leeds,Leeds City Council,31/07/2016,Environment & Housing,Leeds Building Services,Supplies and Services,Operational Materials,205,15-Jul-2016,1607-00065,0.00,249.20,R,A J H  Pump Supply & Repair Ltd,No
Http://opendatacommunities.org/id/metropolitan-district-council/leeds,Leeds City Council,31/07/2016,Environment & Housing,Leeds Building Services,Supplies and Services,Operational Materials,205,15-Jul-2016,1607-00066,0.00,334.50,R,A J H  Pump Supply & Repair Ltd,No
Http://opendatacommunities.org/id/metropolitan-district-council/leeds,Leeds City Council,31/07/2016,Environment & Housing,Leeds Building Services,Supplies and Services,Operational Materials,205,15-Jul-2016,1607-00067,0.00,82.70,R,A J H  Pump Supply & Repair Ltd,No
Http://opendatacommunities.org/id/metropolitan-district-council/leeds,Leeds City Council,31/07/2016,Environment & Housing,Leeds Building Services,Supplies and Services,Operational Materials,205,15-Jul-2016,1607-00068,0.00,95.22,R,A J H  Pump Supply & Repair Ltd,No
Http://opendatacommunities.org/id/metropolitan-district-council/leeds,Leeds City Council,31/07/2016,Environment & Housing,Leeds Building Services,Supplies and Services,Operational Materials,205,15-Jul-2016,1607-00069,0.00,80.65,R,A J H  Pump Supply & Repair Ltd,No
Http://opendatacommunities.org/id/metropolitan-district-council/leeds,Leeds City Council,31/07/2016,Environment & Housing,Leeds Building Services,Supplies and Services,Operational Materials,205,15-Jul-2016,1607-00070,0.00,30.50,R,A J H  Pump Supply & Repair Ltd,No
Http://opendatacommunities.org/id/metropolitan-district-council/leeds,Leeds City Council,31/07/2016,Environment & Housing,Leeds Building Services,Supplies and Services,Operational Materials,205,15-Jul-2016,1607-00071,0.00,117.54,R,A J H  Pump Supply & Repair Ltd,No
Http://opendatacommunities.org/id/metropolitan-district-council/leeds,Leeds City Council,31/07/2016,Environment & Housing,Leeds Building Services,Supplies and Services,Operational Materials,205,15-Jul-2016,1607-00072,0.00,48.00,R,A J H  Pump Supply & Repair Ltd,No
Http://opendatacommunities.org/id/metropolitan-district-council/leeds,Leeds City Council,31/07/2016,Environment & Housing,Leeds Building Services,Supplies and Services,Operational Materials,205,15-Jul-2016,1607-00073,0.00,45.00,R,A J H  Pump Supply & Repair Ltd,No
Http://opendatacommunities.org/id/metropolitan-district-council/leeds,Leeds City Council,31/07/2016,Environment & Housing,Leeds Building Services,Supplies and Services,Operational Materials,205,15-Jul-2016,1607-00074,0.00,71.40,R,A J H  Pump Supply & Repair Ltd,No
Http://opendatacommunities.org/id/metropolitan-district-council/leeds,Leeds City Council,31/07/2016,Environment & Housing,Leeds Building Services,Supplies and Services,Operational Materials,205,15-Jul-2016,1607-00075,0.00,124.00,R,A J H  Pump Supply & Repair Ltd,No
Http://opendatacommunities.org/id/metropolitan-district-council/leeds,Leeds City Council,31/07/2016,Environment & Housing,Leeds Building Services,Supplies and Services,Operational Materials,205,15-Jul-2016,1607-00076,0.00,22.21,R,A J H  Pump Supply & Repair Ltd,No
Http://opendatacommunities.org/id/metropolitan-district-council/leeds,Leeds City Council,31/07/2016,Environment & Housing,Leeds Building Services,Supplies and Services,Operational Materials,205,15-Jul-2016,1607-00077,0.00,82.75,R,A J H  Pump Supply & Repair Ltd,No
Http://opendatacommunities.org/id/metropolitan-district-council/leeds,Leeds City Council,31/07/2016,Environment & Housing,Leeds Building Services,Supplies and Services,Operational Materials,205,15-Jul-2016,1607-00078,0.00,48.59,R,A J H  Pump Supply & Repair Ltd,No
Http://opendatacommunities.org/id/metropolitan-district-council/leeds,Leeds City Council,31/07/2016,Environment & Housing,Leeds Building Services,Supplies and Services,Operational Materials,205,15-Jul-2016,1607-00079,0.00,78.60,R,A J H  Pump Supply & Repair Ltd,No
Http://opendatacommunities.org/id/metropolitan-district-council/leeds,Leeds City Council,31/07/2016,Environment & Housing,Leeds Building Services,Supplies and Services,Operational Materials,205,15-Jul-2016,1607-00080,0.00,1158.95,R,A J H  Pump Supply & Repair Ltd,No
Http://opendatacommunities.org/id/metropolitan-district-council/leeds,Leeds City Council,31/07/2016,Environment & Housing,Leeds Building Services,Supplies and Services,Operational Materials,205,15-Jul-2016,1607-00081,0.00,46.65,R,A J H  Pump Supply & Repair Ltd,No
Http://opendatacommunities.org/id/metropolitan-district-council/leeds,Leeds City Council,31/07/2016,Environment & Housing,Leeds Building Services,Supplies and Services,Operational Materials,205,15-Jul-2016,1607-00082,0.00,61.58,R,A J H  Pump Supply & Repair Ltd,No
Http://opendatacommunities.org/id/metropolitan-district-council/leeds,Leeds City Council,31/07/2016,Environment & Housing,Leeds Building Services,Supplies and Services,Operational Materials,205,15-Jul-2016,1607-00083,0.00,85.00,R,A J H  Pump Supply & Repair Ltd,No
Http://opendatacommunities.org/id/metropolitan-district-council/leeds,Leeds City Council,31/07/2016,Environment & Housing,Leeds Building Services,Supplies and Services,Operational Materials,205,15-Jul-2016,1607-00084,0.00,99.79,R,A J H  Pump Supply & Repair Ltd,No
Http://opendatacommunities.org/id/metropolitan-district-council/leeds,Leeds City Council,31/07/2016,Environment & Housing,Leeds Building Services,Supplies and Services,Operational Materials,205,15-Jul-2016,1607-00085,0.00,10.70,R,A J H  Pump Supply & Repair Ltd,No
Http://opendatacommunities.org/id/metropolitan-district-council/leeds,Leeds City Council,31/07/2016,Environment & Housing,Leeds Building Services,Supplies and Services,Operational Materials,205,22-Jul-2016,1607-00086,0.00,330.00,R,A J H  Pump Supply & Repair Ltd,No
Http://opendatacommunities.org/id/metropolitan-district-council/leeds,Leeds City Council,31/07/2016,Environment & Housing,Leeds Building Services,Supplies and Services,Operational Materials,205,28-Jul-2016,1607-00087,0.00,294.75,R,A J H  Pump Supply & Repair Ltd,No
Http://opendatacommunities.org/id/metropolitan-district-council/leeds,Leeds City Council,31/07/2016,Environment & Housing,Leeds Building Services,Supplies and Services,Operational Materials,205,28-Jul-2016,1607-00088,0.00,10.50,R,A J H  Pump Supply & Repair Ltd,No
Http://opendatacommunities.org/id/metropolitan-district-council/leeds,Leeds City Council,31/07/2016,Environment & Housing,Leeds Building Services,Supplies and Services,Operational Materials,205,29-Jul-2016,1607-00089,0.00,270.00,R,A J H  Pump Supply & Repair Ltd,No
Http://opendatacommunities.org/id/metropolitan-district-council/leeds,Leeds City Council,31/07/2016,Environment & Housing,Leeds Building Services,Supplies and Services,Operational Materials,205,29-Jul-2016,1607-00090,0.00,190.00,R,A J H  Pump Supply & Repair Ltd,No
Http://opendatacommunities.org/id/metropolitan-district-council/leeds,Leeds City Council,31/07/2016,Environment & Housing,Leeds Building Services,Supplies and Services,Operational Materials,205,29-Jul-2016,1607-00091,0.00,143.67,R,A J H  Pump Supply & Repair Ltd,No
Http://opendatacommunities.org/id/metropolitan-district-council/leeds,Leeds City Council,31/07/2016,Environment & Housing,Leeds Building Services,Supplies and Services,Operational Materials,205,29-Jul-2016,1607-00092,0.00,7.75,R,A J H  Pump Supply & Repair Ltd,No
Http://opendatacommunities.org/id/metropolitan-district-council/leeds,Leeds City Council,31/07/2016,Environment & Housing,Leeds Building Services,Supplies and Services,Operational Materials,205,29-Jul-2016,1607-00093,0.00,844.37,R,A J H  Pump Supply & Repair Ltd,No
Http://opendatacommunities.org/id/metropolitan-district-council/leeds,Leeds City Council,31/07/2016,Environment & Housing,Leeds Building Services,Supplies and Services,Operational Materials,205,29-Jul-2016,1607-00094,0.00,305.00,R,A J H  Pump Supply & Repair Ltd,No
Http://opendatacommunities.org/id/metropolitan-district-council/leeds,Leeds City Council,31/07/2016,Environment & Housing,Leeds Building Services,Supplies and Services,Operational Materials,205,29-Jul-2016,1607-00095,0.00,109.00,R,A J H  Pump Supply & Repair Ltd,No
Http://opendatacommunities.org/id/metropolitan-district-council/leeds,Leeds City Council,31/07/2016,Environment & Housing,Leeds Building Services,Supplies and Services,Operational Materials,205,29-Jul-2016,1607-00096,0.00,28.55,R,A J H  Pump Supply & Repair Ltd,No
Http://opendatacommunities.org/id/metropolitan-district-council/leeds,Leeds City Council,31/07/2016,Environment & Housing,Leeds Building Services,Supplies and Services,Operational Materials,205,29-Jul-2016,1607-00097,0.00,446.25,R,A J H  Pump Supply & Repair Ltd,No
Http://opendatacommunities.org/id/metropolitan-district-council/leeds,Leeds City Council,31/07/2016,Environment & Housing,Leeds Building Services,Supplies and Services,Operational Materials,205,29-Jul-2016,1607-00098,0.00,62.95,R,A J H  Pump Supply & Repair Ltd,No
Http://opendatacommunities.org/id/metropolitan-district-council/leeds,Leeds City Council,31/07/2016,Environment & Housing,Leeds Building Services,Supplies and Services,Operational Materials,205,29-Jul-2016,1607-00099,0.00,167.00,R,A J H  Pump Supply & Repair Ltd,No
Http://opendatacommunities.org/id/metropolitan-district-council/leeds,Leeds City Council,31/07/2016,City Development,Libraries  Arts & Heritage,Supplies and Services,Art Galleries Total Stores,003,22-Jul-2016,1607-00100,0.00,550.00,R,A J Promotions,No
Http://opendatacommunities.org/id/metropolitan-district-council/leeds,Leeds City Council,31/07/2016,City Development,Libraries  Arts & Heritage,Supplies and Services,Art Galleries Total Stores,003,27-Jul-2016,1607-00101,0.00,668.97,R,A J Promotions,No
Http://opendatacommunities.org/id/metropolitan-district-council/leeds,Leeds City Council,31/07/2016,Childrens Services,Learning Skills & Universal,Third Party Payments,Services Rendered By Other Organisations,511,18-Jul-2016,1607-00102,0.00,592.80,R,A K Walsh,No
Http://opendatacommunities.org/id/metropolitan-district-council/leeds,Leeds City Council,31/07/2016,Childrens Services,Safeguarding Targeted & Specialist,Transfer Payments,Leaving Care Allowances,634,15-Jul-2016,1607-00103,0.00,50.00,R,REDACTED PERSONAL DATA,No
Http://opendatacommunities.org/id/metropolitan-district-council/leeds,Leeds City Council,31/07/2016,Childrens Services,Learning Skills & Universal,Third Party Payments,Services Rendered By Voluntary Sector,505,06-Jul-2016,1607-00104,0.00,630.00,R,A Little Something Extra Ltd,No
Http://opendatacommunities.org/id/metropolitan-district-council/leeds,Leeds City Council,31/07/2016,Childrens Services,Learning Skills & Universal,Third Party Payments,Services Rendered By Voluntary Sector,505,22-Jul-2016,1607-00105,0.00,480.00,R,A Little Something Extra Ltd,No
Http://opendatacommunities.org/id/metropolitan-district-council/leeds,Leeds City Council,31/07/2016,Childrens Services,Learning Skills & Universal,Third Party Payments,Services Rendered By Voluntary Sector,505,22-Jul-2016,1607-00106,0.00,862.50,R,A Little Something Extra Ltd,No
Http://opendatacommunities.org/id/metropolitan-district-council/leeds,Leeds City Council,31/07/2016,Childrens Services,Learning Skills & Universal,Supplies and Services,Teaching Materials,202,22-Jul-2016,1607-00107,0.00,180.00,R,A Little Something Extra Ltd,No
Http://opendatacommunities.org/id/metropolitan-district-council/leeds,Leeds City Council,31/07/2016,Childrens Services,Learning Skills & Universal,Supplies and Services,Other Hired And Contracted Services,265,22-Jul-2016,1607-00108,0.00,360.00,R,A Little Something Extra Ltd,No
Http://opendatacommunities.org/id/metropolitan-district-council/leeds,Leeds City Council,31/07/2016,Childrens Services,Learning Skills & Universal,Third Party Payments,Services Rendered By Voluntary Sector,505,26-Jul-2016,1607-00109,0.00,877.50,R,A Little Something Extra Ltd,No
Http://opendatacommunities.org/id/metropolitan-district-council/leeds,Leeds City Council,31/07/2016,Childrens Services,Learning Skills & Universal,Third Party Payments,Services Rendered By Other Organisations,511,11-Jul-2016,1607-00110,0.00,85.36,R,A Longbottom,No
Http://opendatacommunities.org/id/metropolitan-district-council/leeds,Leeds City Council,31/07/2016,Citizens and Communities,Customer Access,Supplies and Services,Other Hired And Contracted Services,265,04-Jul-2016,1607-00111,0.00,852.13,R,A Mohammed,No
Http://opendatacommunities.org/id/metropolitan-district-council/leeds,Leeds City Council,31/07/2016,Citizens and Communities,Customer Access,Supplies and Services,Other Hired And Contracted Services,265,04-Jul-2016,1607-00112,0.00,124.25,R,A Namaki,No
Http://opendatacommunities.org/id/metropolitan-district-council/leeds,Leeds City Council,31/07/2016,Environment & Housing,Parks and Countryside,Supplies and Services,Operational Materials,205,14-Jul-2016,1607-00113,0.00,481.00,R,A Newton,No
Http://opendatacommunities.org/id/metropolitan-district-council/leeds,Leeds City Council,31/07/2016,Environment & Housing,Parks and Countryside,Supplies and Services,Other Hired And Contracted Services,265,08-Jul-2016,1607-00114,0.00,1353.60,R,A Nicholls,No
Http://opendatacommunities.org/id/metropolitan-district-council/leeds,Leeds City Council,31/07/2016,Environment & Housing,Statutory Housing,Premises,Other,114,12-Jul-2016,1607-00115,0.00,400.00,R,REDACTED PERSONAL DATA,No
Http://opendatacommunities.org/id/metropolitan-district-council/leeds,Leeds City Council,31/07/2016,City Development,Libraries  Arts & Heritage,Supplies and Services,Books & Audio-Visual Materials,206,27-Jul-2016,1607-00116,0.00,138.08,R,A S Jhagra,No
Http://opendatacommunities.org/id/metropolitan-district-council/leeds,Leeds City Council,31/07/2016,Civic Enterprise Leeds,Business Support Centre,Supplies and Services,Other Hired And Contracted Services,265,06-Jul-2016,1607-00117,0.00,81.25,R,A Star Couriers Ltd,No
Http://opendatacommunities.org/id/metropolitan-district-council/leeds,Leeds City Council,31/07/2016,Childrens Services,Safeguarding Targeted & Specialist,Third Party Payments,Allowances,546,28-Jul-2016,1607-00118,0.00,500.00,R,REDACTED PERSONAL DATA,No
Http://opendatacommunities.org/id/metropolitan-district-council/leeds,Leeds City Council,31/07/2016,Environment & Housing,Waste Management,Supplies and Services,Other Hired And Contracted Services,265,01-Jul-2016,1607-00119,0.00,623.80,R,A T Nerac Ltd,No
Http://opendatacommunities.org/id/metropolitan-district-council/leeds,Leeds City Council,31/07/2016,Childrens Services,Learning Skills & Universal,Third Party Payments,Services Rendered By Other Organisations,511,18-Jul-2016,1607-00120,0.00,141.00,R,A Walding,No
Http://opendatacommunities.org/id/metropolitan-district-council/leeds,Leeds City Council,31/07/2016,Environment & Housing,Waste Management,Capital,Furniture And Equipment,5,04-Jul-2016,1607-00121,0.00,9959.20,C,A&C Weber Uk Ltd,No
Http://opendatacommunities.org/id/metropolitan-district-council/leeds,Leeds City Council,31/07/2016,Strategic Landlord,Property and Contracts,Premises,General Maintenance,104,15-Jul-2016,1607-00122,0.00,1730.00,R,A.T.S.Y,No
Http://opendatacommunities.org/id/metropolitan-district-council/leeds,Leeds City Council,31/07/2016,Strategic Landlord,Housing Management  ,Supplies and Services,Office Furniture & Equipment,201,08-Jun-2016,1607-00123,0.00,49.57,R,A2b Office Technol,Yes
Http://opendatacommunities.org/id/metropolitan-district-council/leeds,Leeds City Council,31/07/2016,Childrens Services,Safeguarding Targeted & Specialist  ,Supplies and Services,Office Consumables,210,16-Jun-2016,1607-00124,0.00,17.50,R,A2b Office Technol,Yes
Http://opendatacommunities.org/id/metropolitan-district-council/leeds,Leeds City Council,31/07/2016,Public Health,Public Health,Third Party Payments,Public Health Commissioned Services,526,13-Jul-2016,1607-00125,0.00,3.00,R,Aaa Healthcare Ltd,No
Http://opendatacommunities.org/id/metropolitan-district-council/leeds,Leeds City Council,31/07/2016,Central & Corporate,Finance,Transport,Public Transport Expenses,310,19-Jul-2016,1607-00126,0.00,68.00,R,Ab Cars (Garforth) Ltd,No
Http://opendatacommunities.org/id/metropolitan-district-council/leeds,Leeds City Council,31/07/2016,Childrens Services,Safeguarding Targeted & Specialist,Support Services,Legal Disbursements,411,01-Jul-2016,1607-00127,0.00,15.59,R,Abacus Express Limited,No
Http://opendatacommunities.org/id/metropolitan-district-council/leeds,Leeds City Council,31/07/2016,Childrens Services,Partnership Development & Leadership,Support Services,Legal Disbursements,411,07-Jul-2016,1607-00128,0.00,15.59,R,Abacus Express Limited,No
Http://opendatacommunities.org/id/metropolitan-district-council/leeds,Leeds City Council,31/07/2016,Childrens Services,Safeguarding Targeted & Specialist,Support Services,Legal Disbursements,411,08-Jul-2016,1607-00129,0.00,31.02,R,Abacus Express Limited,No
Http://opendatacommunities.org/id/metropolitan-district-council/leeds,Leeds City Council,31/07/2016,Childrens Services,Safeguarding Targeted & Specialist,Support Services,Legal Disbursements,411,22-Jul-2016,1607-00130,0.00,26.77,R,Abacus Express Limited,No
Http://opendatacommunities.org/id/metropolitan-district-council/leeds,Leeds City Council,31/07/2016,City Development,Planning & Sustainable Development,Supplies and Services,Other Hired And Contracted Services,265,22-Jul-2016,1607-00131,0.00,15.59,R,Abacus Express Limited,No
Http://opendatacommunities.org/id/metropolitan-district-council/leeds,Leeds City Council,31/07/2016,City Development,Planning & Sustainable Development,Supplies and Services,Other Hired And Contracted Services,265,22-Jul-2016,1607-00132,0.00,15.59,R,Abacus Express Limited,No
Http://opendatacommunities.org/id/metropolitan-district-council/leeds,Leeds City Council,31/07/2016,City Development,Planning & Sustainable Development,Supplies and Services,Other Hired And Contracted Services,265,22-Jul-2016,1607-00133,0.00,15.59,R,Abacus Express Limited,No
Http://opendatacommunities.org/id/metropolitan-district-council/leeds,Leeds City Council,31/07/2016,City Development,Planning & Sustainable Development,Supplies and Services,Other Hired And Contracted Services,265,22-Jul-2016,1607-00134,0.00,15.59,R,Abacus Express Limited,No
Http://opendatacommunities.org/id/metropolitan-district-council/leeds,Leeds City Council,31/07/2016,Adult Social Care,Services For Older People - 65 And Over,Third Party Payments,Nursing Care Dementia,574,27-Jul-2016,1607-00135,0.00,1556.00,R,Abbendon Nursing Home,No
Http://opendatacommunities.org/id/metropolitan-district-council/leeds,Leeds City Council,31/07/2016,City Development,Libraries  Arts & Heritage  ,Supplies and Services,Food & Drink,231,09-Jun-2016,1607-00136,0.00,25.00,R,Abbey House Museum Caf,Yes
Http://opendatacommunities.org/id/metropolitan-district-council/leeds,Leeds City Council,31/07/2016,City Development,Libraries  Arts & Heritage  ,Supplies and Services,Food & Drink,231,22-Jun-2016,1607-00137,0.00,21.83,R,Abbey House Museum Caf,Yes
Http://opendatacommunities.org/id/metropolitan-district-council/leeds,Leeds City Council,31/07/2016,Environment & Housing,Environmental Action (South),Supplies and Services,Bought In Professional Services,277,25-Jul-2016,1607-00138,0.00,43.60,R,Abbey House Veterinary Hospital,No
Http://opendatacommunities.org/id/metropolitan-district-council/leeds,Leeds City Council,31/07/2016,Adult Social Care,Services For Older People - 65 And Over,Third Party Payments,Home Care,568,01-Jul-2016,1607-00139,0.00,1353.00,R,Abbeyfield The Dales Limited,No
Http://opendatacommunities.org/id/metropolitan-district-council/leeds,Leeds City Council,31/07/2016,Childrens Services,Learning Skills & Universal,Third Party Payments,Services Rendered By Other Organisations,511,11-Jul-2016,1607-00140,0.00,1891.50,R,Abc Daycare And Ozone Out Of School,No
Http://opendatacommunities.org/id/metropolitan-district-council/leeds,Leeds City Council,31/07/2016,Childrens Services,Learning Skills & Universal,Third Party Payments,Services Rendered By Other Organisations,511,18-Jul-2016,1607-00141,0.00,516.75,R,Abc Daycare And Ozone Out Of School,No
Http://opendatacommunities.org/id/metropolitan-district-council/leeds,Leeds City Council,31/07/2016,Childrens Services,Learning Skills & Universal,Third Party Payments,Services Rendered By Other Organisations,511,18-Jul-2016,1607-00142,0.00,2143.20,R,Abc Daycare And Ozone Out Of School,No
Http://opendatacommunities.org/id/metropolitan-district-council/leeds,Leeds City Council,31/07/2016,Childrens Services,Learning Skills & Universal,Third Party Payments,Services Rendered By Other Organisations,511,11-Jul-2016,1607-00143,0.00,1324.05,R,Abc Nursery At Lufc,No
Http://opendatacommunities.org/id/metropolitan-district-council/leeds,Leeds City Council,31/07/2016,Childrens Services,Learning Skills & Universal,Third Party Payments,Services Rendered By Other Organisations,511,18-Jul-2016,1607-00144,0.00,206.70,R,Abc Nursery At Lufc,No
Http://opendatacommunities.org/id/metropolitan-district-council/leeds,Leeds City Council,31/07/2016,Childrens Services,Learning Skills & Universal,Third Party Payments,Services Rendered By Other Organisations,511,18-Jul-2016,1607-00145,0.00,3556.80,R,Abc Nursery At Lufc,No
Http://opendatacommunities.org/id/metropolitan-district-council/leeds,Leeds City Council,31/07/2016,Childrens Services,Learning Skills & Universal,Third Party Payments,Services Rendered By Other Organisations,511,11-Jul-2016,1607-00146,0.00,1144.60,R,Abc@D'S Childcare Services,No
Http://opendatacommunities.org/id/metropolitan-district-council/leeds,Leeds City Council,31/07/2016,Childrens Services,Learning Skills & Universal,Third Party Payments,Services Rendered By Other Organisations,511,18-Jul-2016,1607-00147,0.00,159.60,R,Abc@D'S Childcare Services,No
Http://opendatacommunities.org/id/metropolitan-district-council/leeds,Leeds City Council,31/07/2016,Environment & Housing,Parks And Countryside  ,Supplies and Services,Operational Materials,205,18-Jun-2016,1607-00148,0.00,9.58,R,Aberconwy Nursery,Yes
Http://opendatacommunities.org/id/metropolitan-district-council/leeds,Leeds City Council,31/07/2016,Adult Social Care,Services For Older People - 65 And Over,Third Party Payments,Nursing Home,570,27-Jul-2016,1607-00149,0.00,26063.16,R,Aberford Hall,No
Http://opendatacommunities.org/id/metropolitan-district-council/leeds,Leeds City Council,31/07/2016,Adult Social Care,Services For Older People - 65 And Over,Third Party Payments,Nursing Care Dementia,574,27-Jul-2016,1607-00150,0.00,1501.20,R,Aberford Hall,No
Http://opendatacommunities.org/id/metropolitan-district-council/leeds,Leeds City Council,31/07/2016,Adult Social Care,Services For Older People - 65 And Over,Third Party Payments,Residential,580,27-Jul-2016,1607-00151,0.00,6365.64,R,Aberford Hall,No
Http://opendatacommunities.org/id/metropolitan-district-council/leeds,Leeds City Council,31/07/2016,Citizens and Communities,Elections  Licensing and Registration,Premises,Rents,141,07-Jul-2016,1607-00152,0.00,400.00,R,Aberford Village Hall,No
Http://opendatacommunities.org/id/metropolitan-district-council/leeds,Leeds City Council,31/07/2016,Environment & Housing,Leeds Building Services,Supplies and Services,Operational Materials,205,14-Jul-2016,1607-00153,0.00,12.00,R,Abi Garage Doors Ltd,No
Http://opendatacommunities.org/id/metropolitan-district-council/leeds,Leeds City Council,31/07/2016,Childrens Services,Safeguarding Targeted & Specialist,Supplies and Services,Telephones,213,19-Jul-2016,1607-00154,0.00,5.20,R,REDACTED PERSONAL DATA,No
Http://opendatacommunities.org/id/metropolitan-district-council/leeds,Leeds City Council,31/07/2016,Childrens Services,Safeguarding Targeted & Specialist,Supplies and Services,Food & Drink,231,19-Jul-2016,1607-00155,0.00,24.05,R,REDACTED PERSONAL DATA,No
Http://opendatacommunities.org/id/metropolitan-district-council/leeds,Leeds City Council,31/07/2016,Childrens Services,Safeguarding Targeted & Specialist,Transport,Car & Motorcycle Allowances,311,19-Jul-2016,1607-00156,0.00,9.00,R,REDACTED PERSONAL DATA,No
Http://opendatacommunities.org/id/metropolitan-district-council/leeds,Leeds City Council,31/07/2016,City Development,Economic Development,Supplies and Services,Advertising,211,14-Jul-2016,1607-00157,0.00,1200.00,R,Absolute Media Ltd,No
Http://opendatacommunities.org/id/metropolitan-district-council/leeds,Leeds City Council,31/07/2016,City Development,Economic Development,Supplies and Services,Publication And Promotion,267,29-Jul-2016,1607-00158,0.00,282.50,R,Absolute Media Ltd,No
Http://opendatacommunities.org/id/metropolitan-district-council/leeds,Leeds City Council,31/07/2016,City Development,Libraries  Arts & Heritage,Supplies and Services,Operational Materials,205,18-Jul-2016,1607-00159,0.00,964.74,R,Absolute Museum & Gallery Products Ltd,No
Http://opendatacommunities.org/id/metropolitan-district-council/leeds,Leeds City Council,31/07/2016,Childrens Services,Safeguarding Targeted & Specialist  ,Supplies and Services,Food & Drink,231,01-Jun-2016,1607-00160,0.00,12.88,R,Abu Bakar Ltd,Yes
Http://opendatacommunities.org/id/metropolitan-district-council/leeds,Leeds City Council,31/07/2016,Childrens Services,Safeguarding Targeted & Specialist,Employees,Agency Staff,8,04-Jul-2016,1607-00161,0.00,2003.90,R,Academic Appointments Ltd,No
Http://opendatacommunities.org/id/metropolitan-district-council/leeds,Leeds City Council,31/07/2016,Childrens Services,Safeguarding Targeted & Specialist,Employees,Agency Staff,8,05-Jul-2016,1607-00162,0.00,2003.90,R,Academic Appointments Ltd,No
Http://opendatacommunities.org/id/metropolitan-district-council/leeds,Leeds City Council,31/07/2016,Childrens Services,Safeguarding Targeted & Specialist,Employees,Agency Staff,8,07-Jul-2016,1607-00163,0.00,-18.05,R,Academic Appointments Ltd,No
Http://opendatacommunities.org/id/metropolitan-district-council/leeds,Leeds City Council,31/07/2016,Childrens Services,Learning Skills & Universal,Employees,Basic Pay,1,08-Jul-2016,1607-00164,0.00,3814.00,R,Academic Appointments Ltd,No
Http://opendatacommunities.org/id/metropolitan-district-council/leeds,Leeds City Council,31/07/2016,Childrens Services,Safeguarding Targeted & Specialist,Employees,Agency Staff,8,14-Jul-2016,1607-00165,0.00,381.26,R,Academic Appointments Ltd,No
Http://opendatacommunities.org/id/metropolitan-district-council/leeds,Leeds City Council,31/07/2016,Childrens Services,Safeguarding Targeted & Specialist,Employees,Agency Staff,8,15-Jul-2016,1607-00166,0.00,2003.90,R,Academic Appointments Ltd,No
Http://opendatacommunities.org/id/metropolitan-district-council/leeds,Leeds City Council,31/07/2016,Childrens Services,Safeguarding Targeted & Specialist,Employees,Agency Staff,8,22-Jul-2016,1607-00167,0.00,2003.90,R,Academic Appointments Ltd,No
Http://opendatacommunities.org/id/metropolitan-district-council/leeds,Leeds City Council,31/07/2016,Childrens Services,Safeguarding Targeted & Specialist,Employees,Agency Staff,8,28-Jul-2016,1607-00168,0.00,2003.90,R,Academic Appointments Ltd,No
Http://opendatacommunities.org/id/metropolitan-district-council/leeds,Leeds City Council,31/07/2016,Childrens Services,Safeguarding Targeted & Specialist,Employees,Agency Staff,8,28-Jul-2016,1607-00169,0.00,508.74,R,Academic Appointments Ltd,No
Http://opendatacommunities.org/id/metropolitan-district-council/leeds,Leeds City Council,31/07/2016,Environment & Housing,Community Safety,Transport,Hire Of Movable Plant & Machinery,315,22-Jul-2016,1607-00170,0.00,10.45,R,Access Hire Nationwide Ltd,No
Http://opendatacommunities.org/id/metropolitan-district-council/leeds,Leeds City Council,31/07/2016,Environment & Housing,Community Safety,Transport,Hire Of Movable Plant & Machinery,315,29-Jul-2016,1607-00171,0.00,1307.14,R,Access Hire Nationwide Ltd,No
Http://opendatacommunities.org/id/metropolitan-district-council/leeds,Leeds City Council,31/07/2016,Environment & Housing,Leeds Building Services,Supplies and Services,Operational Materials,205,15-Jul-2016,1607-00172,0.00,936.00,R,Access Lift Consultants Ltd,No
Http://opendatacommunities.org/id/metropolitan-district-council/leeds,Leeds City Council,31/07/2016,Strategic Landlord,Housing Management,Premises,Premises Security Services,162,01-Jul-2016,1607-00173,0.00,7.20,R,Access Locksmiths (Leeds) Limited,No
Http://opendatacommunities.org/id/metropolitan-district-council/leeds,Leeds City Council,31/07/2016,Strategic Landlord,Housing Management,Premises,General Maintenance,104,01-Jul-2016,1607-00174,0.00,103.80,R,Access Locksmiths (Leeds) Limited,No
Http://opendatacommunities.org/id/metropolitan-district-council/leeds,Leeds City Council,31/07/2016,Environment & Housing,Leeds Building Services,Supplies and Services,Office Furniture & Equipment,201,01-Jul-2016,1607-00175,0.00,97.20,R,Access Locksmiths (Leeds) Limited,No
Http://opendatacommunities.org/id/metropolitan-district-council/leeds,Leeds City Council,31/07/2016,Strategic Landlord,Housing Management,Premises,General Maintenance,104,01-Jul-2016,1607-00176,0.00,103.80,R,Access Locksmiths (Leeds) Limited,No
Http://opendatacommunities.org/id/metropolitan-district-council/leeds,Leeds City Council,31/07/2016,Strategic Landlord,Property and Contracts,Premises,General Maintenance,104,01-Jul-2016,1607-00177,0.00,639.54,R,Access Locksmiths (Leeds) Limited,No
Http://opendatacommunities.org/id/metropolitan-district-council/leeds,Leeds City Council,31/07/2016,Strategic Landlord,Property and Contracts,Premises,General Maintenance,104,01-Jul-2016,1607-00178,0.00,72.42,R,Access Locksmiths (Leeds) Limited,No
Http://opendatacommunities.org/id/metropolitan-district-council/leeds,Leeds City Council,31/07/2016,Environment & Housing,Leeds Building Services,Supplies and Services,Operational Materials,205,01-Jul-2016,1607-00179,0.00,8.57,R,Access Locksmiths (Leeds) Limited,No
Http://opendatacommunities.org/id/metropolitan-district-council/leeds,Leeds City Council,31/07/2016,Environment & Housing,Leeds Building Services,Supplies and Services,Operational Materials,205,01-Jul-2016,1607-00180,0.00,27.00,R,Access Locksmiths (Leeds) Limited,No
Http://opendatacommunities.org/id/metropolitan-district-council/leeds,Leeds City Council,31/07/2016,Strategic Landlord,Property and Contracts,Premises,General Maintenance,104,01-Jul-2016,1607-00181,0.00,194.64,R,Access Locksmiths (Leeds) Limited,No
Http://opendatacommunities.org/id/metropolitan-district-council/leeds,Leeds City Council,31/07/2016,Strategic Landlord,Housing Management,Premises,General Maintenance,104,06-Jul-2016,1607-00182,0.00,23.90,R,Access Locksmiths (Leeds) Limited,No
Http://opendatacommunities.org/id/metropolitan-district-council/leeds,Leeds City Council,31/07/2016,Environment & Housing,Leeds Building Services,Supplies and Services,Operational Materials,205,06-Jul-2016,1607-00183,0.00,17.83,R,Access Locksmiths (Leeds) Limited,No
Http://opendatacommunities.org/id/metropolitan-district-council/leeds,Leeds City Council,31/07/2016,Environment & Housing,Leeds Building Services,Supplies and Services,Operational Materials,205,15-Jul-2016,1607-00184,0.00,159.10,R,Access Locksmiths (Leeds) Limited,No
Http://opendatacommunities.org/id/metropolitan-district-council/leeds,Leeds City Council,31/07/2016,Environment & Housing,Leeds Building Services,Supplies and Services,Operational Materials,205,15-Jul-2016,1607-00185,0.00,20.52,R,Access Locksmiths (Leeds) Limited,No
Http://opendatacommunities.org/id/metropolitan-district-council/leeds,Leeds City Council,31/07/2016,Environment & Housing,Leeds Building Services,Supplies and Services,Operational Materials,205,15-Jul-2016,1607-00186,0.00,29.48,R,Access Locksmiths (Leeds) Limited,No
Http://opendatacommunities.org/id/metropolitan-district-council/leeds,Leeds City Council,31/07/2016,Environment & Housing,Leeds Building Services,Supplies and Services,Operational Materials,205,15-Jul-2016,1607-00187,0.00,7.65,R,Access Locksmiths (Leeds) Limited,No
Http://opendatacommunities.org/id/metropolitan-district-council/leeds,Leeds City Council,31/07/2016,Environment & Housing,Leeds Building Services,Supplies and Services,Operational Materials,205,15-Jul-2016,1607-00188,0.00,39.20,R,Access Locksmiths (Leeds) Limited,No
Http://opendatacommunities.org/id/metropolitan-district-council/leeds,Leeds City Council,31/07/2016,Environment & Housing,Leeds Building Services,Supplies and Services,Operational Materials,205,15-Jul-2016,1607-00189,0.00,37.98,R,Access Locksmiths (Leeds) Limited,No
Http://opendatacommunities.org/id/metropolitan-district-council/leeds,Leeds City Council,31/07/2016,Environment & Housing,Leeds Building Services,Supplies and Services,Operational Materials,205,15-Jul-2016,1607-00190,0.00,13.50,R,Access Locksmiths (Leeds) Limited,No
Http://opendatacommunities.org/id/metropolitan-district-council/leeds,Leeds City Council,31/07/2016,Environment & Housing,Leeds Building Services,Supplies and Services,Operational Materials,205,15-Jul-2016,1607-00191,0.00,17.91,R,Access Locksmiths (Leeds) Limited,No
Http://opendatacommunities.org/id/metropolitan-district-council/leeds,Leeds City Council,31/07/2016,Strategic Landlord,Property and Contracts,Premises,General Maintenance,104,27-Jul-2016,1607-00192,0.00,175.42,R,Access Locksmiths (Leeds) Limited,No
Http://opendatacommunities.org/id/metropolitan-district-council/leeds,Leeds City Council,31/07/2016,Strategic Landlord,Property and Contracts,Premises,General Maintenance,104,27-Jul-2016,1607-00193,0.00,72.42,R,Access Locksmiths (Leeds) Limited,No
Http://opendatacommunities.org/id/metropolitan-district-council/leeds,Leeds City Council,31/07/2016,Strategic Landlord,Property and Contracts,Premises,General Maintenance,104,27-Jul-2016,1607-00194,0.00,561.70,R,Access Locksmiths (Leeds) Limited,No
Http://opendatacommunities.org/id/metropolitan-district-council/leeds,Leeds City Council,31/07/2016,Strategic Landlord,Property and Contracts,Premises,General Maintenance,104,27-Jul-2016,1607-00195,0.00,102.42,R,Access Locksmiths (Leeds) Limited,No
Http://opendatacommunities.org/id/metropolitan-district-council/leeds,Leeds City Council,31/07/2016,Strategic Landlord,Property and Contracts,Premises,General Maintenance,104,27-Jul-2016,1607-00196,0.00,102.42,R,Access Locksmiths (Leeds) Limited,No
Http://opendatacommunities.org/id/metropolitan-district-council/leeds,Leeds City Council,31/07/2016,Environment & Housing,Leeds Building Services,Supplies and Services,Operational Materials,205,27-Jul-2016,1607-00197,0.00,144.00,R,Access Locksmiths (Leeds) Limited,No
Http://opendatacommunities.org/id/metropolitan-district-council/leeds,Leeds City Council,31/07/2016,Environment & Housing,Leeds Building Services,Supplies and Services,Operational Materials,205,27-Jul-2016,1607-00198,0.00,120.00,R,Access Locksmiths (Leeds) Limited,No
Http://opendatacommunities.org/id/metropolitan-district-council/leeds,Leeds City Council,31/07/2016,Environment & Housing,Leeds Building Services,Supplies and Services,Operational Materials,205,27-Jul-2016,1607-00199,0.00,36.94,R,Access Locksmiths (Leeds) Limited,No
Http://opendatacommunities.org/id/metropolitan-district-council/leeds,Leeds City Council,31/07/2016,Environment & Housing,Leeds Building Services,Supplies and Services,Operational Materials,205,27-Jul-2016,1607-00200,0.00,310.10,R,Access Locksmiths (Leeds) Limited,No
Http://opendatacommunities.org/id/metropolitan-district-council/leeds,Leeds City Council,31/07/2016,Environment & Housing,Leeds Building Services,Supplies and Services,Operational Materials,205,27-Jul-2016,1607-00201,0.00,103.90,R,Access Locksmiths (Leeds) Limited,No
Http://opendatacommunities.org/id/metropolitan-district-council/leeds,Leeds City Council,31/07/2016,Environment & Housing,Leeds Building Services,Supplies and Services,Operational Materials,205,27-Jul-2016,1607-00202,0.00,34.00,R,Access Locksmiths (Leeds) Limited,No
Http://opendatacommunities.org/id/metropolitan-district-council/leeds,Leeds City Council,31/07/2016,Environment & Housing,Leeds Building Services,Supplies and Services,Operational Materials,205,27-Jul-2016,1607-00203,0.00,49.21,R,Access Locksmiths (Leeds) Limited,No
Http://opendatacommunities.org/id/metropolitan-district-council/leeds,Leeds City Council,31/07/2016,Environment & Housing,Leeds Building Services,Supplies and Services,Operational Materials,205,27-Jul-2016,1607-00204,0.00,50.62,R,Access Locksmiths (Leeds) Limited,No
Http://opendatacommunities.org/id/metropolitan-district-council/leeds,Leeds City Council,31/07/2016,Environment & Housing,Leeds Building Services,Supplies and Services,Operational Materials,205,27-Jul-2016,1607-00205,0.00,24.50,R,Access Locksmiths (Leeds) Limited,No
Http://opendatacommunities.org/id/metropolitan-district-council/leeds,Leeds City Council,31/07/2016,Environment & Housing,Leeds Building Services,Supplies and Services,Operational Materials,205,27-Jul-2016,1607-00206,0.00,6.75,R,Access Locksmiths (Leeds) Limited,No
Http://opendatacommunities.org/id/metropolitan-district-council/leeds,Leeds City Council,31/07/2016,Environment & Housing,Leeds Building Services,Supplies and Services,Operational Materials,205,27-Jul-2016,1607-00207,0.00,11.56,R,Access Locksmiths (Leeds) Limited,No
Http://opendatacommunities.org/id/metropolitan-district-council/leeds,Leeds City Council,31/07/2016,Environment & Housing,Leeds Building Services,Supplies and Services,Operational Materials,205,27-Jul-2016,1607-00208,0.00,353.99,R,Access Locksmiths (Leeds) Limited,No
Http://opendatacommunities.org/id/metropolitan-district-council/leeds,Leeds City Council,31/07/2016,Environment & Housing,Leeds Building Services,Supplies and Services,Operational Materials,205,29-Jul-2016,1607-00209,0.00,31.44,R,Access Locksmiths (Leeds) Limited,No
Http://opendatacommunities.org/id/metropolitan-district-council/leeds,Leeds City Council,31/07/2016,Environment & Housing,Leeds Building Services,Supplies and Services,Operational Materials,205,29-Jul-2016,1607-00210,0.00,8.28,R,Access Locksmiths (Leeds) Limited,No
Http://opendatacommunities.org/id/metropolitan-district-council/leeds,Leeds City Council,31/07/2016,Environment & Housing,Leeds Building Services,Supplies and Services,Operational Materials,205,29-Jul-2016,1607-00211,0.00,41.78,R,Access Locksmiths (Leeds) Limited,No
Http://opendatacommunities.org/id/metropolitan-district-council/leeds,Leeds City Council,31/07/2016,Strategic Landlord,Housing Management,Premises,General Maintenance,104,29-Jul-2016,1607-00212,0.00,103.70,R,Access Locksmiths (Leeds) Limited,No
Http://opendatacommunities.org/id/metropolitan-district-council/leeds,Leeds City Council,31/07/2016,Strategic Landlord,Housing Management,Premises,Premises Security Services,162,29-Jul-2016,1607-00213,0.00,14.40,R,Access Locksmiths (Leeds) Limited,No
Http://opendatacommunities.org/id/metropolitan-district-council/leeds,Leeds City Council,31/07/2016,Environment & Housing,Leeds Building Services,Supplies and Services,Operational Materials,205,01-Jul-2016,1607-00214,0.00,80.00,R,Access Opening Systems Limited,No
Http://opendatacommunities.org/id/metropolitan-district-council/leeds,Leeds City Council,31/07/2016,Environment & Housing,Leeds Building Services,Supplies and Services,Other Hired And Contracted Services,265,01-Jul-2016,1607-00215,0.00,85.00,R,Access Opening Systems Limited,No
Http://opendatacommunities.org/id/metropolitan-district-council/leeds,Leeds City Council,31/07/2016,Environment & Housing,Leeds Building Services,Supplies and Services,Other Hired And Contracted Services,265,01-Jul-2016,1607-00216,0.00,85.00,R,Access Opening Systems Limited,No
Http://opendatacommunities.org/id/metropolitan-district-council/leeds,Leeds City Council,31/07/2016,Environment & Housing,Leeds Building Services,Supplies and Services,Other Hired And Contracted Services,265,01-Jul-2016,1607-00217,0.00,85.00,R,Access Opening Systems Limited,No
Http://opendatacommunities.org/id/metropolitan-district-council/leeds,Leeds City Council,31/07/2016,Environment & Housing,Leeds Building Services,Supplies and Services,Other Hired And Contracted Services,265,01-Jul-2016,1607-00218,0.00,110.50,R,Access Opening Systems Limited,No
Http://opendatacommunities.org/id/metropolitan-district-council/leeds,Leeds City Council,31/07/2016,Environment & Housing,Leeds Building Services,Supplies and Services,Other Hired And Contracted Services,265,01-Jul-2016,1607-00219,0.00,147.25,R,Access Opening Systems Limited,No
Http://opendatacommunities.org/id/metropolitan-district-council/leeds,Leeds City Council,31/07/2016,Environment & Housing,Leeds Building Services,Supplies and Services,Other Hired And Contracted Services,265,01-Jul-2016,1607-00220,0.00,85.00,R,Access Opening Systems Limited,No
Http://opendatacommunities.org/id/metropolitan-district-council/leeds,Leeds City Council,31/07/2016,Environment & Housing,Leeds Building Services,Supplies and Services,Other Hired And Contracted Services,265,01-Jul-2016,1607-00221,0.00,85.00,R,Access Opening Systems Limited,No
Http://opendatacommunities.org/id/metropolitan-district-council/leeds,Leeds City Council,31/07/2016,Environment & Housing,Leeds Building Services,Supplies and Services,Other Hired And Contracted Services,265,01-Jul-2016,1607-00222,0.00,1833.00,R,Access Opening Systems Limited,No
Http://opendatacommunities.org/id/metropolitan-district-council/leeds,Leeds City Council,31/07/2016,Environment & Housing,Leeds Building Services,Supplies and Services,Other Hired And Contracted Services,265,01-Jul-2016,1607-00223,0.00,182.50,R,Access Opening Systems Limited,No
Http://opendatacommunities.org/id/metropolitan-district-council/leeds,Leeds City Council,31/07/2016,Environment & Housing,Leeds Building Services,Supplies and Services,Other Hired And Contracted Services,265,01-Jul-2016,1607-00224,0.00,85.00,R,Access Opening Systems Limited,No
Http://opendatacommunities.org/id/metropolitan-district-council/leeds,Leeds City Council,31/07/2016,Environment & Housing,Leeds Building Services,Supplies and Services,Operational Materials,205,01-Jul-2016,1607-00225,0.00,225.00,R,Access Opening Systems Limited,No
Http://opendatacommunities.org/id/metropolitan-district-council/leeds,Leeds City Council,31/07/2016,Environment & Housing,Leeds Building Services,Supplies and Services,Other Hired And Contracted Services,265,01-Jul-2016,1607-00226,0.00,85.00,R,Access Opening Systems Limited,No
Http://opendatacommunities.org/id/metropolitan-district-council/leeds,Leeds City Council,31/07/2016,Environment & Housing,Leeds Building Services,Supplies and Services,Operational Materials,205,01-Jul-2016,1607-00227,0.00,760.00,R,Access Opening Systems Limited,No
Http://opendatacommunities.org/id/metropolitan-district-council/leeds,Leeds City Council,31/07/2016,Environment & Housing,Leeds Building Services,Supplies and Services,Operational Materials,205,01-Jul-2016,1607-00228,0.00,225.00,R,Access Opening Systems Limited,No
Http://opendatacommunities.org/id/metropolitan-district-council/leeds,Leeds City Council,31/07/2016,Environment & Housing,Leeds Building Services,Supplies and Services,Operational Materials,205,01-Jul-2016,1607-00229,0.00,182.00,R,Access Opening Systems Limited,No
Http://opendatacommunities.org/id/metropolitan-district-council/leeds,Leeds City Council,31/07/2016,Environment & Housing,Leeds Building Services,Supplies and Services,Operational Materials,205,01-Jul-2016,1607-00230,0.00,112.50,R,Access Opening Systems Limited,No
Http://opendatacommunities.org/id/metropolitan-district-council/leeds,Leeds City Council,31/07/2016,Environment & Housing,Leeds Building Services,Supplies and Services,Operational Materials,205,01-Jul-2016,1607-00231,0.00,135.00,R,Access Opening Systems Limited,No
Http://opendatacommunities.org/id/metropolitan-district-council/leeds,Leeds City Council,31/07/2016,Environment & Housing,Leeds Building Services,Supplies and Services,Operational Materials,205,01-Jul-2016,1607-00232,0.00,135.00,R,Access Opening Systems Limited,No
Http://opendatacommunities.org/id/metropolitan-district-council/leeds,Leeds City Council,31/07/2016,Environment & Housing,Leeds Building Services,Supplies and Services,Operational Materials,205,04-Jul-2016,1607-00233,0.00,-84.00,R,Access Opening Systems Limited,No
Http://opendatacommunities.org/id/metropolitan-district-council/leeds,Leeds City Council,31/07/2016,Environment & Housing,Leeds Building Services,Supplies and Services,Operational Materials,205,04-Jul-2016,1607-00234,0.00,112.00,R,Access Opening Systems Limited,No
Http://opendatacommunities.org/id/metropolitan-district-council/leeds,Leeds City Council,31/07/2016,Environment & Housing,Leeds Building Services,Supplies and Services,Other Hired And Contracted Services,265,08-Jul-2016,1607-00235,0.00,865.40,R,Access Opening Systems Limited,No
Http://opendatacommunities.org/id/metropolitan-district-council/leeds,Leeds City Council,31/07/2016,Environment & Housing,Leeds Building Services,Supplies and Services,Other Hired And Contracted Services,265,08-Jul-2016,1607-00236,0.00,420.23,R,Access Opening Systems Limited,No
Http://opendatacommunities.org/id/metropolitan-district-council/leeds,Leeds City Council,31/07/2016,Environment & Housing,Leeds Building Services,Supplies and Services,Other Hired And Contracted Services,265,08-Jul-2016,1607-00237,0.00,85.00,R,Access Opening Systems Limited,No
Http://opendatacommunities.org/id/metropolitan-district-council/leeds,Leeds City Council,31/07/2016,Environment & Housing,Leeds Building Services,Supplies and Services,Other Hired And Contracted Services,265,08-Jul-2016,1607-00238,0.00,85.00,R,Access Opening Systems Limited,No
Http://opendatacommunities.org/id/metropolitan-district-council/leeds,Leeds City Council,31/07/2016,Environment & Housing,Leeds Building Services,Supplies and Services,Other Hired And Contracted Services,265,08-Jul-2016,1607-00239,0.00,85.00,R,Access Opening Systems Limited,No
Http://opendatacommunities.org/id/metropolitan-district-council/leeds,Leeds City Council,31/07/2016,Environment & Housing,Leeds Building Services,Supplies and Services,Other Hired And Contracted Services,265,08-Jul-2016,1607-00240,0.00,485.23,R,Access Opening Systems Limited,No
Http://opendatacommunities.org/id/metropolitan-district-council/leeds,Leeds City Council,31/07/2016,Environment & Housing,Leeds Building Services,Supplies and Services,Other Hired And Contracted Services,265,08-Jul-2016,1607-00241,0.00,85.00,R,Access Opening Systems Limited,No
Http://opendatacommunities.org/id/metropolitan-district-council/leeds,Leeds City Council,31/07/2016,Environment & Housing,Leeds Building Services,Supplies and Services,Other Hired And Contracted Services,265,08-Jul-2016,1607-00242,0.00,175.00,R,Access Opening Systems Limited,No
Http://opendatacommunities.org/id/metropolitan-district-council/leeds,Leeds City Council,31/07/2016,Environment & Housing,Leeds Building Services,Supplies and Services,Operational Materials,205,15-Jul-2016,1607-00243,0.00,75.00,R,Access Opening Systems Limited,No
Http://opendatacommunities.org/id/metropolitan-district-council/leeds,Leeds City Council,31/07/2016,Environment & Housing,Leeds Building Services,Supplies and Services,Operational Materials,205,15-Jul-2016,1607-00244,0.00,77.00,R,Access Opening Systems Limited,No
Http://opendatacommunities.org/id/metropolitan-district-council/leeds,Leeds City Council,31/07/2016,Environment & Housing,Leeds Building Services,Supplies and Services,Operational Materials,205,15-Jul-2016,1607-00245,0.00,1150.00,R,Access Opening Systems Limited,No
Http://opendatacommunities.org/id/metropolitan-district-council/leeds,Leeds City Council,31/07/2016,Environment & Housing,Leeds Building Services,Supplies and Services,Operational Materials,205,15-Jul-2016,1607-00246,0.00,4544.50,R,Access Opening Systems Limited,No
Http://opendatacommunities.org/id/metropolitan-district-council/leeds,Leeds City Council,31/07/2016,Environment & Housing,Leeds Building Services,Supplies and Services,Operational Materials,205,15-Jul-2016,1607-00247,0.00,150.00,R,Access Opening Systems Limited,No
Http://opendatacommunities.org/id/metropolitan-district-council/leeds,Leeds City Council,31/07/2016,Environment & Housing,Leeds Building Services,Supplies and Services,Operational Materials,205,20-Jul-2016,1607-00248,0.00,3090.00,R,Access Opening Systems Limited,No
Http://opendatacommunities.org/id/metropolitan-district-council/leeds,Leeds City Council,31/07/2016,Environment & Housing,Leeds Building Services,Supplies and Services,Other Hired And Contracted Services,265,20-Jul-2016,1607-00249,0.00,350.00,R,Access Opening Systems Limited,No
Http://opendatacommunities.org/id/metropolitan-district-council/leeds,Leeds City Council,31/07/2016,Environment & Housing,Leeds Building Services,Supplies and Services,Other Hired And Contracted Services,265,20-Jul-2016,1607-00250,0.00,989.23,R,Access Opening Systems Limited,No
Http://opendatacommunities.org/id/metropolitan-district-council/leeds,Leeds City Council,31/07/2016,Environment & Housing,Leeds Building Services,Supplies and Services,Other Hired And Contracted Services,265,20-Jul-2016,1607-00251,0.00,85.00,R,Access Opening Systems Limited,No
Http://opendatacommunities.org/id/metropolitan-district-council/leeds,Leeds City Council,31/07/2016,Environment & Housing,Leeds Building Services,Supplies and Services,Other Hired And Contracted Services,265,20-Jul-2016,1607-00252,0.00,85.00,R,Access Opening Systems Limited,No
Http://opendatacommunities.org/id/metropolitan-district-council/leeds,Leeds City Council,31/07/2016,Environment & Housing,Leeds Building Services,Supplies and Services,Other Hired And Contracted Services,265,20-Jul-2016,1607-00253,0.00,85.00,R,Access Opening Systems Limited,No
Http://opendatacommunities.org/id/metropolitan-district-council/leeds,Leeds City Council,31/07/2016,Environment & Housing,Leeds Building Services,Supplies and Services,Other Hired And Contracted Services,265,20-Jul-2016,1607-00254,0.00,390.54,R,Access Opening Systems Limited,No
Http://opendatacommunities.org/id/metropolitan-district-council/leeds,Leeds City Council,31/07/2016,Environment & Housing,Leeds Building Services,Supplies and Services,Other Hired And Contracted Services,265,20-Jul-2016,1607-00255,0.00,85.00,R,Access Opening Systems Limited,No
Http://opendatacommunities.org/id/metropolitan-district-council/leeds,Leeds City Council,31/07/2016,Environment & Housing,Leeds Building Services,Supplies and Services,Other Hired And Contracted Services,265,22-Jul-2016,1607-00256,0.00,85.00,R,Access Opening Systems Limited,No
Http://opendatacommunities.org/id/metropolitan-district-council/leeds,Leeds City Council,31/07/2016,Environment & Housing,Leeds Building Services,Supplies and Services,Other Hired And Contracted Services,265,22-Jul-2016,1607-00257,0.00,391.45,R,Access Opening Systems Limited,No
Http://opendatacommunities.org/id/metropolitan-district-council/leeds,Leeds City Council,31/07/2016,Environment & Housing,Leeds Building Services,Supplies and Services,Other Hired And Contracted Services,265,26-Jul-2016,1607-00258,0.00,207.60,R,Access Opening Systems Limited,No
Http://opendatacommunities.org/id/metropolitan-district-council/leeds,Leeds City Council,31/07/2016,Environment & Housing,Leeds Building Services,Supplies and Services,Other Hired And Contracted Services,265,26-Jul-2016,1607-00259,0.00,85.00,R,Access Opening Systems Limited,No
Http://opendatacommunities.org/id/metropolitan-district-council/leeds,Leeds City Council,31/07/2016,Environment & Housing,Leeds Building Services,Supplies and Services,Other Hired And Contracted Services,265,26-Jul-2016,1607-00260,0.00,110.00,R,Access Opening Systems Limited,No
Http://opendatacommunities.org/id/metropolitan-district-council/leeds,Leeds City Council,31/07/2016,Environment & Housing,Leeds Building Services,Supplies and Services,Operational Materials,205,28-Jul-2016,1607-00261,0.00,425.00,R,Access Opening Systems Limited,No
Http://opendatacommunities.org/id/metropolitan-district-council/leeds,Leeds City Council,31/07/2016,Environment & Housing,Leeds Building Services,Supplies and Services,Other Hired And Contracted Services,265,28-Jul-2016,1607-00262,0.00,384.59,R,Access Opening Systems Limited,No
Http://opendatacommunities.org/id/metropolitan-district-council/leeds,Leeds City Council,31/07/2016,Insurance,Insurance,Supplies and Services,Insurance Claims,248,07-Jul-2016,1607-00263,0.00,3713.00,R,Accountant General Of The Senior Courts,No
Http://opendatacommunities.org/id/metropolitan-district-council/leeds,Leeds City Council,31/07/2016,Insurance,Insurance,Supplies and Services,Insurance Claims,248,12-Jul-2016,1607-00264,0.00,5750.00,R,Accountant General Of The Senior Courts,No
Http://opendatacommunities.org/id/metropolitan-district-council/leeds,Leeds City Council,31/07/2016,City Development,Recreation,Supplies and Services,Other Hired And Contracted Services,265,06-Jul-2016,1607-00265,0.00,135.00,R,Ace Container Services Limited,No
Http://opendatacommunities.org/id/metropolitan-district-council/leeds,Leeds City Council,31/07/2016,City Development,Recreation,Transport,External Hire -Occasional,304,29-Jul-2016,1607-00266,0.00,128.65,R,Ace Container Services Limited,No
Http://opendatacommunities.org/id/metropolitan-district-council/leeds,Leeds City Council,31/07/2016,City Development,Libraries  Arts & Heritage,Transport,Hire Of Movable Plant & Machinery,315,29-Jul-2016,1607-00267,0.00,46.50,R,Ace Container Services Limited,No
Http://opendatacommunities.org/id/metropolitan-district-council/leeds,Leeds City Council,31/07/2016,Environment & Housing,Parks and Countryside,Supplies and Services,Operational Materials,205,27-Jul-2016,1607-00268,0.00,4139.40,R,Ace Engineers (Morley) Ltd,No
Http://opendatacommunities.org/id/metropolitan-district-council/leeds,Leeds City Council,31/07/2016,Childrens Services,Learning Skills & Universal,Supplies and Services,Advertising,211,01-Jul-2016,1607-00269,0.00,50.00,R,Ace Leaflet Distribution & Print Ltd,No
Http://opendatacommunities.org/id/metropolitan-district-council/leeds,Leeds City Council,31/07/2016,Childrens Services,Learning Skills & Universal,Supplies and Services,Advertising,211,08-Jul-2016,1607-00270,0.00,50.00,R,Ace Leaflet Distribution & Print Ltd,No
Http://opendatacommunities.org/id/metropolitan-district-council/leeds,Leeds City Council,31/07/2016,Childrens Services,Learning Skills & Universal,Supplies and Services,Advertising,211,08-Jul-2016,1607-00271,0.00,150.00,R,Ace Leaflet Distribution & Print Ltd,No
Http://opendatacommunities.org/id/metropolitan-district-council/leeds,Leeds City Council,31/07/2016,Civic Enterprise Leeds,Commercial Services,Supplies and Services,Operational Furniture And Equipment,203,01-Jul-2016,1607-00272,0.00,1902.00,R,Acme Facilities Group Ltd,No
Http://opendatacommunities.org/id/metropolitan-district-council/leeds,Leeds City Council,31/07/2016,Childrens Services,Safeguarding Targeted & Specialist,Third Party Payments,Independent Fostering Agencies,509,04-Jul-2016,1607-00273,0.00,2360.43,R,Acorn Fostering Services,No
Http://opendatacommunities.org/id/metropolitan-district-council/leeds,Leeds City Council,31/07/2016,Adult Social Care,Other Adult Services,Third Party Payments,Residential - Drugs & Alcohol,583,06-Jul-2016,1607-00274,0.00,2435.71,R,Acorn Treatment & Housing,No
Http://opendatacommunities.org/id/metropolitan-district-council/leeds,Leeds City Council,31/07/2016,Adult Social Care,Other Adult Services,Third Party Payments,Residential - Drugs & Alcohol,583,06-Jul-2016,1607-00275,0.00,2435.71,R,Acorn Treatment & Housing,No
Http://opendatacommunities.org/id/metropolitan-district-council/leeds,Leeds City Council,31/07/2016,Adult Social Care,Other Adult Services,Third Party Payments,Residential - Drugs & Alcohol,583,06-Jul-2016,1607-00276,0.00,1728.57,R,Acorn Treatment & Housing,No
Http://opendatacommunities.org/id/metropolitan-district-council/leeds,Leeds City Council,31/07/2016,Adult Social Care,Other Adult Services,Third Party Payments,Residential - Drugs & Alcohol,583,06-Jul-2016,1607-00277,0.00,2278.57,R,Acorn Treatment & Housing,No
Http://opendatacommunities.org/id/metropolitan-district-council/leeds,Leeds City Council,31/07/2016,Childrens Services,Learning Skills & Universal,Third Party Payments,Services Rendered By Other Organisations,511,18-Jul-2016,1607-00278,0.00,3342.67,R,Acorns Nursery,No
Http://opendatacommunities.org/id/metropolitan-district-council/leeds,Leeds City Council,31/07/2016,Adult Social Care,Services For Adults Under 65 Mental/Dis,Third Party Payments,Residential,580,27-Jul-2016,1607-00279,0.00,1459.20,R,Acre Green,No
Http://opendatacommunities.org/id/metropolitan-district-council/leeds,Leeds City Council,31/07/2016,Adult Social Care,Services For Older People - 65 And Over,Third Party Payments,Nursing Home,570,27-Jul-2016,1607-00280,0.00,16924.55,R,Acre Green,No
Http://opendatacommunities.org/id/metropolitan-district-council/leeds,Leeds City Council,31/07/2016,Adult Social Care,Services For Older People - 65 And Over,Third Party Payments,Nursing Care Dementia,574,27-Jul-2016,1607-00281,0.00,1122.48,R,Acre Green,No
Http://opendatacommunities.org/id/metropolitan-district-council/leeds,Leeds City Council,31/07/2016,Adult Social Care,Services For Older People - 65 And Over,Third Party Payments,Residential,580,27-Jul-2016,1607-00282,0.00,10112.51,R,Acre Green,No
Http://opendatacommunities.org/id/metropolitan-district-council/leeds,Leeds City Council,31/07/2016,Adult Social Care,Services For Older People Under 65 P/Dis,Third Party Payments,Nursing Home,570,27-Jul-2016,1607-00283,0.00,5159.84,R,Acre Green,No
Http://opendatacommunities.org/id/metropolitan-district-council/leeds,Leeds City Council,31/07/2016,Adult Social Care,Services For Older People Under 65 P/Dis,Third Party Payments,Residential,580,27-Jul-2016,1607-00284,0.00,1678.80,R,Acre Green,No
Http://opendatacommunities.org/id/metropolitan-district-council/leeds,Leeds City Council,31/07/2016,Childrens Services,Learning Skills & Universal,Third Party Payments,Services Rendered By Other Organisations,511,11-Jul-2016,1607-00285,0.00,1212.50,R,Acre Wood Day Nursery,No
Http://opendatacommunities.org/id/metropolitan-district-council/leeds,Leeds City Council,31/07/2016,Childrens Services,Learning Skills & Universal,Third Party Payments,Services Rendered By Other Organisations,511,18-Jul-2016,1607-00286,0.00,103.35,R,Acre Wood Day Nursery,No
Http://opendatacommunities.org/id/metropolitan-district-council/leeds,Leeds City Council,31/07/2016,Childrens Services,Learning Skills & Universal,Third Party Payments,Services Rendered By Other Organisations,511,18-Jul-2016,1607-00287,0.00,1354.62,R,Acre Wood Day Nursery,No
Http://opendatacommunities.org/id/metropolitan-district-council/leeds,Leeds City Council,31/07/2016,Environment & Housing,Leeds Building Services,Supplies and Services,Operational Materials,205,29-Jul-2016,1607-00288,0.00,1244.60,R,Actavo Uk Limited,No
Http://opendatacommunities.org/id/metropolitan-district-council/leeds,Leeds City Council,31/07/2016,Adult Social Care,Services For Adults Under 65 Mental/Dis,Third Party Payments,Fees - Level 4,520,01-Jul-2016,1607-00289,0.00,350.00,R,Action First Recruitment Ltd,No
Http://opendatacommunities.org/id/metropolitan-district-council/leeds,Leeds City Council,31/07/2016,Adult Social Care,Services For Adults Under 65 Mental/Dis,Third Party Payments,Fees - Level 4,520,01-Jul-2016,1607-00290,0.00,500.00,R,Action First Recruitment Ltd,No
Http://opendatacommunities.org/id/metropolitan-district-council/leeds,Leeds City Council,31/07/2016,Adult Social Care,Services For Adults Under 65 Mental/Dis,Third Party Payments,Fees - Level 4,520,01-Jul-2016,1607-00291,0.00,350.00,R,Action First Recruitment Ltd,No
Http://opendatacommunities.org/id/metropolitan-district-council/leeds,Leeds City Council,31/07/2016,Adult Social Care,Services For Adults Under 65 Mental/Dis,Third Party Payments,Fees - Level 4,520,01-Jul-2016,1607-00292,0.00,1750.00,R,Action First Recruitment Ltd,No
Http://opendatacommunities.org/id/metropolitan-district-council/leeds,Leeds City Council,31/07/2016,Adult Social Care,Services For Adults Under 65 Mental/Dis,Third Party Payments,Fees - Level 4,520,01-Jul-2016,1607-00293,0.00,1050.00,R,Action First Recruitment Ltd,No
Http://opendatacommunities.org/id/metropolitan-district-council/leeds,Leeds City Council,31/07/2016,Adult Social Care,Services For Adults Under 65 Mental/Dis,Third Party Payments,Fees - Level 4,520,01-Jul-2016,1607-00294,0.00,350.00,R,Action First Recruitment Ltd,No
Http://opendatacommunities.org/id/metropolitan-district-council/leeds,Leeds City Council,31/07/2016,Adult Social Care,Services For Adults Under 65 Mental/Dis,Third Party Payments,Fees - Level 4,520,01-Jul-2016,1607-00295,0.00,500.00,R,Action First Recruitment Ltd,No
Http://opendatacommunities.org/id/metropolitan-district-council/leeds,Leeds City Council,31/07/2016,Adult Social Care,Services For Adults Under 65 Mental/Dis,Third Party Payments,Fees - Level 4,520,01-Jul-2016,1607-00296,0.00,2500.00,R,Action First Recruitment Ltd,No
Http://opendatacommunities.org/id/metropolitan-district-council/leeds,Leeds City Council,31/07/2016,Adult Social Care,Services For Adults Under 65 Mental/Dis,Third Party Payments,Fees - Level 4,520,06-Jul-2016,1607-00297,0.00,1750.00,R,Action First Recruitment Ltd,No
Http://opendatacommunities.org/id/metropolitan-district-council/leeds,Leeds City Council,31/07/2016,Adult Social Care,Services For Adults Under 65 Mental/Dis,Third Party Payments,Fees - Level 4,520,06-Jul-2016,1607-00298,0.00,1750.00,R,Action First Recruitment Ltd,No
Http://opendatacommunities.org/id/metropolitan-district-council/leeds,Leeds City Council,31/07/2016,Adult Social Care,Services For Adults Under 65 Mental/Dis,Third Party Payments,Fees - Level 4,520,06-Jul-2016,1607-00299,0.00,2450.00,R,Action First Recruitment Ltd,No
Http://opendatacommunities.org/id/metropolitan-district-council/leeds,Leeds City Council,31/07/2016,Adult Social Care,Services For Adults Under 65 Mental/Dis,Third Party Payments,Fees - Level 4,520,06-Jul-2016,1607-00300,0.00,350.00,R,Action First Recruitment Ltd,No
Http://opendatacommunities.org/id/metropolitan-district-council/leeds,Leeds City Council,31/07/2016,Adult Social Care,Services For Adults Under 65 Mental/Dis,Third Party Payments,Fees - Level 4,520,06-Jul-2016,1607-00301,0.00,1050.00,R,Action First Recruitment Ltd,No
Http://opendatacommunities.org/id/metropolitan-district-council/leeds,Leeds City Council,31/07/2016,Childrens Services,Safeguarding Targeted & Specialist,Third Party Payments,Independent Fostering Agencies,509,08-Jul-2016,1607-00302,0.00,4622.40,R,Action For Children,No
Http://opendatacommunities.org/id/metropolitan-district-council/leeds,Leeds City Council,31/07/2016,Childrens Services,Safeguarding Targeted & Specialist,Third Party Payments,Independent Fostering Agencies,509,08-Jul-2016,1607-00303,0.00,4997.10,R,Action For Children,No
Http://opendatacommunities.org/id/metropolitan-district-council/leeds,Leeds City Council,31/07/2016,Childrens Services,Safeguarding Targeted & Specialist,Third Party Payments,Independent Fostering Agencies,509,08-Jul-2016,1607-00304,0.00,4622.40,R,Action For Children,No
Http://opendatacommunities.org/id/metropolitan-district-council/leeds,Leeds City Council,31/07/2016,Childrens Services,Safeguarding Targeted & Specialist,Third Party Payments,Independent Fostering Agencies,509,08-Jul-2016,1607-00305,0.00,4684.85,R,Action For Children,No
Http://opendatacommunities.org/id/metropolitan-district-council/leeds,Leeds City Council,31/07/2016,Adult Social Care,Services For Older People - 65 And Over,Third Party Payments,Payments To Voluntary Organisations,561,01-Jul-2016,1607-00306,0.00,34505.50,R,Action For Gipton Elderly,No
Http://opendatacommunities.org/id/metropolitan-district-council/leeds,Leeds City Council,31/07/2016,Citizens and Communities,Communities,Supplies and Services,'Well Being' Large Grants Projects,230,28-Jul-2016,1607-00307,0.00,930.00,R,Active Hire (Leeds) Ltd,No
Http://opendatacommunities.org/id/metropolitan-district-council/leeds,Leeds City Council,31/07/2016,Childrens Services,Learning Skills & Universal,Third Party Payments,Services Rendered By Other Organisations,511,11-Jul-2016,1607-00308,0.00,378.30,R,Active Kids Day Nursery,No
Http://opendatacommunities.org/id/metropolitan-district-council/leeds,Leeds City Council,31/07/2016,Childrens Services,Learning Skills & Universal,Third Party Payments,Services Rendered By Other Organisations,511,18-Jul-2016,1607-00309,0.00,206.70,R,Active Kids Day Nursery,No
Http://opendatacommunities.org/id/metropolitan-district-council/leeds,Leeds City Council,31/07/2016,Childrens Services,Learning Skills & Universal,Third Party Payments,Services Rendered By Other Organisations,511,18-Jul-2016,1607-00310,0.00,3613.80,R,Active Kids Day Nursery,No
Http://opendatacommunities.org/id/metropolitan-district-council/leeds,Leeds City Council,31/07/2016,Environment & Housing,Waste Management,Supplies and Services,Recycling & Reuse Charges,234,01-Jul-2016,1607-00311,0.00,220.00,R,Acumen Waste Services Ltd,No
Http://opendatacommunities.org/id/metropolitan-district-council/leeds,Leeds City Council,31/07/2016,Environment & Housing,Waste Management,Supplies and Services,Recycling & Reuse Charges,234,01-Jul-2016,1607-00312,0.00,220.00,R,Acumen Waste Services Ltd,No
Http://opendatacommunities.org/id/metropolitan-district-council/leeds,Leeds City Council,31/07/2016,Environment & Housing,Waste Management,Supplies and Services,Recycling & Reuse Charges,234,01-Jul-2016,1607-00313,0.00,220.00,R,Acumen Waste Services Ltd,No
Http://opendatacommunities.org/id/metropolitan-district-council/leeds,Leeds City Council,31/07/2016,Environment & Housing,Waste Management,Supplies and Services,Recycling & Reuse Charges,234,13-Jul-2016,1607-00314,0.00,6609.55,R,Acumen Waste Services Ltd,No
Http://opendatacommunities.org/id/metropolitan-district-council/leeds,Leeds City Council,31/07/2016,Environment & Housing,Waste Management,Supplies and Services,Recycling & Reuse Charges,234,13-Jul-2016,1607-00315,0.00,7171.68,R,Acumen Waste Services Ltd,No
Http://opendatacommunities.org/id/metropolitan-district-council/leeds,Leeds City Council,31/07/2016,Environment & Housing,Waste Management,Supplies and Services,Recycling & Reuse Charges,234,13-Jul-2016,1607-00316,0.00,6677.89,R,Acumen Waste Services Ltd,No
Http://opendatacommunities.org/id/metropolitan-district-council/leeds,Leeds City Council,31/07/2016,Environment & Housing,Waste Management,Supplies and Services,Recycling & Reuse Charges,234,13-Jul-2016,1607-00317,0.00,5740.56,R,Acumen Waste Services Ltd,No
Http://opendatacommunities.org/id/metropolitan-district-council/leeds,Leeds City Council,31/07/2016,Environment & Housing,Waste Management,Supplies and Services,Recycling & Reuse Charges,234,13-Jul-2016,1607-00318,0.00,1894.76,R,Acumen Waste Services Ltd,No
Http://opendatacommunities.org/id/metropolitan-district-council/leeds,Leeds City Council,31/07/2016,Environment & Housing,Waste Management,Supplies and Services,Recycling & Reuse Charges,234,15-Jul-2016,1607-00319,0.00,110.00,R,Acumen Waste Services Ltd,No
Http://opendatacommunities.org/id/metropolitan-district-council/leeds,Leeds City Council,31/07/2016,Environment & Housing,Waste Management,Supplies and Services,Recycling & Reuse Charges,234,15-Jul-2016,1607-00320,0.00,220.00,R,Acumen Waste Services Ltd,No
Http://opendatacommunities.org/id/metropolitan-district-council/leeds,Leeds City Council,31/07/2016,Environment & Housing,Waste Management,Supplies and Services,Recycling & Reuse Charges,234,22-Jul-2016,1607-00321,0.00,110.00,R,Acumen Waste Services Ltd,No
Http://opendatacommunities.org/id/metropolitan-district-council/leeds,Leeds City Council,31/07/2016,Environment & Housing,Waste Management,Supplies and Services,Recycling & Reuse Charges,234,22-Jul-2016,1607-00322,0.00,220.00,R,Acumen Waste Services Ltd,No
Http://opendatacommunities.org/id/metropolitan-district-council/leeds,Leeds City Council,31/07/2016,Environment & Housing,Waste Management,Supplies and Services,Recycling & Reuse Charges,234,22-Jul-2016,1607-00323,0.00,4728.86,R,Acumen Waste Services Ltd,No
Http://opendatacommunities.org/id/metropolitan-district-council/leeds,Leeds City Council,31/07/2016,Environment & Housing,Waste Management,Supplies and Services,Recycling & Reuse Charges,234,22-Jul-2016,1607-00324,0.00,6658.46,R,Acumen Waste Services Ltd,No
Http://opendatacommunities.org/id/metropolitan-district-council/leeds,Leeds City Council,31/07/2016,Environment & Housing,Waste Management,Supplies and Services,Recycling & Reuse Charges,234,22-Jul-2016,1607-00325,0.00,4759.01,R,Acumen Waste Services Ltd,No
Http://opendatacommunities.org/id/metropolitan-district-council/leeds,Leeds City Council,31/07/2016,Environment & Housing,Waste Management,Supplies and Services,Recycling & Reuse Charges,234,22-Jul-2016,1607-00326,0.00,937.33,R,Acumen Waste Services Ltd,No
Http://opendatacommunities.org/id/metropolitan-district-council/leeds,Leeds City Council,31/07/2016,Environment & Housing,Waste Management,Supplies and Services,Recycling & Reuse Charges,234,29-Jul-2016,1607-00327,0.00,110.00,R,Acumen Waste Services Ltd,No
Http://opendatacommunities.org/id/metropolitan-district-council/leeds,Leeds City Council,31/07/2016,Environment & Housing,Waste Management,Supplies and Services,Recycling & Reuse Charges,234,29-Jul-2016,1607-00328,0.00,220.00,R,Acumen Waste Services Ltd,No
Http://opendatacommunities.org/id/metropolitan-district-council/leeds,Leeds City Council,31/07/2016,Environment & Housing,Waste Management,Supplies and Services,Recycling & Reuse Charges,234,29-Jul-2016,1607-00329,0.00,110.00,R,Acumen Waste Services Ltd,No
Http://opendatacommunities.org/id/metropolitan-district-council/leeds,Leeds City Council,31/07/2016,Environment & Housing,Waste Management,Supplies and Services,Recycling & Reuse Charges,234,29-Jul-2016,1607-00330,0.00,75.00,R,Acumen Waste Services Ltd,No
Http://opendatacommunities.org/id/metropolitan-district-council/leeds,Leeds City Council,31/07/2016,Environment & Housing,Parks and Countryside,Supplies and Services,Resaleable Materials,204,06-Jul-2016,1607-00331,0.00,366.60,R,Acushnet Europe Limited,No
Http://opendatacommunities.org/id/metropolitan-district-council/leeds,Leeds City Council,31/07/2016,Adult Social Care,Other Generic Services,Supplies and Services,Operational Furniture And Equipment,203,07-Jul-2016,1607-00332,0.00,5347.00,R,Acute Sales Limited,No
Http://opendatacommunities.org/id/metropolitan-district-council/leeds,Leeds City Council,31/07/2016,Adult Social Care,Other Generic Services,Supplies and Services,Operational Furniture And Equipment,203,15-Jul-2016,1607-00333,0.00,1549.00,R,Acute Sales Limited,No
Http://opendatacommunities.org/id/metropolitan-district-council/leeds,Leeds City Council,31/07/2016,Civic Enterprise Leeds,Business Support Centre,Supplies and Services,Operational Materials,205,13-Jul-2016,1607-00334,0.00,645.00,R,Ad3 Envelope Printers,No
Http://opendatacommunities.org/id/metropolitan-district-council/leeds,Leeds City Council,31/07/2016,Civic Enterprise Leeds,Business Support Centre,Supplies and Services,Other Hired And Contracted Services,265,13-Jul-2016,1607-00335,0.00,155.70,R,Ad3 Envelope Printers,No
Http://opendatacommunities.org/id/metropolitan-district-council/leeds,Leeds City Council,31/07/2016,Civic Enterprise Leeds,Business Support Centre,Supplies and Services,Other Hired And Contracted Services,265,22-Jul-2016,1607-00336,0.00,445.50,R,Ad3 Envelope Printers,No
Http://opendatacommunities.org/id/metropolitan-district-council/leeds,Leeds City Council,31/07/2016,City Development,Recreation,Employees,Training & Development,70,15-Jul-2016,1607-00337,0.00,500.00,R,REDACTED PERSONAL DATA,No
Http://opendatacommunities.org/id/metropolitan-district-council/leeds,Leeds City Council,31/07/2016,Adult Social Care,Services For Older People - 65 And Over,Third Party Payments,Nursing Home,570,27-Jul-2016,1607-00338,0.00,2120.00,R,Adbolton Hall,No
Http://opendatacommunities.org/id/metropolitan-district-council/leeds,Leeds City Council,31/07/2016,Childrens Services,Partnership Development & Leadership,Supplies and Services,Memberships,226,04-Jul-2016,1607-00339,0.00,3135.00,R,Adcs,No
Http://opendatacommunities.org/id/metropolitan-district-council/leeds,Leeds City Council,31/07/2016,Environment & Housing,Housing Leeds Service,Capital,Other Costs,7,01-Jul-2016,1607-00340,0.00,578.00,C,Addleshaw Goddard Llp,No
Http://opendatacommunities.org/id/metropolitan-district-council/leeds,Leeds City Council,31/07/2016,City Development,Economic Development,Capital,Land,1,28-Jul-2016,1607-00341,0.00,6250000.00,C,Addleshaw Goddard Llp,No
Http://opendatacommunities.org/id/metropolitan-district-council/leeds,Leeds City Council,31/07/2016,Central & Corporate,Technology  ,Employees,Agency Staff,8,02-Jun-2016,1607-00342,0.00,2300.00,R,Adecco Alfred Marks,Yes
Http://opendatacommunities.org/id/metropolitan-district-council/leeds,Leeds City Council,31/07/2016,Central & Corporate,Technology  ,Employees,Agency Staff,8,07-Jun-2016,1607-00343,0.00,1840.00,R,Adecco Alfred Marks,Yes
Http://opendatacommunities.org/id/metropolitan-district-council/leeds,Leeds City Council,31/07/2016,Citizens and Communities,Elections  Licensing and Registration,Premises,Rents,141,04-Jul-2016,1607-00344,0.00,320.00,R,Adel Methodist Church Trustees,No
Http://opendatacommunities.org/id/metropolitan-district-council/leeds,Leeds City Council,31/07/2016,Childrens Services,Learning Skills & Universal,Third Party Payments,Services Rendered By Voluntary Sector,505,11-Jul-2016,1607-00345,0.00,567.45,R,Adel Pre School,No
Http://opendatacommunities.org/id/metropolitan-district-council/leeds,Leeds City Council,31/07/2016,Childrens Services,Learning Skills & Universal,Third Party Payments,Services Rendered By Voluntary Sector,505,18-Jul-2016,1607-00346,0.00,5898.36,R,Adel Pre School,No
Http://opendatacommunities.org/id/metropolitan-district-council/leeds,Leeds City Council,31/07/2016,Childrens Services,Safeguarding Targeted & Specialist,Third Party Payments,Placement Support,550,08-Jul-2016,1607-00347,0.00,96.00,R,Adel Quaker Meeting,No
Http://opendatacommunities.org/id/metropolitan-district-council/leeds,Leeds City Council,31/07/2016,Childrens Services,Learning Skills & Universal,Third Party Payments,Services Rendered By Other Organisations,511,18-Jul-2016,1607-00348,0.00,177.84,R,REDACTED PERSONAL DATA,No
Http://opendatacommunities.org/id/metropolitan-district-council/leeds,Leeds City Council,31/07/2016,Childrens Services,Learning Skills & Universal,Third Party Payments,Services Rendered By Other Organisations,511,18-Jul-2016,1607-00349,0.00,148.20,R,Adele Thompson,No
Http://opendatacommunities.org/id/metropolitan-district-council/leeds,Leeds City Council,31/07/2016,Adult Social Care,Services For Older People - 65 And Over,Third Party Payments,Residential,580,27-Jul-2016,1607-00350,0.00,1173.68,R,Adeline Lodge,No
Http://opendatacommunities.org/id/metropolitan-district-council/leeds,Leeds City Council,31/07/2016,Adult Social Care,Services For Older People - 65 And Over,Third Party Payments,Nursing Home,570,27-Jul-2016,1607-00351,0.00,1056.32,R,Aden House,No
Http://opendatacommunities.org/id/metropolitan-district-council/leeds,Leeds City Council,31/07/2016,Adult Social Care,Services For Older People - 65 And Over,Third Party Payments,Residential Care Dementia,571,27-Jul-2016,1607-00352,0.00,0.00,R,Aden House,No
Http://opendatacommunities.org/id/metropolitan-district-council/leeds,Leeds City Council,31/07/2016,Environment & Housing,Leeds Building Services,Supplies and Services,Operational Materials,205,15-Jul-2016,1607-00353,0.00,483.00,R,Adi Global,No
Http://opendatacommunities.org/id/metropolitan-district-council/leeds,Leeds City Council,31/07/2016,Environment & Housing,Leeds Building Services,Supplies and Services,Operational Materials,205,20-Jul-2016,1607-00354,0.00,79.61,R,Adi Global,No
Http://opendatacommunities.org/id/metropolitan-district-council/leeds,Leeds City Council,31/07/2016,Environment & Housing,Leeds Building Services,Supplies and Services,Operational Materials,205,20-Jul-2016,1607-00355,0.00,1572.77,R,Adi Global,No
Http://opendatacommunities.org/id/metropolitan-district-council/leeds,Leeds City Council,31/07/2016,Environment & Housing,Leeds Building Services,Supplies and Services,Operational Materials,205,29-Jul-2016,1607-00356,0.00,110.22,R,Adi Global,No
Http://opendatacommunities.org/id/metropolitan-district-council/leeds,Leeds City Council,31/07/2016,Environment & Housing,Community Safety  ,Supplies and Services,Other Hired And Contracted Services,265,08-Jun-2016,1607-00357,0.00,70.55,R,Adi-Gardiner Ltd,Yes
Http://opendatacommunities.org/id/metropolitan-district-council/leeds,Leeds City Council,31/07/2016,Civic Enterprise Leeds,Commercial Services,Transport,Vehicle Spares,345,15-Jul-2016,1607-00358,0.00,130.00,R,Adm Car Audio,No
Http://opendatacommunities.org/id/metropolitan-district-council/leeds,Leeds City Council,31/07/2016,Childrens Services,Safeguarding Targeted & Specialist,Third Party Payments,Independent Fostering Agencies,509,08-Jul-2016,1607-00359,0.00,2945.00,R,Adolescent And Childrens Trust,No
Http://opendatacommunities.org/id/metropolitan-district-council/leeds,Leeds City Council,31/07/2016,Childrens Services,Safeguarding Targeted & Specialist,Third Party Payments,Independent Fostering Agencies,509,08-Jul-2016,1607-00360,0.00,3045.00,R,Adolescent And Childrens Trust,No
Http://opendatacommunities.org/id/metropolitan-district-council/leeds,Leeds City Council,31/07/2016,Childrens Services,Safeguarding Targeted & Specialist,Third Party Payments,Independent Fostering Agencies,509,08-Jul-2016,1607-00361,0.00,900.00,R,Adolescent And Childrens Trust,No
Http://opendatacommunities.org/id/metropolitan-district-council/leeds,Leeds City Council,31/07/2016,Childrens Services,Safeguarding Targeted & Specialist,Third Party Payments,Independent Fostering Agencies,509,08-Jul-2016,1607-00362,0.00,3100.00,R,Adolescent And Childrens Trust,No
Http://opendatacommunities.org/id/metropolitan-district-council/leeds,Leeds City Council,31/07/2016,Childrens Services,Safeguarding Targeted & Specialist,Third Party Payments,Independent Fostering Agencies,509,08-Jul-2016,1607-00363,0.00,3100.00,R,Adolescent And Childrens Trust,No
Http://opendatacommunities.org/id/metropolitan-district-council/leeds,Leeds City Council as Accountable Body,31/07/2016,Social Services Pooled Budgets,Jcs For People With Learning Disabilitie,Third Party Payments,Residential,580,07-Jul-2016,1607-00364,0.00,2609.36,R,Adrian House,No
Http://opendatacommunities.org/id/metropolitan-district-council/leeds,Leeds City Council,31/07/2016,Environment & Housing,Strategic Housing Support,Supplies and Services,Other Hired And Contracted Services,265,01-Jul-2016,1607-00365,0.00,262.20,R,REDACTED PERSONAL DATA,No
Http://opendatacommunities.org/id/metropolitan-district-council/leeds,Leeds City Council,31/07/2016,Childrens Services,Learning Skills & Universal,Third Party Payments,Services Rendered By Other Organisations,511,11-Jul-2016,1607-00366,0.00,945.75,R,Adriana Wrzol,No
Http://opendatacommunities.org/id/metropolitan-district-council/leeds,Leeds City Council,31/07/2016,Childrens Services,Learning Skills & Universal,Third Party Payments,Services Rendered By Other Organisations,511,18-Jul-2016,1607-00367,0.00,988.00,R,Adriana Wrzol,No
Http://opendatacommunities.org/id/metropolitan-district-council/leeds,Leeds City Council,31/07/2016,Strategic Landlord,Housing Management,Premises,Premises Security Services,162,29-Jul-2016,1607-00368,0.00,487.76,R,Adt Fire And Security Plc,No
Http://opendatacommunities.org/id/metropolitan-district-council/leeds,Leeds City Council,31/07/2016,Civic Enterprise Leeds,Corporate Property Management,Premises,Maintenance Of Buildings,101,29-Jul-2016,1607-00369,0.00,200.00,R,Adt Fire And Security Plc,No
Http://opendatacommunities.org/id/metropolitan-district-council/leeds,Leeds City Council as Accountable Body,31/07/2016,Social Services Pooled Budgets,Jcs For People With Learning Disabilitie,Third Party Payments,Sheltered Accommodation,569,26-Jul-2016,1607-00370,0.00,1332.20,R,Adult Placement Services,No
Http://opendatacommunities.org/id/metropolitan-district-council/leeds,Leeds City Council as Accountable Body,31/07/2016,Social Services Pooled Budgets,Jcs For People With Learning Disabilitie,Third Party Payments,Sheltered Accommodation,569,26-Jul-2016,1607-00371,0.00,395.50,R,Adult Placement Services,No
Http://opendatacommunities.org/id/metropolitan-district-council/leeds,Leeds City Council as Accountable Body,31/07/2016,Social Services Pooled Budgets,Jcs For People With Learning Disabilitie,Third Party Payments,Sheltered Accommodation,569,29-Jul-2016,1607-00372,0.00,823.81,R,Adult Placement Services,No
Http://opendatacommunities.org/id/metropolitan-district-council/leeds,Leeds City Council,31/07/2016,Adult Social Care,Services For Adults Under 65 Mental/Dis,Third Party Payments,Nursing Home,570,27-Jul-2016,1607-00373,0.00,1541.96,R,Adult Supported Living Ltd,No
Http://opendatacommunities.org/id/metropolitan-district-council/leeds,Leeds City Council,31/07/2016,City Development,Libraries  Arts & Heritage,Supplies and Services,External Audit Fees,261,01-Jul-2016,1607-00374,0.00,85.00,R,Advance Stocks Ltd,No
Http://opendatacommunities.org/id/metropolitan-district-council/leeds,Leeds City Council,31/07/2016,City Development,Recreation,Supplies and Services,External Audit Fees,261,08-Jul-2016,1607-00375,0.00,235.00,R,Advance Stocks Ltd,No
Http://opendatacommunities.org/id/metropolitan-district-council/leeds,Leeds City Council,31/07/2016,City Development,Libraries  Arts & Heritage,Supplies and Services,External Audit Fees,261,29-Jul-2016,1607-00376,0.00,85.00,R,Advance Stocks Ltd,No
Http://opendatacommunities.org/id/metropolitan-district-council/leeds,Leeds City Council,31/07/2016,City Development,Libraries  Arts & Heritage,Supplies and Services,External Audit Fees,261,29-Jul-2016,1607-00377,0.00,85.00,R,Advance Stocks Ltd,No
Http://opendatacommunities.org/id/metropolitan-district-council/leeds,Leeds City Council as Accountable Body,31/07/2016,Social Services Pooled Budgets,Jcs For People With Learning Disabilitie,Third Party Payments,Day Centre,564,26-Jul-2016,1607-00378,0.00,454.20,R,Advitam Ltd,No
Http://opendatacommunities.org/id/metropolitan-district-council/leeds,Leeds City Council as Accountable Body,31/07/2016,Social Services Pooled Budgets,Jcs For People With Learning Disabilitie,Third Party Payments,Residential,580,27-Jul-2016,1607-00379,0.00,20213.48,R,Advitam Ltd,No
Http://opendatacommunities.org/id/metropolitan-district-council/leeds,Leeds City Council,31/07/2016,Adult Social Care,Services For Older People - 65 And Over,Third Party Payments,Payments To Voluntary Organisations,561,14-Jul-2016,1607-00380,0.00,83435.70,R,Advonet,No
Http://opendatacommunities.org/id/metropolitan-district-council/leeds,Leeds City Council,31/07/2016,City Development,Economic Development,Capital,Other Costs,7,08-Jul-2016,1607-00381,0.00,1946.40,C,Aecom Limited,No
Http://opendatacommunities.org/id/metropolitan-district-council/leeds,Leeds City Council,31/07/2016,City Development,Economic Development,Capital,Other Costs,7,18-Jul-2016,1607-00382,0.00,11258.00,C,Aecom Limited,No
Http://opendatacommunities.org/id/metropolitan-district-council/leeds,Leeds City Council,31/07/2016,Citizens and Communities,Elections  Licensing and Registration,Premises,Rents,141,22-Jul-2016,1607-00383,0.00,310.00,R,Affinity Sutton,No
Http://opendatacommunities.org/id/metropolitan-district-council/leeds,Leeds City Council,31/07/2016,Adult Social Care,Assessment And Care Management,Third Party Payments,Home Care,568,01-Jul-2016,1607-00384,0.00,526.68,R,Affinity Trust,No
Http://opendatacommunities.org/id/metropolitan-district-council/leeds,Leeds City Council,31/07/2016,Adult Social Care,Assessment And Care Management,Third Party Payments,Home Care,568,01-Jul-2016,1607-00385,0.00,311.17,R,Affinity Trust,No
Http://opendatacommunities.org/id/metropolitan-district-council/leeds,Leeds City Council as Accountable Body,31/07/2016,Social Services Pooled Budgets,Jcs For People With Learning Disabilitie,Third Party Payments,Home Care,568,05-Jul-2016,1607-00386,0.00,324.31,R,Affinity Trust,No
Http://opendatacommunities.org/id/metropolitan-district-council/leeds,Leeds City Council as Accountable Body,31/07/2016,Social Services Pooled Budgets,Jcs For People With Learning Disabilitie,Third Party Payments,Day Centre,564,11-Jul-2016,1607-00387,0.00,871.52,R,Affinity Trust,No
Http://opendatacommunities.org/id/metropolitan-district-council/leeds,Leeds City Council as Accountable Body,31/07/2016,Social Services Pooled Budgets,Jcs For People With Learning Disabilitie,Third Party Payments,Home Care,568,11-Jul-2016,1607-00388,0.00,394.29,R,Affinity Trust,No
Http://opendatacommunities.org/id/metropolitan-district-council/leeds,Leeds City Council as Accountable Body,31/07/2016,Social Services Pooled Budgets,Jcs For People With Learning Disabilitie,Third Party Payments,Day Centre,564,11-Jul-2016,1607-00389,0.00,3757.04,R,Affinity Trust,No
Http://opendatacommunities.org/id/metropolitan-district-council/leeds,Leeds City Council as Accountable Body,31/07/2016,Social Services Pooled Budgets,Jcs For People With Learning Disabilitie,Third Party Payments,Home Care,568,11-Jul-2016,1607-00390,0.00,1473.61,R,Affinity Trust,No
Http://opendatacommunities.org/id/metropolitan-district-council/leeds,Leeds City Council as Accountable Body,31/07/2016,Social Services Pooled Budgets,Jcs For People With Learning Disabilitie,Third Party Payments,Home Care,568,11-Jul-2016,1607-00391,0.00,754.20,R,Affinity Trust,No
Http://opendatacommunities.org/id/metropolitan-district-council/leeds,Leeds City Council as Accountable Body,31/07/2016,Social Services Pooled Budgets,Jcs For People With Learning Disabilitie,Third Party Payments,Home Care,568,11-Jul-2016,1607-00392,0.00,964.67,R,Affinity Trust,No
Http://opendatacommunities.org/id/metropolitan-district-council/leeds,Leeds City Council as Accountable Body,31/07/2016,Social Services Pooled Budgets,Jcs For People With Learning Disabilitie,Third Party Payments,Home Care,568,11-Jul-2016,1607-00393,0.00,1620.00,R,Affinity Trust,No
Http://opendatacommunities.org/id/metropolitan-district-council/leeds,Leeds City Council as Accountable Body,31/07/2016,Social Services Pooled Budgets,Jcs For People With Learning Disabilitie,Third Party Payments,Home Care,568,11-Jul-2016,1607-00394,0.00,921.80,R,Affinity Trust,No
Http://opendatacommunities.org/id/metropolitan-district-council/leeds,Leeds City Council as Accountable Body,31/07/2016,Social Services Pooled Budgets,Jcs For People With Learning Disabilitie,Third Party Payments,Home Care,568,11-Jul-2016,1607-00395,0.00,360.00,R,Affinity Trust,No
Http://opendatacommunities.org/id/metropolitan-district-council/leeds,Leeds City Council as Accountable Body,31/07/2016,Social Services Pooled Budgets,Jcs For People With Learning Disabilitie,Third Party Payments,Home Care,568,11-Jul-2016,1607-00396,0.00,337.22,R,Affinity Trust,No
Http://opendatacommunities.org/id/metropolitan-district-council/leeds,Leeds City Council as Accountable Body,31/07/2016,Social Services Pooled Budgets,Jcs For People With Learning Disabilitie,Third Party Payments,Home Care,568,11-Jul-2016,1607-00397,0.00,1206.72,R,Affinity Trust,No
Http://opendatacommunities.org/id/metropolitan-district-council/leeds,Leeds City Council as Accountable Body,31/07/2016,Social Services Pooled Budgets,Jcs For People With Learning Disabilitie,Third Party Payments,Day Centre,564,11-Jul-2016,1607-00398,0.00,667.76,R,Affinity Trust,No
Http://opendatacommunities.org/id/metropolitan-district-council/leeds,Leeds City Council as Accountable Body,31/07/2016,Social Services Pooled Budgets,Jcs For People With Learning Disabilitie,Third Party Payments,Day Centre,564,11-Jul-2016,1607-00399,0.00,2111.76,R,Affinity Trust,No
Http://opendatacommunities.org/id/metropolitan-district-council/leeds,Leeds City Council as Accountable Body,31/07/2016,Social Services Pooled Budgets,Jcs For People With Learning Disabilitie,Third Party Payments,Day Centre,564,11-Jul-2016,1607-00400,0.00,1260.00,R,Affinity Trust,No
Http://opendatacommunities.org/id/metropolitan-district-council/leeds,Leeds City Council,31/07/2016,Childrens Services,Safeguarding Targeted & Specialist,Third Party Payments,Section 17,551,12-Jul-2016,1607-00401,0.00,1661.25,R,Affinity Trust,No
Http://opendatacommunities.org/id/metropolitan-district-council/leeds,Leeds City Council as Accountable Body,31/07/2016,Social Services Pooled Budgets,Jcs For People With Learning Disabilitie,Third Party Payments,Home Care,568,15-Jul-2016,1607-00402,0.00,47.94,R,Affinity Trust,No
Http://opendatacommunities.org/id/metropolitan-district-council/leeds,Leeds City Council as Accountable Body,31/07/2016,Social Services Pooled Budgets,Jcs For People With Learning Disabilitie,Third Party Payments,Home Care,568,15-Jul-2016,1607-00403,0.00,990.76,R,Affinity Trust,No
Http://opendatacommunities.org/id/metropolitan-district-council/leeds,Leeds City Council as Accountable Body,31/07/2016,Social Services Pooled Budgets,Jcs For People With Learning Disabilitie,Third Party Payments,Home Care,568,15-Jul-2016,1607-00404,0.00,1078.65,R,Affinity Trust,No
Http://opendatacommunities.org/id/metropolitan-district-council/leeds,Leeds City Council as Accountable Body,31/07/2016,Social Services Pooled Budgets,Jcs For People With Learning Disabilitie,Third Party Payments,Home Care,568,15-Jul-2016,1607-00405,0.00,225.00,R,Affinity Trust,No
Http://opendatacommunities.org/id/metropolitan-district-council/leeds,Leeds City Council as Accountable Body,31/07/2016,Social Services Pooled Budgets,Jcs For People With Learning Disabilitie,Third Party Payments,Home Care,568,15-Jul-2016,1607-00406,0.00,1214.48,R,Affinity Trust,No
Http://opendatacommunities.org/id/metropolitan-district-council/leeds,Leeds City Council as Accountable Body,31/07/2016,Social Services Pooled Budgets,Jcs For People With Learning Disabilitie,Third Party Payments,Home Care,568,15-Jul-2016,1607-00407,0.00,287.64,R,Affinity Trust,No
Http://opendatacommunities.org/id/metropolitan-district-council/leeds,Leeds City Council as Accountable Body,31/07/2016,Social Services Pooled Budgets,Jcs For People With Learning Disabilitie,Third Party Payments,Home Care,568,15-Jul-2016,1607-00408,0.00,285.00,R,Affinity Trust,No
Http://opendatacommunities.org/id/metropolitan-district-council/leeds,Leeds City Council as Accountable Body,31/07/2016,Social Services Pooled Budgets,Jcs For People With Learning Disabilitie,Third Party Payments,Home Care,568,15-Jul-2016,1607-00409,0.00,4012.24,R,Affinity Trust,No
Http://opendatacommunities.org/id/metropolitan-district-council/leeds,Leeds City Council as Accountable Body,31/07/2016,Social Services Pooled Budgets,Jcs For People With Learning Disabilitie,Third Party Payments,Home Care,568,15-Jul-2016,1607-00410,0.00,336.40,R,Affinity Trust,No
Http://opendatacommunities.org/id/metropolitan-district-council/leeds,Leeds City Council as Accountable Body,31/07/2016,Social Services Pooled Budgets,Jcs For People With Learning Disabilitie,Third Party Payments,Home Care,568,15-Jul-2016,1607-00411,0.00,612.00,R,Affinity Trust,No
Http://opendatacommunities.org/id/metropolitan-district-council/leeds,Leeds City Council as Accountable Body,31/07/2016,Social Services Pooled Budgets,Jcs For People With Learning Disabilitie,Third Party Payments,Home Care,568,15-Jul-2016,1607-00412,0.00,255.68,R,Affinity Trust,No
Http://opendatacommunities.org/id/metropolitan-district-council/leeds,Leeds City Council as Accountable Body,31/07/2016,Social Services Pooled Budgets,Jcs For People With Learning Disabilitie,Third Party Payments,Day Centre,564,15-Jul-2016,1607-00413,0.00,312.48,R,Affinity Trust,No
Http://opendatacommunities.org/id/metropolitan-district-council/leeds,Leeds City Council as Accountable Body,31/07/2016,Social Services Pooled Budgets,Jcs For People With Learning Disabilitie,Third Party Payments,Home Care,568,15-Jul-2016,1607-00414,0.00,1386.00,R,Affinity Trust,No
Http://opendatacommunities.org/id/metropolitan-district-council/leeds,Leeds City Council as Accountable Body,31/07/2016,Social Services Pooled Budgets,Jcs For People With Learning Disabilitie,Third Party Payments,Home Care,568,15-Jul-2016,1607-00415,0.00,960.00,R,Affinity Trust,No
Http://opendatacommunities.org/id/metropolitan-district-council/leeds,Leeds City Council as Accountable Body,31/07/2016,Social Services Pooled Budgets,Jcs For People With Learning Disabilitie,Third Party Payments,Home Care,568,15-Jul-2016,1607-00416,0.00,810.00,R,Affinity Trust,No
Http://opendatacommunities.org/id/metropolitan-district-council/leeds,Leeds City Council as Accountable Body,31/07/2016,Social Services Pooled Budgets,Jcs For People With Learning Disabilitie,Third Party Payments,Home Care,568,15-Jul-2016,1607-00417,0.00,1365.00,R,Affinity Trust,No
Http://opendatacommunities.org/id/metropolitan-district-council/leeds,Leeds City Council as Accountable Body,31/07/2016,Social Services Pooled Budgets,Jcs For People With Learning Disabilitie,Third Party Payments,Home Care,568,15-Jul-2016,1607-00418,0.00,2110.50,R,Affinity Trust,No
Http://opendatacommunities.org/id/metropolitan-district-council/leeds,Leeds City Council as Accountable Body,31/07/2016,Social Services Pooled Budgets,Jcs For People With Learning Disabilitie,Third Party Payments,Home Care,568,15-Jul-2016,1607-00419,0.00,1810.06,R,Affinity Trust,No
Http://opendatacommunities.org/id/metropolitan-district-council/leeds,Leeds City Council as Accountable Body,31/07/2016,Social Services Pooled Budgets,Jcs For People With Learning Disabilitie,Third Party Payments,Home Care,568,15-Jul-2016,1607-00420,0.00,900.00,R,Affinity Trust,No
Http://opendatacommunities.org/id/metropolitan-district-council/leeds,Leeds City Council as Accountable Body,31/07/2016,Social Services Pooled Budgets,Jcs For People With Learning Disabilitie,Third Party Payments,Home Care,568,15-Jul-2016,1607-00421,0.00,3004.68,R,Affinity Trust,No
Http://opendatacommunities.org/id/metropolitan-district-council/leeds,Leeds City Council as Accountable Body,31/07/2016,Social Services Pooled Budgets,Jcs For People With Learning Disabilitie,Third Party Payments,Home Care,568,15-Jul-2016,1607-00422,0.00,-324.31,R,Affinity Trust,No
Http://opendatacommunities.org/id/metropolitan-district-council/leeds,Leeds City Council as Accountable Body,31/07/2016,Social Services Pooled Budgets,Jcs For People With Learning Disabilitie,Third Party Payments,Home Care,568,18-Jul-2016,1607-00423,0.00,1211.04,R,Affinity Trust,No
Http://opendatacommunities.org/id/metropolitan-district-council/leeds,Leeds City Council as Accountable Body,31/07/2016,Social Services Pooled Budgets,Jcs For People With Learning Disabilitie,Third Party Payments,Home Care,568,18-Jul-2016,1607-00424,0.00,559.30,R,Affinity Trust,No
Http://opendatacommunities.org/id/metropolitan-district-council/leeds,Leeds City Council as Accountable Body,31/07/2016,Social Services Pooled Budgets,Jcs For People With Learning Disabilitie,Third Party Payments,Home Care,568,18-Jul-2016,1607-00425,0.00,511.36,R,Affinity Trust,No
Http://opendatacommunities.org/id/metropolitan-district-council/leeds,Leeds City Council as Accountable Body,31/07/2016,Social Services Pooled Budgets,Jcs For People With Learning Disabilitie,Third Party Payments,Home Care,568,18-Jul-2016,1607-00426,0.00,1102.62,R,Affinity Trust,No
Http://opendatacommunities.org/id/metropolitan-district-council/leeds,Leeds City Council as Accountable Body,31/07/2016,Social Services Pooled Budgets,Jcs For People With Learning Disabilitie,Third Party Payments,Home Care,568,18-Jul-2016,1607-00427,0.00,735.08,R,Affinity Trust,No
Http://opendatacommunities.org/id/metropolitan-district-council/leeds,Leeds City Council as Accountable Body,31/07/2016,Social Services Pooled Budgets,Jcs For People With Learning Disabilitie,Third Party Payments,Home Care,568,18-Jul-2016,1607-00428,0.00,575.28,R,Affinity Trust,No
Http://opendatacommunities.org/id/metropolitan-district-council/leeds,Leeds City Council as Accountable Body,31/07/2016,Social Services Pooled Budgets,Jcs For People With Learning Disabilitie,Third Party Payments,Home Care,568,18-Jul-2016,1607-00429,0.00,479.40,R,Affinity Trust,No
Http://opendatacommunities.org/id/metropolitan-district-council/leeds,Leeds City Council as Accountable Body,31/07/2016,Social Services Pooled Budgets,Jcs For People With Learning Disabilitie,Third Party Payments,Home Care,568,18-Jul-2016,1607-00430,0.00,408.00,R,Affinity Trust,No
Http://opendatacommunities.org/id/metropolitan-district-council/leeds,Leeds City Council as Accountable Body,31/07/2016,Social Services Pooled Budgets,Jcs For People With Learning Disabilitie,Third Party Payments,Home Care,568,18-Jul-2016,1607-00431,0.00,1150.56,R,Affinity Trust,No
Http://opendatacommunities.org/id/metropolitan-district-council/leeds,Leeds City Council as Accountable Body,31/07/2016,Social Services Pooled Budgets,Jcs For People With Learning Disabilitie,Third Party Payments,Home Care,568,18-Jul-2016,1607-00432,0.00,2516.85,R,Affinity Trust,No
Http://opendatacommunities.org/id/metropolitan-district-council/leeds,Leeds City Council as Accountable Body,31/07/2016,Social Services Pooled Budgets,Jcs For People With Learning Disabilitie,Third Party Payments,Home Care,568,18-Jul-2016,1607-00433,0.00,511.36,R,Affinity Trust,No
Http://opendatacommunities.org/id/metropolitan-district-council/leeds,Leeds City Council as Accountable Body,31/07/2016,Social Services Pooled Budgets,Jcs For People With Learning Disabilitie,Third Party Payments,Home Care,568,18-Jul-2016,1607-00434,0.00,127.84,R,Affinity Trust,No
Http://opendatacommunities.org/id/metropolitan-district-council/leeds,Leeds City Council as Accountable Body,31/07/2016,Social Services Pooled Budgets,Jcs For People With Learning Disabilitie,Third Party Payments,Home Care,568,18-Jul-2016,1607-00435,0.00,306.48,R,Affinity Trust,No
Http://opendatacommunities.org/id/metropolitan-district-council/leeds,Leeds City Council as Accountable Body,31/07/2016,Social Services Pooled Budgets,Jcs For People With Learning Disabilitie,Third Party Payments,Home Care,568,18-Jul-2016,1607-00436,0.00,941.92,R,Affinity Trust,No
Http://opendatacommunities.org/id/metropolitan-district-council/leeds,Leeds City Council as Accountable Body,31/07/2016,Social Services Pooled Budgets,Jcs For People With Learning Disabilitie,Third Party Payments,Home Care,568,18-Jul-2016,1607-00437,0.00,247.69,R,Affinity Trust,No
Http://opendatacommunities.org/id/metropolitan-district-council/leeds,Leeds City Council as Accountable Body,31/07/2016,Social Services Pooled Budgets,Jcs For People With Learning Disabilitie,Third Party Payments,Day Centre,564,27-Jul-2016,1607-00438,0.00,1350.00,R,Affinity Trust,No
Http://opendatacommunities.org/id/metropolitan-district-council/leeds,Leeds City Council as Accountable Body,31/07/2016,Social Services Pooled Budgets,Jcs For People With Learning Disabilitie,Third Party Payments,Day Centre,564,27-Jul-2016,1607-00439,0.00,1080.00,R,Affinity Trust,No
Http://opendatacommunities.org/id/metropolitan-district-council/leeds,Leeds City Council as Accountable Body,31/07/2016,Social Services Pooled Budgets,Jcs For People With Learning Disabilitie,Third Party Payments,Home Care,568,27-Jul-2016,1607-00440,0.00,1050.00,R,Affinity Trust,No
Http://opendatacommunities.org/id/metropolitan-district-council/leeds,Leeds City Council as Accountable Body,31/07/2016,Social Services Pooled Budgets,Jcs For People With Learning Disabilitie,Third Party Payments,Home Care,568,27-Jul-2016,1607-00441,0.00,900.00,R,Affinity Trust,No
Http://opendatacommunities.org/id/metropolitan-district-council/leeds,Leeds City Council as Accountable Body,31/07/2016,Social Services Pooled Budgets,Jcs For People With Learning Disabilitie,Third Party Payments,Home Care,568,27-Jul-2016,1607-00442,0.00,360.00,R,Affinity Trust,No
Http://opendatacommunities.org/id/metropolitan-district-council/leeds,Leeds City Council as Accountable Body,31/07/2016,Social Services Pooled Budgets,Jcs For People With Learning Disabilitie,Third Party Payments,Home Care,568,27-Jul-2016,1607-00443,0.00,47.94,R,Affinity Trust,No
Http://opendatacommunities.org/id/metropolitan-district-council/leeds,Leeds City Council as Accountable Body,31/07/2016,Social Services Pooled Budgets,Jcs For People With Learning Disabilitie,Third Party Payments,Home Care,568,27-Jul-2016,1607-00444,0.00,1014.73,R,Affinity Trust,No
Http://opendatacommunities.org/id/metropolitan-district-council/leeds,Leeds City Council as Accountable Body,31/07/2016,Social Services Pooled Budgets,Jcs For People With Learning Disabilitie,Third Party Payments,Home Care,568,27-Jul-2016,1607-00445,0.00,300.00,R,Affinity Trust,No
Http://opendatacommunities.org/id/metropolitan-district-council/leeds,Leeds City Council as Accountable Body,31/07/2016,Social Services Pooled Budgets,Jcs For People With Learning Disabilitie,Third Party Payments,Home Care,568,27-Jul-2016,1607-00446,0.00,1222.47,R,Affinity Trust,No
Http://opendatacommunities.org/id/metropolitan-district-council/leeds,Leeds City Council as Accountable Body,31/07/2016,Social Services Pooled Budgets,Jcs For People With Learning Disabilitie,Third Party Payments,Home Care,568,27-Jul-2016,1607-00447,0.00,270.00,R,Affinity Trust,No
Http://opendatacommunities.org/id/metropolitan-district-council/leeds,Leeds City Council as Accountable Body,31/07/2016,Social Services Pooled Budgets,Jcs For People With Learning Disabilitie,Third Party Payments,Home Care,568,27-Jul-2016,1607-00448,0.00,3663.49,R,Affinity Trust,No
Http://opendatacommunities.org/id/metropolitan-district-council/leeds,Leeds City Council as Accountable Body,31/07/2016,Social Services Pooled Budgets,Jcs For People With Learning Disabilitie,Third Party Payments,Home Care,568,27-Jul-2016,1607-00449,0.00,336.40,R,Affinity Trust,No
Http://opendatacommunities.org/id/metropolitan-district-council/leeds,Leeds City Council as Accountable Body,31/07/2016,Social Services Pooled Budgets,Jcs For People With Learning Disabilitie,Third Party Payments,Home Care,568,27-Jul-2016,1607-00450,0.00,255.68,R,Affinity Trust,No
Http://opendatacommunities.org/id/metropolitan-district-council/leeds,Leeds City Council as Accountable Body,31/07/2016,Social Services Pooled Budgets,Jcs For People With Learning Disabilitie,Third Party Payments,Day Centre,564,27-Jul-2016,1607-00451,0.00,364.56,R,Affinity Trust,No
Http://opendatacommunities.org/id/metropolitan-district-council/leeds,Leeds City Council as Accountable Body,31/07/2016,Social Services Pooled Budgets,Jcs For People With Learning Disabilitie,Third Party Payments,Home Care,568,27-Jul-2016,1607-00452,0.00,751.06,R,Affinity Trust,No
Http://opendatacommunities.org/id/metropolitan-district-council/leeds,Leeds City Council as Accountable Body,31/07/2016,Social Services Pooled Budgets,Jcs For People With Learning Disabilitie,Third Party Payments,Home Care,568,27-Jul-2016,1607-00453,0.00,1452.00,R,Affinity Trust,No
Http://opendatacommunities.org/id/metropolitan-district-council/leeds,Leeds City Council as Accountable Body,31/07/2016,Social Services Pooled Budgets,Jcs For People With Learning Disabilitie,Third Party Payments,Home Care,568,27-Jul-2016,1607-00454,0.00,1202.63,R,Affinity Trust,No
Http://opendatacommunities.org/id/metropolitan-district-council/leeds,Leeds City Council as Accountable Body,31/07/2016,Social Services Pooled Budgets,Jcs For People With Learning Disabilitie,Third Party Payments,Home Care,568,27-Jul-2016,1607-00455,0.00,335.58,R,Affinity Trust,No
Http://opendatacommunities.org/id/metropolitan-district-council/leeds,Leeds City Council as Accountable Body,31/07/2016,Social Services Pooled Budgets,Jcs For People With Learning Disabilitie,Third Party Payments,Home Care,568,27-Jul-2016,1607-00456,0.00,511.36,R,Affinity Trust,No
Http://opendatacommunities.org/id/metropolitan-district-council/leeds,Leeds City Council as Accountable Body,31/07/2016,Social Services Pooled Budgets,Jcs For People With Learning Disabilitie,Third Party Payments,Home Care,568,27-Jul-2016,1607-00457,0.00,1134.58,R,Affinity Trust,No
Http://opendatacommunities.org/id/metropolitan-district-council/leeds,Leeds City Council as Accountable Body,31/07/2016,Social Services Pooled Budgets,Jcs For People With Learning Disabilitie,Third Party Payments,Home Care,568,27-Jul-2016,1607-00458,0.00,431.46,R,Affinity Trust,No
Http://opendatacommunities.org/id/metropolitan-district-council/leeds,Leeds City Council as Accountable Body,31/07/2016,Social Services Pooled Budgets,Jcs For People With Learning Disabilitie,Third Party Payments,Home Care,568,27-Jul-2016,1607-00459,0.00,639.20,R,Affinity Trust,No
Http://opendatacommunities.org/id/metropolitan-district-council/leeds,Leeds City Council as Accountable Body,31/07/2016,Social Services Pooled Budgets,Jcs For People With Learning Disabilitie,Third Party Payments,Home Care,568,27-Jul-2016,1607-00460,0.00,306.00,R,Affinity Trust,No
Http://opendatacommunities.org/id/metropolitan-district-council/leeds,Leeds City Council as Accountable Body,31/07/2016,Social Services Pooled Budgets,Jcs For People With Learning Disabilitie,Third Party Payments,Home Care,568,27-Jul-2016,1607-00461,0.00,1150.56,R,Affinity Trust,No
Http://opendatacommunities.org/id/metropolitan-district-council/leeds,Leeds City Council as Accountable Body,31/07/2016,Social Services Pooled Budgets,Jcs For People With Learning Disabilitie,Third Party Payments,Home Care,568,27-Jul-2016,1607-00462,0.00,2404.99,R,Affinity Trust,No
Http://opendatacommunities.org/id/metropolitan-district-council/leeds,Leeds City Council as Accountable Body,31/07/2016,Social Services Pooled Budgets,Jcs For People With Learning Disabilitie,Third Party Payments,Home Care,568,27-Jul-2016,1607-00463,0.00,127.84,R,Affinity Trust,No
Http://opendatacommunities.org/id/metropolitan-district-council/leeds,Leeds City Council as Accountable Body,31/07/2016,Social Services Pooled Budgets,Jcs For People With Learning Disabilitie,Third Party Payments,Home Care,568,27-Jul-2016,1607-00464,0.00,306.48,R,Affinity Trust,No
Http://opendatacommunities.org/id/metropolitan-district-council/leeds,Leeds City Council as Accountable Body,31/07/2016,Social Services Pooled Budgets,Jcs For People With Learning Disabilitie,Third Party Payments,Home Care,568,27-Jul-2016,1607-00465,0.00,941.92,R,Affinity Trust,No
Http://opendatacommunities.org/id/metropolitan-district-council/leeds,Leeds City Council as Accountable Body,31/07/2016,Social Services Pooled Budgets,Jcs For People With Learning Disabilitie,Third Party Payments,Home Care,568,27-Jul-2016,1607-00466,0.00,255.68,R,Affinity Trust,No
Http://opendatacommunities.org/id/metropolitan-district-council/leeds,Leeds City Council as Accountable Body,31/07/2016,Social Services Pooled Budgets,Jcs For People With Learning Disabilitie,Third Party Payments,Home Care,568,27-Jul-2016,1607-00467,0.00,894.88,R,Affinity Trust,No
Http://opendatacommunities.org/id/metropolitan-district-council/leeds,Leeds City Council as Accountable Body,31/07/2016,Social Services Pooled Budgets,Jcs For People With Learning Disabilitie,Third Party Payments,Home Care,568,29-Jul-2016,1607-00468,0.00,967.50,R,Affinity Trust,No
Http://opendatacommunities.org/id/metropolitan-district-council/leeds,Leeds City Council as Accountable Body,31/07/2016,Social Services Pooled Budgets,Jcs For People With Learning Disabilitie,Third Party Payments,Day Centre,564,29-Jul-2016,1607-00469,0.00,1260.00,R,Affinity Trust,No
Http://opendatacommunities.org/id/metropolitan-district-council/leeds,Leeds City Council as Accountable Body,31/07/2016,Social Services Pooled Budgets,Jcs For People With Learning Disabilitie,Third Party Payments,Day Centre,564,29-Jul-2016,1607-00470,0.00,1080.00,R,Affinity Trust,No
Http://opendatacommunities.org/id/metropolitan-district-council/leeds,Leeds City Council as Accountable Body,31/07/2016,Social Services Pooled Budgets,Jcs For People With Learning Disabilitie,Third Party Payments,Home Care,568,29-Jul-2016,1607-00471,0.00,1910.64,R,Affinity Trust,No
Http://opendatacommunities.org/id/metropolitan-district-council/leeds,Leeds City Council as Accountable Body,31/07/2016,Social Services Pooled Budgets,Jcs For People With Learning Disabilitie,Third Party Payments,Home Care,568,29-Jul-2016,1607-00472,0.00,3160.78,R,Affinity Trust,No
Http://opendatacommunities.org/id/metropolitan-district-council/leeds,Leeds City Council as Accountable Body,31/07/2016,Social Services Pooled Budgets,Jcs For People With Learning Disabilitie,Third Party Payments,Home Care,568,29-Jul-2016,1607-00473,0.00,454.95,R,Affinity Trust,No
Http://opendatacommunities.org/id/metropolitan-district-council/leeds,Leeds City Council as Accountable Body,31/07/2016,Social Services Pooled Budgets,Jcs For People With Learning Disabilitie,Third Party Payments,Home Care,568,29-Jul-2016,1607-00474,0.00,1534.27,R,Affinity Trust,No
Http://opendatacommunities.org/id/metropolitan-district-council/leeds,Leeds City Council as Accountable Body,31/07/2016,Social Services Pooled Budgets,Jcs For People With Learning Disabilitie,Third Party Payments,Home Care,568,29-Jul-2016,1607-00475,0.00,754.20,R,Affinity Trust,No
Http://opendatacommunities.org/id/metropolitan-district-council/leeds,Leeds City Council as Accountable Body,31/07/2016,Social Services Pooled Budgets,Jcs For People With Learning Disabilitie,Third Party Payments,Home Care,568,29-Jul-2016,1607-00476,0.00,1433.95,R,Affinity Trust,No
Http://opendatacommunities.org/id/metropolitan-district-council/leeds,Leeds City Council as Accountable Body,31/07/2016,Social Services Pooled Budgets,Jcs For People With Learning Disabilitie,Third Party Payments,Home Care,568,29-Jul-2016,1607-00477,0.00,1710.00,R,Affinity Trust,No
Http://opendatacommunities.org/id/metropolitan-district-council/leeds,Leeds City Council as Accountable Body,31/07/2016,Social Services Pooled Budgets,Jcs For People With Learning Disabilitie,Third Party Payments,Home Care,568,29-Jul-2016,1607-00478,0.00,1005.60,R,Affinity Trust,No
Http://opendatacommunities.org/id/metropolitan-district-council/leeds,Leeds City Council as Accountable Body,31/07/2016,Social Services Pooled Budgets,Jcs For People With Learning Disabilitie,Third Party Payments,Home Care,568,29-Jul-2016,1607-00479,0.00,1206.72,R,Affinity Trust,No
Http://opendatacommunities.org/id/metropolitan-district-council/leeds,Leeds City Council as Accountable Body,31/07/2016,Social Services Pooled Budgets,Jcs For People With Learning Disabilitie,Third Party Payments,Day Centre,564,29-Jul-2016,1607-00480,0.00,714.78,R,Affinity Trust,No
Http://opendatacommunities.org/id/metropolitan-district-council/leeds,Leeds City Council as Accountable Body,31/07/2016,Social Services Pooled Budgets,Jcs For People With Learning Disabilitie,Third Party Payments,Day Centre,564,29-Jul-2016,1607-00481,0.00,2229.08,R,Affinity Trust,No
Http://opendatacommunities.org/id/metropolitan-district-council/leeds,Leeds City Council as Accountable Body,31/07/2016,Social Services Pooled Budgets,Jcs For People With Learning Disabilitie,Third Party Payments,Day Centre,564,29-Jul-2016,1607-00482,0.00,1350.00,R,Affinity Trust,No
Http://opendatacommunities.org/id/metropolitan-district-council/leeds,Leeds City Council as Accountable Body,31/07/2016,Social Services Pooled Budgets,Jcs For People With Learning Disabilitie,Third Party Payments,Sheltered Accommodation,569,27-Jul-2016,1607-00483,0.00,97473.87,R,Affinity Trust North Divisional Office,No
Http://opendatacommunities.org/id/metropolitan-district-council/leeds,Leeds City Council as Accountable Body,31/07/2016,Social Services Pooled Budgets,Jcs For People With Learning Disabilitie,Third Party Payments,Residential,580,27-Jul-2016,1607-00484,0.00,6193.32,R,Affinity Trust North Divisional Office,No
Http://opendatacommunities.org/id/metropolitan-district-council/leeds,Leeds City Council,31/07/2016,Adult Social Care,Services For Older People - 65 And Over,Third Party Payments,Payments To Voluntary Organisations,561,01-Jul-2016,1607-00485,0.00,8024.75,R,Age Uk Leeds,No
Http://opendatacommunities.org/id/metropolitan-district-council/leeds,Leeds City Council,31/07/2016,Childrens Services,Learning Skills & Universal,Supplies and Services,College Contracts,276,07-Jul-2016,1607-00486,0.00,11700.00,R,Age Uk Leeds,No
Http://opendatacommunities.org/id/metropolitan-district-council/leeds,Leeds City Council,31/07/2016,Environment & Housing,SP Contracts & SECC,Third Party Payments,Supporting Ppl - Block Gross Chargeable,514,07-Jul-2016,1607-00487,0.00,3957.68,R,Age Uk Leeds,No
Http://opendatacommunities.org/id/metropolitan-district-council/leeds,Leeds City Council,31/07/2016,City Development,Libraries  Arts & Heritage,Supplies and Services,Other Hired And Contracted Services,265,08-Jul-2016,1607-00488,0.00,1500.00,R,Agency Group,No
Http://opendatacommunities.org/id/metropolitan-district-council/leeds,Leeds City Council,31/07/2016,City Development,Libraries  Arts & Heritage,Supplies and Services,Other Hired And Contracted Services,265,19-Jul-2016,1607-00489,0.00,1000.00,R,Agency Group,No
Http://opendatacommunities.org/id/metropolitan-district-council/leeds,Leeds City Council,31/07/2016,City Development,Libraries  Arts & Heritage,Supplies and Services,Bought In Professional Services,277,11-Jul-2016,1607-00490,0.00,300.00,R,Agere Learning,No
Http://opendatacommunities.org/id/metropolitan-district-council/leeds,Leeds City Council,31/07/2016,City Development,Libraries  Arts & Heritage,Supplies and Services,Bought In Professional Services,277,11-Jul-2016,1607-00491,0.00,501.00,R,Agere Learning,No
Http://opendatacommunities.org/id/metropolitan-district-council/leeds,Leeds City Council,31/07/2016,City Development,Libraries  Arts & Heritage,Supplies and Services,Bought In Professional Services,277,11-Jul-2016,1607-00492,0.00,967.00,R,Agere Learning,No
Http://opendatacommunities.org/id/metropolitan-district-council/leeds,Leeds City Council,31/07/2016,Citizens and Communities,Elections  Licensing and Registration,Premises,Rents,141,07-Jul-2016,1607-00493,0.00,50.00,R,REDACTED PERSONAL DATA,No
Http://opendatacommunities.org/id/metropolitan-district-council/leeds,Leeds City Council,31/07/2016,Adult Social Care,Services For Older People Under 65 P/Dis,Third Party Payments,Residential,580,27-Jul-2016,1607-00494,0.00,5598.40,R,Agricola House,No
Http://opendatacommunities.org/id/metropolitan-district-council/leeds,Leeds City Council as Accountable Body,31/07/2016,Social Services Pooled Budgets,Leeds Community Equip Store Pooled Budgt,Supplies and Services,Other Equipment,203,01-Jul-2016,1607-00495,0.00,2354.00,R,Aidapt Bathrooms Ltd,No
Http://opendatacommunities.org/id/metropolitan-district-council/leeds,Leeds City Council as Accountable Body,31/07/2016,Social Services Pooled Budgets,Leeds Community Equip Store Pooled Budgt,Supplies and Services,Other Equipment,203,01-Jul-2016,1607-00496,0.00,1368.50,R,Aidapt Bathrooms Ltd,No
Http://opendatacommunities.org/id/metropolitan-district-council/leeds,Leeds City Council as Accountable Body,31/07/2016,Social Services Pooled Budgets,Leeds Community Equip Store Pooled Budgt,Supplies and Services,Other Equipment,203,08-Jul-2016,1607-00497,0.00,2450.00,R,Aidapt Bathrooms Ltd,No
Http://opendatacommunities.org/id/metropolitan-district-council/leeds,Leeds City Council as Accountable Body,31/07/2016,Social Services Pooled Budgets,Leeds Community Equip Store Pooled Budgt,Supplies and Services,Other Equipment,203,15-Jul-2016,1607-00498,0.00,131.97,R,Aidapt Bathrooms Ltd,No
Http://opendatacommunities.org/id/metropolitan-district-council/leeds,Leeds City Council as Accountable Body,31/07/2016,Social Services Pooled Budgets,Leeds Community Equip Store Pooled Budgt,Supplies and Services,Other Equipment,203,22-Jul-2016,1607-00499,0.00,155.00,R,Aidapt Bathrooms Ltd,No
Http://opendatacommunities.org/id/metropolitan-district-council/leeds,Leeds City Council as Accountable Body,31/07/2016,Social Services Pooled Budgets,Leeds Community Equip Store Pooled Budgt,Supplies and Services,Other Equipment,203,28-Jul-2016,1607-00500,0.00,2125.00,R,Aidapt Bathrooms Ltd,No
Http://opendatacommunities.org/id/metropolitan-district-council/leeds,Leeds City Council as Accountable Body,31/07/2016,Social Services Pooled Budgets,Leeds Community Equip Store Pooled Budgt,Supplies and Services,Other Equipment,203,28-Jul-2016,1607-00501,0.00,387.00,R,Aidapt Bathrooms Ltd,No
Http://opendatacommunities.org/id/metropolitan-district-council/leeds,Leeds City Council as Accountable Body,31/07/2016,Social Services Pooled Budgets,Jcs For People With Learning Disabilitie,Third Party Payments,Home Care,568,13-Jul-2016,1607-00502,0.00,54.90,R,Aid-Call Ltd,No
Http://opendatacommunities.org/id/metropolitan-district-council/leeds,Leeds City Council as Accountable Body,31/07/2016,Social Services Pooled Budgets,Jcs For People With Learning Disabilitie,Supplies and Services,Other Equipment,203,06-Jul-2016,1607-00503,0.00,576.90,R,Aidservice Ltd,No
Http://opendatacommunities.org/id/metropolitan-district-council/leeds,Leeds City Council as Accountable Body,31/07/2016,Social Services Pooled Budgets,Jcs For People With Learning Disabilitie,Supplies and Services,Other Equipment,203,06-Jul-2016,1607-00504,0.00,325.00,R,Aidservice Ltd,No
Http://opendatacommunities.org/id/metropolitan-district-council/leeds,Leeds City Council as Accountable Body,31/07/2016,Social Services Pooled Budgets,Jcs For People With Learning Disabilitie,Supplies and Services,Other Equipment,203,22-Jul-2016,1607-00505,0.00,636.00,R,Aidservice Ltd,No
Http://opendatacommunities.org/id/metropolitan-district-council/leeds,Leeds City Council as Accountable Body,31/07/2016,Social Services Pooled Budgets,Jcs For People With Learning Disabilitie,Supplies and Services,Other Equipment,203,29-Jul-2016,1607-00506,0.00,170.00,R,Aidservice Ltd,No
Http://opendatacommunities.org/id/metropolitan-district-council/leeds,Leeds City Council,31/07/2016,Environment & Housing,Leeds Building Services,Supplies and Services,Operational Materials,205,06-Jul-2016,1607-00507,0.00,12.96,R,Air Conditioning Accessories,No
Http://opendatacommunities.org/id/metropolitan-district-council/leeds,Leeds City Council,31/07/2016,Environment & Housing,Leeds Building Services,Supplies and Services,Operational Materials,205,06-Jul-2016,1607-00508,0.00,19.96,R,Air Conditioning Accessories,No
Http://opendatacommunities.org/id/metropolitan-district-council/leeds,Leeds City Council,31/07/2016,Environment & Housing,Leeds Building Services,Supplies and Services,Operational Materials,205,15-Jul-2016,1607-00509,0.00,554.32,R,Air Conditioning Accessories,No
Http://opendatacommunities.org/id/metropolitan-district-council/leeds,Leeds City Council,31/07/2016,Environment & Housing,Leeds Building Services,Supplies and Services,Operational Materials,205,20-Jul-2016,1607-00510,0.00,179.34,R,Air Conditioning Accessories,No
Http://opendatacommunities.org/id/metropolitan-district-council/leeds,Leeds City Council,31/07/2016,Environment & Housing,Leeds Building Services,Supplies and Services,Operational Materials,205,20-Jul-2016,1607-00511,0.00,91.28,R,Air Conditioning Accessories,No
Http://opendatacommunities.org/id/metropolitan-district-council/leeds,Leeds City Council,31/07/2016,Environment & Housing,Leeds Building Services,Supplies and Services,Operational Materials,205,20-Jul-2016,1607-00512,0.00,204.84,R,Air Conditioning Accessories,No
Http://opendatacommunities.org/id/metropolitan-district-council/leeds,Leeds City Council,31/07/2016,Environment & Housing,Leeds Building Services,Supplies and Services,Operational Materials,205,20-Jul-2016,1607-00513,0.00,65.12,R,Air Conditioning Accessories,No
Http://opendatacommunities.org/id/metropolitan-district-council/leeds,Leeds City Council,31/07/2016,Environment & Housing,Leeds Building Services,Supplies and Services,Operational Materials,205,20-Jul-2016,1607-00514,0.00,148.29,R,Air Conditioning Accessories,No
Http://opendatacommunities.org/id/metropolitan-district-council/leeds,Leeds City Council,31/07/2016,Environment & Housing,Leeds Building Services,Supplies and Services,Operational Materials,205,29-Jul-2016,1607-00515,0.00,326.74,R,Air Conditioning Accessories,No
Http://opendatacommunities.org/id/metropolitan-district-council/leeds,Leeds City Council,31/07/2016,Environment & Housing,Leeds Building Services,Supplies and Services,Operational Materials,205,29-Jul-2016,1607-00516,0.00,14.90,R,Air Conditioning Accessories,No
Http://opendatacommunities.org/id/metropolitan-district-council/leeds,Leeds City Council,31/07/2016,Environment & Housing,Leeds Building Services,Supplies and Services,Operational Materials,205,29-Jul-2016,1607-00517,0.00,56.28,R,Air Conditioning Accessories,No
Http://opendatacommunities.org/id/metropolitan-district-council/leeds,Leeds City Council,31/07/2016,Environment & Housing,Leeds Building Services,Supplies and Services,Operational Materials,205,29-Jul-2016,1607-00518,0.00,103.08,R,Air Conditioning Accessories,No
Http://opendatacommunities.org/id/metropolitan-district-council/leeds,Leeds City Council,31/07/2016,City Development,Economic Development  ,Premises,Plant and Machinery,102,03-Jun-2016,1607-00519,0.00,179.55,R,Air Force Pneumati,Yes
Http://opendatacommunities.org/id/metropolitan-district-council/leeds,Leeds City Council,31/07/2016,Environment & Housing,Leeds Building Services,Supplies and Services,Operational Materials,205,01-Jul-2016,1607-00520,0.00,152.40,R,Air Liquide Uk,No
Http://opendatacommunities.org/id/metropolitan-district-council/leeds,Leeds City Council,31/07/2016,Environment & Housing,Leeds Building Services,Supplies and Services,Operational Materials,205,15-Jul-2016,1607-00521,0.00,74.00,R,Air Liquide Uk,No
Http://opendatacommunities.org/id/metropolitan-district-council/leeds,Leeds City Council,31/07/2016,Environment & Housing,Leeds Building Services,Supplies and Services,Operational Materials,205,15-Jul-2016,1607-00522,0.00,10.00,R,Air Liquide Uk,No
Http://opendatacommunities.org/id/metropolitan-district-council/leeds,Leeds City Council,31/07/2016,Environment & Housing,Environmental Health,Supplies and Services,Other Hired And Contracted Services,265,19-Jul-2016,1607-00523,0.00,13.63,R,Air Liquide Uk,No
Http://opendatacommunities.org/id/metropolitan-district-council/leeds,Leeds City Council,31/07/2016,Environment & Housing,Environmental Health,Supplies and Services,Other Hired And Contracted Services,265,21-Jul-2016,1607-00524,0.00,13.63,R,Air Liquide Uk,No
Http://opendatacommunities.org/id/metropolitan-district-council/leeds,Leeds City Council,31/07/2016,Environment & Housing,Environmental Health,Supplies and Services,Other Hired And Contracted Services,265,21-Jul-2016,1607-00525,0.00,62.58,R,Air Liquide Uk,No
Http://opendatacommunities.org/id/metropolitan-district-council/leeds,Leeds City Council,31/07/2016,Environment & Housing,Parks and Countryside,Supplies and Services,Operational Furniture And Equipment,203,11-Jul-2016,1607-00526,0.00,540.90,R,Air Solutions (Leeds) Ltd,No
Http://opendatacommunities.org/id/metropolitan-district-council/leeds,Leeds City Council,31/07/2016,Adult Social Care,Services For Adults Under 65 Mental/Dis,Third Party Payments,Residential,580,27-Jul-2016,1607-00527,0.00,6028.00,R,Aire House,No
Http://opendatacommunities.org/id/metropolitan-district-council/leeds,Leeds City Council as Accountable Body,31/07/2016,Social Services Pooled Budgets,Jcs For People With Learning Disabilitie,Third Party Payments,Residential,580,27-Jul-2016,1607-00528,0.00,3059.84,R,Aire House,No
Http://opendatacommunities.org/id/metropolitan-district-council/leeds,Leeds City Council,31/07/2016,City Development,Economic Development,Capital,Other Costs,7,27-Jul-2016,1607-00529,0.00,393404.06,C,Aire Valley Land Llp,No
Http://opendatacommunities.org/id/metropolitan-district-council/leeds,Leeds City Council,31/07/2016,Adult Social Care,Services For Older People - 65 And Over,Third Party Payments,Residential Care Dementia,571,27-Jul-2016,1607-00530,0.00,34115.53,R,Aire View Residential Home,No
Http://opendatacommunities.org/id/metropolitan-district-council/leeds,Leeds City Council,31/07/2016,Adult Social Care,Services For Older People - 65 And Over,Third Party Payments,Residential,580,27-Jul-2016,1607-00531,0.00,15873.57,R,Aire View Residential Home,No
Http://opendatacommunities.org/id/metropolitan-district-council/leeds,Leeds City Council,31/07/2016,Adult Social Care,Services For Older People - 65 And Over,Third Party Payments,Payments To Voluntary Organisations,561,01-Jul-2016,1607-00532,0.00,16560.00,R,Aireborough Voluntary Services,No
Http://opendatacommunities.org/id/metropolitan-district-council/leeds,Leeds City Council,31/07/2016,Adult Social Care,Services For Older People - 65 And Over,Third Party Payments,Residential Care Dementia,571,27-Jul-2016,1607-00533,0.00,2245.07,R,Airedale (Goldsborough),No
Http://opendatacommunities.org/id/metropolitan-district-council/leeds,Leeds City Council,31/07/2016,Adult Social Care,Services For Older People - 65 And Over,Third Party Payments,Residential,580,27-Jul-2016,1607-00534,0.00,21895.20,R,Airedale (Goldsborough),No
Http://opendatacommunities.org/id/metropolitan-district-council/leeds,Leeds City Council,31/07/2016,Adult Social Care,Services For Older People Under 65 P/Dis,Third Party Payments,Residential,580,27-Jul-2016,1607-00535,0.00,1999.68,R,Airedale (Goldsborough),No
Http://opendatacommunities.org/id/metropolitan-district-council/leeds,Leeds City Council,31/07/2016,Civic Enterprise Leeds,Commercial Services,Supplies and Services,Operational Furniture And Equipment,203,01-Jul-2016,1607-00536,0.00,4989.00,R,Airedale Catering Equipment Ltd,No
Http://opendatacommunities.org/id/metropolitan-district-council/leeds,Leeds City Council,31/07/2016,Environment & Housing,Leeds Building Services,Supplies and Services,Operational Materials,205,04-Jul-2016,1607-00537,0.00,2114.00,R,Airedale Catering Equipment Ltd,No
Http://opendatacommunities.org/id/metropolitan-district-council/leeds,Leeds City Council,31/07/2016,Environment & Housing,Leeds Building Services,Supplies and Services,Operational Materials,205,04-Jul-2016,1607-00538,0.00,872.75,R,Airedale Catering Equipment Ltd,No
Http://opendatacommunities.org/id/metropolitan-district-council/leeds,Leeds City Council,31/07/2016,Civic Enterprise Leeds,Commercial Services,Supplies and Services,Operational Furniture And Equipment,203,15-Jul-2016,1607-00539,0.00,4066.00,R,Airedale Catering Equipment Ltd,No
Http://opendatacommunities.org/id/metropolitan-district-council/leeds,Leeds City Council,31/07/2016,Environment & Housing,Leeds Building Services,Supplies and Services,Operational Materials,205,26-Jul-2016,1607-00540,0.00,-711.00,R,Airedale Catering Equipment Ltd,No
Http://opendatacommunities.org/id/metropolitan-district-council/leeds,Leeds City Council,31/07/2016,Civic Enterprise Leeds,Commercial Services,Supplies and Services,Operational Materials,205,26-Jul-2016,1607-00541,0.00,1724.00,R,Airedale Catering Equipment Ltd,No
Http://opendatacommunities.org/id/metropolitan-district-council/leeds,Leeds City Council,31/07/2016,Environment & Housing,Environmental Health,Supplies and Services,Other Hired And Contracted Services,265,08-Jul-2016,1607-00542,0.00,339.43,R,Aireworth Vets,No
Http://opendatacommunities.org/id/metropolitan-district-council/leeds,Leeds City Council,31/07/2016,City Development,Highways,Employees,Training & Development,70,08-Jul-2016,1607-00543,0.00,900.00,R,Airlie Business Solutions Ltd,No
Http://opendatacommunities.org/id/metropolitan-district-council/leeds,Leeds City Council,31/07/2016,Adult Social Care,Services For Adults Under 65 Mental/Dis,Third Party Payments,Services Provided By Other NHS Bodies,522,04-Jul-2016,1607-00544,0.00,175.00,R,Ait Mitra,No
Http://opendatacommunities.org/id/metropolitan-district-council/leeds,Leeds City Council,31/07/2016,Adult Social Care,Services For Adults Under 65 Mental/Dis,Third Party Payments,Services Provided By Other NHS Bodies,522,04-Jul-2016,1607-00545,0.00,175.00,R,Ait Mitra,No
Http://opendatacommunities.org/id/metropolitan-district-council/leeds,Leeds City Council,31/07/2016,Adult Social Care,Services For Adults Under 65 Mental/Dis,Third Party Payments,Services Provided By Other NHS Bodies,522,04-Jul-2016,1607-00546,0.00,175.00,R,Ait Mitra,No
Http://opendatacommunities.org/id/metropolitan-district-council/leeds,Leeds City Council,31/07/2016,Adult Social Care,Services For Adults Under 65 Mental/Dis,Third Party Payments,Services Provided By Other NHS Bodies,522,04-Jul-2016,1607-00547,0.00,175.00,R,Ait Mitra,No
Http://opendatacommunities.org/id/metropolitan-district-council/leeds,Leeds City Council,31/07/2016,Adult Social Care,Services For Adults Under 65 Mental/Dis,Third Party Payments,Services Provided By Other NHS Bodies,522,04-Jul-2016,1607-00548,0.00,175.00,R,Ait Mitra,No
Http://opendatacommunities.org/id/metropolitan-district-council/leeds,Leeds City Council,31/07/2016,Adult Social Care,Services For Adults Under 65 Mental/Dis,Third Party Payments,Services Provided By Other NHS Bodies,522,04-Jul-2016,1607-00549,0.00,175.00,R,Ait Mitra,No
Http://opendatacommunities.org/id/metropolitan-district-council/leeds,Leeds City Council,31/07/2016,Adult Social Care,Services For Adults Under 65 Mental/Dis,Third Party Payments,Services Provided By Other NHS Bodies,522,08-Jul-2016,1607-00550,0.00,239.50,R,Ait Mitra,No
Http://opendatacommunities.org/id/metropolitan-district-council/leeds,Leeds City Council,31/07/2016,Adult Social Care,Services For Adults Under 65 Mental/Dis,Third Party Payments,Services Provided By Other NHS Bodies,522,08-Jul-2016,1607-00551,0.00,175.00,R,Ait Mitra,No
Http://opendatacommunities.org/id/metropolitan-district-council/leeds,Leeds City Council,31/07/2016,Adult Social Care,Services For Adults Under 65 Mental/Dis,Third Party Payments,Services Provided By Other NHS Bodies,522,08-Jul-2016,1607-00552,0.00,175.00,R,Ait Mitra,No
Http://opendatacommunities.org/id/metropolitan-district-council/leeds,Leeds City Council,31/07/2016,Adult Social Care,Services For Adults Under 65 Mental/Dis,Third Party Payments,Services Provided By Other NHS Bodies,522,08-Jul-2016,1607-00553,0.00,175.00,R,Ait Mitra,No
Http://opendatacommunities.org/id/metropolitan-district-council/leeds,Leeds City Council,31/07/2016,Adult Social Care,Services For Adults Under 65 Mental/Dis,Third Party Payments,Services Provided By Other NHS Bodies,522,14-Jul-2016,1607-00554,0.00,175.00,R,Ait Mitra,No
Http://opendatacommunities.org/id/metropolitan-district-council/leeds,Leeds City Council,31/07/2016,Adult Social Care,Services For Adults Under 65 Mental/Dis,Third Party Payments,Services Provided By Other NHS Bodies,522,14-Jul-2016,1607-00555,0.00,175.00,R,Ait Mitra,No
Http://opendatacommunities.org/id/metropolitan-district-council/leeds,Leeds City Council,31/07/2016,Adult Social Care,Services For Adults Under 65 Mental/Dis,Third Party Payments,Services Provided By Other NHS Bodies,522,14-Jul-2016,1607-00556,0.00,175.00,R,Ait Mitra,No
Http://opendatacommunities.org/id/metropolitan-district-council/leeds,Leeds City Council,31/07/2016,Adult Social Care,Services For Adults Under 65 Mental/Dis,Third Party Payments,Services Provided By Other NHS Bodies,522,14-Jul-2016,1607-00557,0.00,175.00,R,Ait Mitra,No
Http://opendatacommunities.org/id/metropolitan-district-council/leeds,Leeds City Council,31/07/2016,Adult Social Care,Services For Adults Under 65 Mental/Dis,Third Party Payments,Services Provided By Other NHS Bodies,522,14-Jul-2016,1607-00558,0.00,175.00,R,Ait Mitra,No
Http://opendatacommunities.org/id/metropolitan-district-council/leeds,Leeds City Council,31/07/2016,Adult Social Care,Services For Adults Under 65 Mental/Dis,Third Party Payments,Services Provided By Other NHS Bodies,522,14-Jul-2016,1607-00559,0.00,175.00,R,Ait Mitra,No
Http://opendatacommunities.org/id/metropolitan-district-council/leeds,Leeds City Council,31/07/2016,Adult Social Care,Services For Adults Under 65 Mental/Dis,Third Party Payments,Services Provided By Other NHS Bodies,522,14-Jul-2016,1607-00560,0.00,175.00,R,Ait Mitra,No
Http://opendatacommunities.org/id/metropolitan-district-council/leeds,Leeds City Council,31/07/2016,Adult Social Care,Services For Adults Under 65 Mental/Dis,Third Party Payments,Services Provided By Other NHS Bodies,522,14-Jul-2016,1607-00561,0.00,175.00,R,Ait Mitra,No
Http://opendatacommunities.org/id/metropolitan-district-council/leeds,Leeds City Council,31/07/2016,Adult Social Care,Services For Adults Under 65 Mental/Dis,Third Party Payments,Services Provided By Other NHS Bodies,522,15-Jul-2016,1607-00562,0.00,175.00,R,Ait Mitra,No
Http://opendatacommunities.org/id/metropolitan-district-council/leeds,Leeds City Council,31/07/2016,Adult Social Care,Services For Adults Under 65 Mental/Dis,Third Party Payments,Services Provided By Other NHS Bodies,522,19-Jul-2016,1607-00563,0.00,175.00,R,Ait Mitra,No
Http://opendatacommunities.org/id/metropolitan-district-council/leeds,Leeds City Council,31/07/2016,Adult Social Care,Services For Adults Under 65 Mental/Dis,Third Party Payments,Services Provided By Other NHS Bodies,522,19-Jul-2016,1607-00564,0.00,175.00,R,Ait Mitra,No
Http://opendatacommunities.org/id/metropolitan-district-council/leeds,Leeds City Council,31/07/2016,Adult Social Care,Services For Adults Under 65 Mental/Dis,Third Party Payments,Services Provided By Other NHS Bodies,522,19-Jul-2016,1607-00565,0.00,175.00,R,Ait Mitra,No
Http://opendatacommunities.org/id/metropolitan-district-council/leeds,Leeds City Council,31/07/2016,Adult Social Care,Services For Adults Under 65 Mental/Dis,Third Party Payments,Services Provided By Other NHS Bodies,522,19-Jul-2016,1607-00566,0.00,175.00,R,Ait Mitra,No
Http://opendatacommunities.org/id/metropolitan-district-council/leeds,Leeds City Council,31/07/2016,Adult Social Care,Services For Adults Under 65 Mental/Dis,Third Party Payments,Services Provided By Other NHS Bodies,522,19-Jul-2016,1607-00567,0.00,175.00,R,Ait Mitra,No
Http://opendatacommunities.org/id/metropolitan-district-council/leeds,Leeds City Council,31/07/2016,Adult Social Care,Services For Adults Under 65 Mental/Dis,Third Party Payments,Services Provided By Other NHS Bodies,522,19-Jul-2016,1607-00568,0.00,175.00,R,Ait Mitra,No
Http://opendatacommunities.org/id/metropolitan-district-council/leeds,Leeds City Council,31/07/2016,Adult Social Care,Services For Adults Under 65 Mental/Dis,Third Party Payments,Services Provided By Other NHS Bodies,522,19-Jul-2016,1607-00569,0.00,175.00,R,Ait Mitra,No
Http://opendatacommunities.org/id/metropolitan-district-council/leeds,Leeds City Council,31/07/2016,Adult Social Care,Services For Adults Under 65 Mental/Dis,Third Party Payments,Services Provided By Other NHS Bodies,522,19-Jul-2016,1607-00570,0.00,175.00,R,Ait Mitra,No
Http://opendatacommunities.org/id/metropolitan-district-council/leeds,Leeds City Council,31/07/2016,Adult Social Care,Services For Adults Under 65 Mental/Dis,Third Party Payments,Services Provided By Other NHS Bodies,522,19-Jul-2016,1607-00571,0.00,175.00,R,Ait Mitra,No
Http://opendatacommunities.org/id/metropolitan-district-council/leeds,Leeds City Council,31/07/2016,Adult Social Care,Services For Adults Under 65 Mental/Dis,Third Party Payments,Services Provided By Other NHS Bodies,522,19-Jul-2016,1607-00572,0.00,175.00,R,Ait Mitra,No
Http://opendatacommunities.org/id/metropolitan-district-council/leeds,Leeds City Council,31/07/2016,Adult Social Care,Services For Adults Under 65 Mental/Dis,Third Party Payments,Services Provided By Other NHS Bodies,522,22-Jul-2016,1607-00573,0.00,175.00,R,Ait Mitra,No
Http://opendatacommunities.org/id/metropolitan-district-council/leeds,Leeds City Council,31/07/2016,Adult Social Care,Services For Adults Under 65 Mental/Dis,Third Party Payments,Services Provided By Other NHS Bodies,522,22-Jul-2016,1607-00574,0.00,175.00,R,Ait Mitra,No
Http://opendatacommunities.org/id/metropolitan-district-council/leeds,Leeds City Council,31/07/2016,Adult Social Care,Services For Adults Under 65 Mental/Dis,Third Party Payments,Services Provided By Other NHS Bodies,522,22-Jul-2016,1607-00575,0.00,175.00,R,Ait Mitra,No
Http://opendatacommunities.org/id/metropolitan-district-council/leeds,Leeds City Council,31/07/2016,Adult Social Care,Services For Adults Under 65 Mental/Dis,Third Party Payments,Services Provided By Other NHS Bodies,522,22-Jul-2016,1607-00576,0.00,175.00,R,Ait Mitra,No
Http://opendatacommunities.org/id/metropolitan-district-council/leeds,Leeds City Council,31/07/2016,Adult Social Care,Services For Adults Under 65 Mental/Dis,Third Party Payments,Services Provided By Other NHS Bodies,522,29-Jul-2016,1607-00577,0.00,175.00,R,Ait Mitra,No
Http://opendatacommunities.org/id/metropolitan-district-council/leeds,Leeds City Council,31/07/2016,Adult Social Care,Services For Adults Under 65 Mental/Dis,Third Party Payments,Services Provided By Other NHS Bodies,522,29-Jul-2016,1607-00578,0.00,261.00,R,Ait Mitra,No
Http://opendatacommunities.org/id/metropolitan-district-council/leeds,Leeds City Council,31/07/2016,Adult Social Care,Services For Adults Under 65 Mental/Dis,Third Party Payments,Services Provided By Other NHS Bodies,522,29-Jul-2016,1607-00579,0.00,184.00,R,Ait Mitra,No
Http://opendatacommunities.org/id/metropolitan-district-council/leeds,Leeds City Council as Accountable Body,31/07/2016,Social Services Pooled Budgets,Jcs For People With Learning Disabilitie,Third Party Payments,Residential,580,27-Jul-2016,1607-00580,0.00,6173.24,R,Aitch Care Homes,No
Http://opendatacommunities.org/id/metropolitan-district-council/leeds,Leeds City Council,31/07/2016,Adult Social Care,Services For Older People - 65 And Over,Third Party Payments,Home Care,568,22-Jul-2016,1607-00581,0.00,5179.26,R,Aj Social Care,No
Http://opendatacommunities.org/id/metropolitan-district-council/leeds,Leeds City Council,31/07/2016,Adult Social Care,Services For Older People Under 65 P/Dis,Third Party Payments,Home Care,568,22-Jul-2016,1607-00582,0.00,2097.65,R,Aj Social Care,No
Http://opendatacommunities.org/id/metropolitan-district-council/leeds,Leeds City Council,31/07/2016,Adult Social Care,Services For Older People - 65 And Over,Third Party Payments,Home Care,568,22-Jul-2016,1607-00583,0.00,13252.61,R,Aj Social Care,No
Http://opendatacommunities.org/id/metropolitan-district-council/leeds,Leeds City Council,31/07/2016,Adult Social Care,Services For Older People Under 65 P/Dis,Third Party Payments,Home Care,568,22-Jul-2016,1607-00584,0.00,4646.58,R,Aj Social Care,No
Http://opendatacommunities.org/id/metropolitan-district-council/leeds,Leeds City Council,31/07/2016,Adult Social Care,Services For Older People Under 65 P/Dis,Third Party Payments,Home Care,568,29-Jul-2016,1607-00585,0.00,21.61,R,Aj Social Care,No
Http://opendatacommunities.org/id/metropolitan-district-council/leeds,Leeds City Council,31/07/2016,Environment & Housing,Leeds Building Services,Supplies and Services,Operational Furniture And Equipment,203,06-Jul-2016,1607-00586,0.00,222.47,R,Ajm Fixings & Power Tools Ltd,No
Http://opendatacommunities.org/id/metropolitan-district-council/leeds,Leeds City Council,31/07/2016,Environment & Housing,Leeds Building Services,Supplies and Services,Operational Furniture And Equipment,203,08-Jul-2016,1607-00587,0.00,33.86,R,Ajm Fixings & Power Tools Ltd,No
Http://opendatacommunities.org/id/metropolitan-district-council/leeds,Leeds City Council,31/07/2016,Environment & Housing,Leeds Building Services,Supplies and Services,Operational Materials,205,08-Jul-2016,1607-00588,0.00,484.26,R,Ajm Fixings & Power Tools Ltd,No
Http://opendatacommunities.org/id/metropolitan-district-council/leeds,Leeds City Council,31/07/2016,Environment & Housing,Leeds Building Services,Supplies and Services,Operational Materials,205,08-Jul-2016,1607-00589,0.00,144.00,R,Ajm Fixings & Power Tools Ltd,No
Http://opendatacommunities.org/id/metropolitan-district-council/leeds,Leeds City Council,31/07/2016,Environment & Housing,Leeds Building Services,Supplies and Services,Operational Furniture And Equipment,203,15-Jul-2016,1607-00590,0.00,12538.00,R,Ajm Fixings & Power Tools Ltd,No
Http://opendatacommunities.org/id/metropolitan-district-council/leeds,Leeds City Council,31/07/2016,Environment & Housing,Leeds Building Services,Supplies and Services,Stores - Central And Other Depots,005,15-Jul-2016,1607-00591,0.00,428.10,R,Ajm Fixings & Power Tools Ltd,No
Http://opendatacommunities.org/id/metropolitan-district-council/leeds,Leeds City Council,31/07/2016,Environment & Housing,Leeds Building Services,Supplies and Services,Stores - Central And Other Depots,005,28-Jul-2016,1607-00592,0.00,78.50,R,Ajm Fixings & Power Tools Ltd,No
Http://opendatacommunities.org/id/metropolitan-district-council/leeds,Leeds City Council,31/07/2016,Adult Social Care,Services For Older People - 65 And Over,Third Party Payments,Nursing Home,570,27-Jul-2016,1607-00593,0.00,1261.04,R,Akari Care Ltd,No
Http://opendatacommunities.org/id/metropolitan-district-council/leeds,Leeds City Council,31/07/2016,Adult Social Care,Social Services Support Services,Employees,Training & Development,70,28-Jul-2016,1607-00594,0.00,7500.00,R,Akd Solutions Ltd,No
Http://opendatacommunities.org/id/metropolitan-district-council/leeds,Leeds City Council,31/07/2016,Adult Social Care,Services For Older People - 65 And Over,Third Party Payments,Payments To Voluntary Organisations,561,01-Jul-2016,1607-00595,0.00,3000.00,R,Al Khidmat Centre,No
Http://opendatacommunities.org/id/metropolitan-district-council/leeds,Leeds City Council,31/07/2016,Childrens Services,Safeguarding Targeted & Specialist  ,Transfer Payments,Leaving Care Grants,635,01-Jun-2016,1607-00596,0.00,30.95,R,Al Murad Diy Ltd,Yes
Http://opendatacommunities.org/id/metropolitan-district-council/leeds,Leeds City Council,31/07/2016,Childrens Services,Safeguarding Targeted & Specialist  ,Transfer Payments,Leaving Care Grants,635,02-Jun-2016,1607-00597,0.00,-7.99,R,Al Murad Diy Ltd,Yes
Http://opendatacommunities.org/id/metropolitan-district-council/leeds,Leeds City Council,31/07/2016,City Development,Planning & Sustainable Development,Support Services,Legal Disbursements,411,22-Jul-2016,1607-00598,0.00,1250.00,R,Alan Evans,No
Http://opendatacommunities.org/id/metropolitan-district-council/leeds,Leeds City Council,31/07/2016,Environment & Housing,Streetscene Environmental Services,Income,Penalties  Fines & Car Parking Charges,934,19-Jul-2016,1607-00599,0.00,10.00,R,REDACTED PERSONAL DATA,No
Http://opendatacommunities.org/id/metropolitan-district-council/leeds,Leeds City Council,31/07/2016,Childrens Services,Learning Skills & Universal,Supplies and Services,Bought In Professional Services,277,15-Jul-2016,1607-00600,0.00,500.00,R,Alan Pergusey,No
Http://opendatacommunities.org/id/metropolitan-district-council/leeds,Leeds City Council,31/07/2016,Civic Enterprise Leeds,Commercial Services,Transport,Vehicle Spares,345,15-Jul-2016,1607-00601,0.00,306.50,R,Albert Jagger Limited,No
Http://opendatacommunities.org/id/metropolitan-district-council/leeds,Leeds City Council as Accountable Body,31/07/2016,Social Services Pooled Budgets,Leeds Community Equip Store Pooled Budgt,Supplies and Services,Other Equipment,203,29-Jul-2016,1607-00602,0.00,135.00,R,Albion Electric Stores Ltd,No
Http://opendatacommunities.org/id/metropolitan-district-council/leeds,Leeds City Council,31/07/2016,Environment & Housing,Waste Management,Supplies and Services,Other Hired And Contracted Services,265,06-Jul-2016,1607-00603,0.00,300.00,R,Alcontrol Uk Ltd,No
Http://opendatacommunities.org/id/metropolitan-district-council/leeds,Leeds City Council,31/07/2016,City Development,Highways,Employees,Training & Development,70,27-Jul-2016,1607-00604,0.00,245.00,R,Aldercross,No
Http://opendatacommunities.org/id/metropolitan-district-council/leeds,Leeds City Council,31/07/2016,Childrens Services,Safeguarding Targeted & Specialist  ,Supplies and Services,Food & Drink,231,03-Jun-2016,1607-00605,0.00,1.41,R,Aldi,Yes
Http://opendatacommunities.org/id/metropolitan-district-council/leeds,Leeds City Council,31/07/2016,Childrens Services,Safeguarding Targeted & Specialist  ,Supplies and Services,Food & Drink,231,08-Jun-2016,1607-00606,0.00,21.54,R,Aldi,Yes
Http://opendatacommunities.org/id/metropolitan-district-council/leeds,Leeds City Council,31/07/2016,Childrens Services,Safeguarding Targeted & Specialist  ,Supplies and Services,Food & Drink,231,08-Jun-2016,1607-00607,0.00,1.50,R,Aldi,Yes
Http://opendatacommunities.org/id/metropolitan-district-council/leeds,Leeds City Council,31/07/2016,Childrens Services,Safeguarding Targeted & Specialist,Support Services,Legal Disbursements,411,21-Jul-2016,1607-00608,0.00,31.68,R,Alere Toxicology Plc,No
Http://opendatacommunities.org/id/metropolitan-district-council/leeds,Leeds City Council,31/07/2016,Childrens Services,Safeguarding Targeted & Specialist,Support Services,Legal Disbursements,411,21-Jul-2016,1607-00609,0.00,23.75,R,Alere Toxicology Plc,No
Http://opendatacommunities.org/id/metropolitan-district-council/leeds,Leeds City Council,31/07/2016,Childrens Services,Safeguarding Targeted & Specialist,Support Services,Legal Disbursements,411,28-Jul-2016,1607-00610,0.00,33.00,R,Alere Toxicology Plc,No
Http://opendatacommunities.org/id/metropolitan-district-council/leeds,Leeds City Council,31/07/2016,Childrens Services,Safeguarding Targeted & Specialist,Support Services,Legal Disbursements,411,29-Jul-2016,1607-00611,0.00,54.00,R,Alere Toxicology Plc,No
Http://opendatacommunities.org/id/metropolitan-district-council/leeds,Leeds City Council,31/07/2016,Adult Social Care,Services For Older People Under 65 P/Dis,Transfer Payments,Direct Payments,626,05-Jul-2016,1607-00612,0.00,3042.86,R,REDACTED PERSONAL DATA,No
Http://opendatacommunities.org/id/metropolitan-district-council/leeds,Leeds City Council,31/07/2016,Adult Social Care,Services For Older People Under 65 P/Dis,Transfer Payments,Direct Payments,626,28-Jul-2016,1607-00613,0.00,688.07,R,REDACTED PERSONAL DATA,No
Http://opendatacommunities.org/id/metropolitan-district-council/leeds,Leeds City Council,31/07/2016,Childrens Services,Learning Skills & Universal,Supplies and Services,Training Allowances,257,28-Jul-2016,1607-00614,0.00,196.10,R,REDACTED PERSONAL DATA,No
Http://opendatacommunities.org/id/metropolitan-district-council/leeds,Leeds City Council,31/07/2016,Childrens Services,Learning Skills & Universal,Supplies and Services,Training Allowances,257,28-Jul-2016,1607-00615,0.00,7.69,R,REDACTED PERSONAL DATA,No
Http://opendatacommunities.org/id/metropolitan-district-council/leeds,Leeds City Council,31/07/2016,Childrens Services,Safeguarding Targeted & Specialist,Support Services,Legal Disbursements,411,07-Jul-2016,1607-00616,0.00,393.00,R,Alex Taylor,No
Http://opendatacommunities.org/id/metropolitan-district-council/leeds,Leeds City Council,31/07/2016,Childrens Services,Safeguarding Targeted & Specialist,Support Services,Legal Disbursements,411,22-Jul-2016,1607-00617,0.00,1963.51,R,Alex Taylor,No
Http://opendatacommunities.org/id/metropolitan-district-council/leeds,Leeds City Council,31/07/2016,Adult Social Care,Services For Older People - 65 And Over,Third Party Payments,Residential Care Dementia,571,27-Jul-2016,1607-00618,0.00,7964.60,R,Alexander Residential Home,No
Http://opendatacommunities.org/id/metropolitan-district-council/leeds,Leeds City Council,31/07/2016,Adult Social Care,Services For Older People - 65 And Over,Third Party Payments,Residential,580,27-Jul-2016,1607-00619,0.00,13682.52,R,Alexander Residential Home,No
Http://opendatacommunities.org/id/metropolitan-district-council/leeds,Leeds City Council,31/07/2016,Citizens and Communities,Customer Access,Supplies and Services,Other Hired And Contracted Services,265,04-Jul-2016,1607-00620,0.00,654.50,R,Alexandra Costenco,No
Http://opendatacommunities.org/id/metropolitan-district-council/leeds,Leeds City Council,31/07/2016,Adult Social Care,Services For Older People - 65 And Over,Third Party Payments,Residential Care Dementia,571,27-Jul-2016,1607-00621,0.00,1511.28,R,Alexandra Court,No
Http://opendatacommunities.org/id/metropolitan-district-council/leeds,Leeds City Council,31/07/2016,Adult Social Care,Services For Older People - 65 And Over,Third Party Payments,Residential,580,27-Jul-2016,1607-00622,0.00,11586.80,R,Alexandra Court,No
Http://opendatacommunities.org/id/metropolitan-district-council/leeds,Leeds City Council,31/07/2016,Citizens and Communities,Customer Access,Supplies and Services,Other Hired And Contracted Services,265,04-Jul-2016,1607-00623,0.00,1131.25,R,Alexandra Hirst,No
Http://opendatacommunities.org/id/metropolitan-district-council/leeds,Leeds City Council,31/07/2016,Childrens Services,Learning Skills & Universal,Third Party Payments,Services Rendered By Other Organisations,511,11-Jul-2016,1607-00624,0.00,189.15,R,Alexandra Leigh,No
Http://opendatacommunities.org/id/metropolitan-district-council/leeds,Leeds City Council,31/07/2016,Childrens Services,Learning Skills & Universal,Third Party Payments,Services Rendered By Other Organisations,511,18-Jul-2016,1607-00625,0.00,103.35,R,Alexandra Leigh,No
Http://opendatacommunities.org/id/metropolitan-district-council/leeds,Leeds City Council,31/07/2016,Childrens Services,Learning Skills & Universal,Third Party Payments,Services Rendered By Other Organisations,511,18-Jul-2016,1607-00626,0.00,148.20,R,Alexandra Leigh,No
Http://opendatacommunities.org/id/metropolitan-district-council/leeds,Leeds City Council,31/07/2016,Environment & Housing,Strategic Housing Support,Supplies and Services,Other Hired And Contracted Services,265,25-Jul-2016,1607-00627,0.00,530.23,R,Alfa House,No
Http://opendatacommunities.org/id/metropolitan-district-council/leeds,Leeds City Council,31/07/2016,Environment & Housing,Leeds Building Services,Supplies and Services,Other Hired And Contracted Services,265,01-Jul-2016,1607-00628,0.00,605.76,R,Alfred Bagnall & Sons (Leeds) Ltd,No
Http://opendatacommunities.org/id/metropolitan-district-council/leeds,Leeds City Council,31/07/2016,Environment & Housing,Leeds Building Services,Supplies and Services,Other Hired And Contracted Services,265,29-Jul-2016,1607-00629,0.00,1000.00,R,Alfred Bagnall & Sons (Leeds) Ltd,No
Http://opendatacommunities.org/id/metropolitan-district-council/leeds,Leeds City Council,31/07/2016,Citizens and Communities,Communities,Supplies and Services,Other Hired And Contracted Services,265,29-Jul-2016,1607-00630,0.00,1200.00,R,Alfred Bagnall & Sons (Leeds) Ltd,No
Http://opendatacommunities.org/id/metropolitan-district-council/leeds,Leeds City Council,31/07/2016,Environment & Housing,Leeds Building Services,Supplies and Services,Other Hired And Contracted Services,265,29-Jul-2016,1607-00631,0.00,200.00,R,Alfred Bagnall & Sons (Leeds) Ltd,No
Http://opendatacommunities.org/id/metropolitan-district-council/leeds,Leeds City Council,31/07/2016,Environment & Housing,Leeds Building Services,Supplies and Services,Other Hired And Contracted Services,265,29-Jul-2016,1607-00632,0.00,2200.00,R,Alfred Bagnall & Sons (Leeds) Ltd,No
Http://opendatacommunities.org/id/metropolitan-district-council/leeds,Leeds City Council,31/07/2016,Childrens Services,Safeguarding Targeted & Specialist,Transfer Payments,Leaving Care Allowances,634,18-Jul-2016,1607-00633,0.00,420.00,R,REDACTED PERSONAL DATA,No
Http://opendatacommunities.org/id/metropolitan-district-council/leeds,Leeds City Council,31/07/2016,Childrens Services,Safeguarding Targeted & Specialist,Third Party Payments,Section 17,551,15-Jul-2016,1607-00634,0.00,56.90,R,REDACTED PERSONAL DATA,No
Http://opendatacommunities.org/id/metropolitan-district-council/leeds,Leeds City Council,31/07/2016,Childrens Services,Safeguarding Targeted & Specialist,Third Party Payments,Section 17,551,22-Jul-2016,1607-00635,0.00,56.90,R,REDACTED PERSONAL DATA,No
Http://opendatacommunities.org/id/metropolitan-district-council/leeds,Leeds City Council,31/07/2016,Childrens Services,Safeguarding Targeted & Specialist,Third Party Payments,Section 17,551,29-Jul-2016,1607-00636,0.00,56.90,R,REDACTED PERSONAL DATA,No
Http://opendatacommunities.org/id/metropolitan-district-council/leeds,Leeds City Council,31/07/2016,Childrens Services,Learning Skills & Universal,Third Party Payments,Services Rendered By Other Organisations,511,11-Jul-2016,1607-00637,0.00,189.15,R,Alison Brook,No
Http://opendatacommunities.org/id/metropolitan-district-council/leeds,Leeds City Council,31/07/2016,Childrens Services,Learning Skills & Universal,Third Party Payments,Services Rendered By Other Organisations,511,18-Jul-2016,1607-00638,0.00,619.40,R,Alison Brook,No
Http://opendatacommunities.org/id/metropolitan-district-council/leeds,Leeds City Council,31/07/2016,Environment & Housing,Streetscene Environmental Services,Income,Penalties  Fines & Car Parking Charges,934,19-Jul-2016,1607-00639,0.00,4.00,R,REDACTED PERSONAL DATA,No
Http://opendatacommunities.org/id/metropolitan-district-council/leeds,Leeds City Council,31/07/2016,Childrens Services,Partnership Development & Leadership,Transport,Private Hire,360,01-Jul-2016,1607-00640,0.00,1111.50,R,REDACTED PERSONAL DATA,No
Http://opendatacommunities.org/id/metropolitan-district-council/leeds,Leeds City Council,31/07/2016,City Development,Libraries  Arts & Heritage,Supplies and Services,Other Hired And Contracted Services,265,14-Jul-2016,1607-00641,0.00,100.00,R,Alison Smith,No
Http://opendatacommunities.org/id/metropolitan-district-council/leeds,Leeds City Council,31/07/2016,Civic Enterprise Leeds,Commercial Services,Supplies and Services,Other Hired And Contracted Services,265,14-Jul-2016,1607-00642,0.00,206.92,R,REDACTED PERSONAL DATA,No
Http://opendatacommunities.org/id/metropolitan-district-council/leeds,Leeds City Council,31/07/2016,Civic Enterprise Leeds,Commercial Services,Supplies and Services,Other Hired And Contracted Services,265,25-Jul-2016,1607-00643,0.00,74.50,R,REDACTED PERSONAL DATA,No
Http://opendatacommunities.org/id/metropolitan-district-council/leeds,Leeds City Council,31/07/2016,Environment & Housing,Leeds Building Services,Supplies and Services,Other Hired And Contracted Services,265,01-Jul-2016,1607-00644,0.00,250.00,R,All Clear Solutions Ltd,No
Http://opendatacommunities.org/id/metropolitan-district-council/leeds,Leeds City Council,31/07/2016,Environment & Housing,Leeds Building Services,Supplies and Services,Other Hired And Contracted Services,265,01-Jul-2016,1607-00645,0.00,195.00,R,All Clear Solutions Ltd,No
Http://opendatacommunities.org/id/metropolitan-district-council/leeds,Leeds City Council,31/07/2016,Environment & Housing,Leeds Building Services,Supplies and Services,Other Hired And Contracted Services,265,01-Jul-2016,1607-00646,0.00,250.00,R,All Clear Solutions Ltd,No
Http://opendatacommunities.org/id/metropolitan-district-council/leeds,Leeds City Council,31/07/2016,Environment & Housing,Leeds Building Services,Supplies and Services,Other Hired And Contracted Services,265,08-Jul-2016,1607-00647,0.00,195.00,R,All Clear Solutions Ltd,No
Http://opendatacommunities.org/id/metropolitan-district-council/leeds,Leeds City Council,31/07/2016,Environment & Housing,Leeds Building Services,Supplies and Services,Other Hired And Contracted Services,265,08-Jul-2016,1607-00648,0.00,195.00,R,All Clear Solutions Ltd,No
Http://opendatacommunities.org/id/metropolitan-district-council/leeds,Leeds City Council,31/07/2016,Environment & Housing,Leeds Building Services,Supplies and Services,Other Hired And Contracted Services,265,15-Jul-2016,1607-00649,0.00,195.00,R,All Clear Solutions Ltd,No
Http://opendatacommunities.org/id/metropolitan-district-council/leeds,Leeds City Council,31/07/2016,Environment & Housing,Leeds Building Services,Supplies and Services,Other Hired And Contracted Services,265,15-Jul-2016,1607-00650,0.00,195.00,R,All Clear Solutions Ltd,No
Http://opendatacommunities.org/id/metropolitan-district-council/leeds,Leeds City Council,31/07/2016,Environment & Housing,Leeds Building Services,Supplies and Services,Other Hired And Contracted Services,265,29-Jul-2016,1607-00651,0.00,195.00,R,All Clear Solutions Ltd,No
Http://opendatacommunities.org/id/metropolitan-district-council/leeds,Leeds City Council,31/07/2016,City Development,Recreation  ,Supplies and Services,Operational Furniture And Equipment,203,09-Jun-2016,1607-00652,0.00,80.00,R,All Safe And Secure,Yes
Http://opendatacommunities.org/id/metropolitan-district-council/leeds,Leeds City Council,31/07/2016,Childrens Services,Safeguarding Targeted & Specialist,Supplies and Services,Conference Meetings,253,22-Jul-2016,1607-00653,0.00,60.00,R,All Saints Parish Church,No
Http://opendatacommunities.org/id/metropolitan-district-council/leeds,Leeds City Council,31/07/2016,Childrens Services,Safeguarding Targeted & Specialist,Supplies and Services,Conference Meetings,253,22-Jul-2016,1607-00654,0.00,45.00,R,All Saints Parish Church,No
Http://opendatacommunities.org/id/metropolitan-district-council/leeds,Leeds City Council,31/07/2016,Childrens Services,Learning Skills & Universal,Third Party Payments,Services Rendered By Other Organisations,511,11-Jul-2016,1607-00655,0.00,698.40,R,All Stars Childcare,No
Http://opendatacommunities.org/id/metropolitan-district-council/leeds,Leeds City Council,31/07/2016,Childrens Services,Learning Skills & Universal,Third Party Payments,Services Rendered By Other Organisations,511,18-Jul-2016,1607-00656,0.00,206.70,R,All Stars Childcare,No
Http://opendatacommunities.org/id/metropolitan-district-council/leeds,Leeds City Council,31/07/2016,Childrens Services,Learning Skills & Universal,Third Party Payments,Services Rendered By Other Organisations,511,18-Jul-2016,1607-00657,0.00,3260.40,R,All Stars Childcare,No
Http://opendatacommunities.org/id/metropolitan-district-council/leeds,Leeds City Council,31/07/2016,Civic Enterprise Leeds,Facilities Management,Supplies and Services,Operational Furniture And Equipment,203,15-Jul-2016,1607-00658,0.00,45.00,R,Allansound Communications,No
Http://opendatacommunities.org/id/metropolitan-district-council/leeds,Leeds City Council as Accountable Body,31/07/2016,Social Services Pooled Budgets,Jcs For People With Learning Disabilitie,Third Party Payments,Sheltered Accommodation,569,27-Jul-2016,1607-00659,0.00,12777.88,R,Allerton Avenue,No
Http://opendatacommunities.org/id/metropolitan-district-council/leeds,Leeds City Council,31/07/2016,Central & Corporate,Finance,Supplies and Services,Bank Charges,263,01-Jul-2016,1607-00660,0.00,-122.72,R,Alliance & Leicester Commercial Bank,No
Http://opendatacommunities.org/id/metropolitan-district-council/leeds,Leeds City Council,31/07/2016,Strategic Landlord,Housing Management,Supplies and Services,Other Hired And Contracted Services,265,06-Jul-2016,1607-00661,0.00,285.77,R,Alliance & Leicester Commercial Bank,No
Http://opendatacommunities.org/id/metropolitan-district-council/leeds,Leeds City Council,31/07/2016,Central & Corporate,Finance,Supplies and Services,Bank Charges,263,06-Jul-2016,1607-00662,0.00,4.55,R,Alliance & Leicester Commercial Bank,No
Http://opendatacommunities.org/id/metropolitan-district-council/leeds,Leeds City Council,31/07/2016,Central & Corporate,Finance,Supplies and Services,Bank Charges,263,06-Jul-2016,1607-00663,0.00,333.91,R,Alliance & Leicester Commercial Bank,No
Http://opendatacommunities.org/id/metropolitan-district-council/leeds,Leeds City Council,31/07/2016,Central & Corporate,Finance,Supplies and Services,Bank Charges,263,06-Jul-2016,1607-00664,0.00,892.05,R,Alliance & Leicester Commercial Bank,No
Http://opendatacommunities.org/id/metropolitan-district-council/leeds,Leeds City Council,31/07/2016,Central & Corporate,Finance,Supplies and Services,Bank Charges,263,06-Jul-2016,1607-00665,0.00,100.24,R,Alliance & Leicester Commercial Bank,No
Http://opendatacommunities.org/id/metropolitan-district-council/leeds,Leeds City Council,31/07/2016,City Development,Highways,Supplies and Services,Other Hired And Contracted Services,265,01-Jul-2016,1607-00666,0.00,1176.50,R,Allied Exploration & Geotechnics Ltd,No
Http://opendatacommunities.org/id/metropolitan-district-council/leeds,Leeds City Council,31/07/2016,City Development,Highways,Supplies and Services,Other Hired And Contracted Services,265,01-Jul-2016,1607-00667,0.00,950.00,R,Allied Exploration & Geotechnics Ltd,No
Http://opendatacommunities.org/id/metropolitan-district-council/leeds,Leeds City Council,31/07/2016,City Development,Highways,Supplies and Services,Other Hired And Contracted Services,265,08-Jul-2016,1607-00668,0.00,7459.50,R,Allied Exploration & Geotechnics Ltd,No
Http://opendatacommunities.org/id/metropolitan-district-council/leeds,Leeds City Council,31/07/2016,City Development,Highways,Supplies and Services,Other Hired And Contracted Services,265,12-Jul-2016,1607-00669,0.00,181.50,R,Allied Exploration & Geotechnics Ltd,No
Http://opendatacommunities.org/id/metropolitan-district-council/leeds,Leeds City Council,31/07/2016,City Development,Highways,Supplies and Services,Other Hired And Contracted Services,265,12-Jul-2016,1607-00670,0.00,1682.38,R,Allied Exploration & Geotechnics Ltd,No
Http://opendatacommunities.org/id/metropolitan-district-council/leeds,Leeds City Council,31/07/2016,City Development,Highways,Supplies and Services,Other Hired And Contracted Services,265,13-Jul-2016,1607-00671,0.00,185.63,R,Allied Exploration & Geotechnics Ltd,No
Http://opendatacommunities.org/id/metropolitan-district-council/leeds,Leeds City Council,31/07/2016,City Development,Highways,Supplies and Services,Other Hired And Contracted Services,265,20-Jul-2016,1607-00672,0.00,821.52,R,Allied Exploration & Geotechnics Ltd,No
Http://opendatacommunities.org/id/metropolitan-district-council/leeds,Leeds City Council,31/07/2016,City Development,Highways,Supplies and Services,Other Hired And Contracted Services,265,20-Jul-2016,1607-00673,0.00,3183.60,R,Allied Exploration & Geotechnics Ltd,No
Http://opendatacommunities.org/id/metropolitan-district-council/leeds,Leeds City Council,31/07/2016,City Development,Highways,Supplies and Services,Other Hired And Contracted Services,265,29-Jul-2016,1607-00674,0.00,2667.07,R,Allied Exploration & Geotechnics Ltd,No
Http://opendatacommunities.org/id/metropolitan-district-council/leeds,Leeds City Council,31/07/2016,City Development,Highways,Supplies and Services,Other Hired And Contracted Services,265,29-Jul-2016,1607-00675,0.00,6333.30,R,Allied Exploration & Geotechnics Ltd,No
Http://opendatacommunities.org/id/metropolitan-district-council/leeds,Leeds City Council as Accountable Body,31/07/2016,Social Services Pooled Budgets,Jcs For People With Learning Disabilitie,Third Party Payments,Home Care,568,01-Jul-2016,1607-00676,0.00,806.24,R,Allied Healthcare,No
Http://opendatacommunities.org/id/metropolitan-district-council/leeds,Leeds City Council,31/07/2016,Adult Social Care,Services For Older People - 65 And Over,Third Party Payments,Home Care,568,01-Jul-2016,1607-00677,0.00,389.43,R,Allied Healthcare,No
Http://opendatacommunities.org/id/metropolitan-district-council/leeds,Leeds City Council,31/07/2016,Adult Social Care,Services For Older People - 65 And Over,Third Party Payments,Home Care,568,01-Jul-2016,1607-00678,0.00,364.56,R,Allied Healthcare,No
Http://opendatacommunities.org/id/metropolitan-district-council/leeds,Leeds City Council,31/07/2016,Adult Social Care,Services For Older People Under 65 P/Dis,Third Party Payments,Home Care,568,01-Jul-2016,1607-00679,0.00,129.16,R,Allied Healthcare,No
Http://opendatacommunities.org/id/metropolitan-district-council/leeds,Leeds City Council,31/07/2016,Adult Social Care,Services For Older People - 65 And Over,Third Party Payments,Home Care,568,01-Jul-2016,1607-00680,0.00,2303.37,R,Allied Healthcare,No
Http://opendatacommunities.org/id/metropolitan-district-council/leeds,Leeds City Council as Accountable Body,31/07/2016,Social Services Pooled Budgets,Jcs For People With Learning Disabilitie,Third Party Payments,Home Care,568,05-Jul-2016,1607-00681,0.00,1073.21,R,Allied Healthcare,No
Http://opendatacommunities.org/id/metropolitan-district-council/leeds,Leeds City Council as Accountable Body,31/07/2016,Social Services Pooled Budgets,Jcs For People With Learning Disabilitie,Third Party Payments,Home Care,568,06-Jul-2016,1607-00682,0.00,98.20,R,Allied Healthcare,No
Http://opendatacommunities.org/id/metropolitan-district-council/leeds,Leeds City Council as Accountable Body,31/07/2016,Social Services Pooled Budgets,Jcs For People With Learning Disabilitie,Third Party Payments,Home Care,568,06-Jul-2016,1607-00683,0.00,564.75,R,Allied Healthcare,No
Http://opendatacommunities.org/id/metropolitan-district-council/leeds,Leeds City Council as Accountable Body,31/07/2016,Social Services Pooled Budgets,Jcs For People With Learning Disabilitie,Third Party Payments,Home Care,568,06-Jul-2016,1607-00684,0.00,1078.76,R,Allied Healthcare,No
Http://opendatacommunities.org/id/metropolitan-district-council/leeds,Leeds City Council as Accountable Body,31/07/2016,Social Services Pooled Budgets,Jcs For People With Learning Disabilitie,Third Party Payments,Home Care,568,08-Jul-2016,1607-00685,0.00,15339.76,R,Allied Healthcare,No
Http://opendatacommunities.org/id/metropolitan-district-council/leeds,Leeds City Council,31/07/2016,Adult Social Care,Services For Older People Under 65 P/Dis,Third Party Payments,Home Care,568,15-Jul-2016,1607-00686,0.00,81.60,R,Allied Healthcare,No
Http://opendatacommunities.org/id/metropolitan-district-council/leeds,Leeds City Council,31/07/2016,Adult Social Care,Other Generic Services,Third Party Payments,Home Care,568,19-Jul-2016,1607-00687,0.00,-101.20,R,Allied Healthcare,No
Http://opendatacommunities.org/id/metropolitan-district-council/leeds,Leeds City Council as Accountable Body,31/07/2016,Social Services Pooled Budgets,Jcs For People With Learning Disabilitie,Third Party Payments,Home Care,568,19-Jul-2016,1607-00688,0.00,1106.37,R,Allied Healthcare,No
Http://opendatacommunities.org/id/metropolitan-district-council/leeds,Leeds City Council as Accountable Body,31/07/2016,Social Services Pooled Budgets,Jcs For People With Learning Disabilitie,Third Party Payments,Home Care,568,19-Jul-2016,1607-00689,0.00,15068.86,R,Allied Healthcare,No
Http://opendatacommunities.org/id/metropolitan-district-council/leeds,Leeds City Council,31/07/2016,Childrens Services,Safeguarding Targeted & Specialist,Third Party Payments,Services Rendered By Voluntary Sector,505,20-Jul-2016,1607-00690,0.00,662.63,R,Allied Healthcare,No
Http://opendatacommunities.org/id/metropolitan-district-council/leeds,Leeds City Council as Accountable Body,31/07/2016,Social Services Pooled Budgets,Jcs For People With Learning Disabilitie,Third Party Payments,Home Care,568,21-Jul-2016,1607-00691,0.00,564.75,R,Allied Healthcare,No
Http://opendatacommunities.org/id/metropolitan-district-council/leeds,Leeds City Council as Accountable Body,31/07/2016,Social Services Pooled Budgets,Jcs For People With Learning Disabilitie,Third Party Payments,Home Care,568,21-Jul-2016,1607-00692,0.00,564.75,R,Allied Healthcare,No
Http://opendatacommunities.org/id/metropolitan-district-council/leeds,Leeds City Council as Accountable Body,31/07/2016,Social Services Pooled Budgets,Jcs For People With Learning Disabilitie,Third Party Payments,Home Care,568,21-Jul-2016,1607-00693,0.00,508.28,R,Allied Healthcare,No
Http://opendatacommunities.org/id/metropolitan-district-council/leeds,Leeds City Council as Accountable Body,31/07/2016,Social Services Pooled Budgets,Jcs For People With Learning Disabilitie,Third Party Payments,Home Care,568,21-Jul-2016,1607-00694,0.00,564.75,R,Allied Healthcare,No
Http://opendatacommunities.org/id/metropolitan-district-council/leeds,Leeds City Council as Accountable Body,31/07/2016,Social Services Pooled Budgets,Jcs For People With Learning Disabilitie,Third Party Payments,Home Care,568,21-Jul-2016,1607-00695,0.00,15399.66,R,Allied Healthcare,No
Http://opendatacommunities.org/id/metropolitan-district-council/leeds,Leeds City Council,31/07/2016,Adult Social Care,Other Generic Services,Third Party Payments,Home Care,568,26-Jul-2016,1607-00696,0.00,18716.77,R,Allied Healthcare,No
Http://opendatacommunities.org/id/metropolitan-district-council/leeds,Leeds City Council as Accountable Body,31/07/2016,Social Services Pooled Budgets,Jcs For People With Learning Disabilitie,Third Party Payments,Home Care,568,26-Jul-2016,1607-00697,0.00,-395.49,R,Allied Healthcare,No
Http://opendatacommunities.org/id/metropolitan-district-council/leeds,Leeds City Council,31/07/2016,Childrens Services,Safeguarding Targeted & Specialist,Third Party Payments,Services Rendered By Voluntary Sector,505,27-Jul-2016,1607-00698,0.00,-363.86,R,Allied Healthcare,No
Http://opendatacommunities.org/id/metropolitan-district-council/leeds,Leeds City Council,31/07/2016,Childrens Services,Safeguarding Targeted & Specialist,Third Party Payments,Services Rendered By Voluntary Sector,505,27-Jul-2016,1607-00699,0.00,-478.45,R,Allied Healthcare,No
Http://opendatacommunities.org/id/metropolitan-district-council/leeds,Leeds City Council,31/07/2016,Childrens Services,Safeguarding Targeted & Specialist,Third Party Payments,Services Rendered By Voluntary Sector,505,27-Jul-2016,1607-00700,0.00,-862.04,R,Allied Healthcare,No
Http://opendatacommunities.org/id/metropolitan-district-council/leeds,Leeds City Council,31/07/2016,Childrens Services,Safeguarding Targeted & Specialist,Third Party Payments,Services Rendered By Voluntary Sector,505,27-Jul-2016,1607-00701,0.00,-501.70,R,Allied Healthcare,No
Http://opendatacommunities.org/id/metropolitan-district-council/leeds,Leeds City Council,31/07/2016,Childrens Services,Safeguarding Targeted & Specialist,Third Party Payments,Services Rendered By Voluntary Sector,505,27-Jul-2016,1607-00702,0.00,-617.20,R,Allied Healthcare,No
Http://opendatacommunities.org/id/metropolitan-district-council/leeds,Leeds City Council,31/07/2016,Childrens Services,Safeguarding Targeted & Specialist,Third Party Payments,Services Rendered By Voluntary Sector,505,27-Jul-2016,1607-00703,0.00,-380.00,R,Allied Healthcare,No
Http://opendatacommunities.org/id/metropolitan-district-council/leeds,Leeds City Council,31/07/2016,Childrens Services,Safeguarding Targeted & Specialist,Third Party Payments,Services Rendered By Voluntary Sector,505,27-Jul-2016,1607-00704,0.00,-807.20,R,Allied Healthcare,No
Http://opendatacommunities.org/id/metropolitan-district-council/leeds,Leeds City Council,31/07/2016,Childrens Services,Safeguarding Targeted & Specialist,Third Party Payments,Services Rendered By Voluntary Sector,505,27-Jul-2016,1607-00705,0.00,-868.05,R,Allied Healthcare,No
Http://opendatacommunities.org/id/metropolitan-district-council/leeds,Leeds City Council,31/07/2016,Childrens Services,Safeguarding Targeted & Specialist,Third Party Payments,Services Rendered By Voluntary Sector,505,27-Jul-2016,1607-00706,0.00,-380.00,R,Allied Healthcare,No
Http://opendatacommunities.org/id/metropolitan-district-council/leeds,Leeds City Council,31/07/2016,Adult Social Care,Services For Older People - 65 And Over,Third Party Payments,Home Care,568,27-Jul-2016,1607-00707,0.00,18268.37,R,Allied Healthcare,No
Http://opendatacommunities.org/id/metropolitan-district-council/leeds,Leeds City Council,31/07/2016,Adult Social Care,Services For Older People Under 65 P/Dis,Third Party Payments,Home Care,568,27-Jul-2016,1607-00708,0.00,2929.50,R,Allied Healthcare,No
Http://opendatacommunities.org/id/metropolitan-district-council/leeds,Leeds City Council,31/07/2016,Adult Social Care,Services For Older People - 65 And Over,Third Party Payments,Home Care,568,27-Jul-2016,1607-00709,0.00,2167.83,R,Allied Healthcare,No
Http://opendatacommunities.org/id/metropolitan-district-council/leeds,Leeds City Council,31/07/2016,Adult Social Care,Services For Older People Under 65 P/Dis,Third Party Payments,Home Care,568,27-Jul-2016,1607-00710,0.00,575.22,R,Allied Healthcare,No
Http://opendatacommunities.org/id/metropolitan-district-council/leeds,Leeds City Council,31/07/2016,Adult Social Care,Services For Older People - 65 And Over,Third Party Payments,Home Care,568,28-Jul-2016,1607-00711,0.00,9467.23,R,Allied Healthcare,No
Http://opendatacommunities.org/id/metropolitan-district-council/leeds,Leeds City Council,31/07/2016,Adult Social Care,Services For Older People Under 65 P/Dis,Third Party Payments,Home Care,568,28-Jul-2016,1607-00712,0.00,2617.28,R,Allied Healthcare,No
Http://opendatacommunities.org/id/metropolitan-district-council/leeds,Leeds City Council as Accountable Body,31/07/2016,Social Services Pooled Budgets,Jcs For People With Learning Disabilitie,Third Party Payments,Home Care,568,28-Jul-2016,1607-00713,0.00,78.56,R,Allied Healthcare,No
Http://opendatacommunities.org/id/metropolitan-district-council/leeds,Leeds City Council as Accountable Body,31/07/2016,Social Services Pooled Budgets,Jcs For People With Learning Disabilitie,Third Party Payments,Home Care,568,28-Jul-2016,1607-00714,0.00,75.30,R,Allied Healthcare,No
Http://opendatacommunities.org/id/metropolitan-district-council/leeds,Leeds City Council as Accountable Body,31/07/2016,Social Services Pooled Budgets,Jcs For People With Learning Disabilitie,Third Party Payments,Home Care,568,29-Jul-2016,1607-00715,0.00,98.20,R,Allied Healthcare,No
Http://opendatacommunities.org/id/metropolitan-district-council/leeds,Leeds City Council,31/07/2016,Adult Social Care,Other Generic Services,Third Party Payments,Home Care,568,29-Jul-2016,1607-00716,0.00,50.60,R,Allied Healthcare,No
Http://opendatacommunities.org/id/metropolitan-district-council/leeds,Leeds City Council as Accountable Body,31/07/2016,Social Services Pooled Budgets,Jcs For People With Learning Disabilitie,Third Party Payments,Home Care,568,29-Jul-2016,1607-00717,0.00,426.72,R,Allied Healthcare,No
Http://opendatacommunities.org/id/metropolitan-district-council/leeds,Leeds City Council as Accountable Body,31/07/2016,Social Services Pooled Budgets,Jcs For People With Learning Disabilitie,Third Party Payments,Home Care,568,29-Jul-2016,1607-00718,0.00,99.75,R,Allied Healthcare,No
Http://opendatacommunities.org/id/metropolitan-district-council/leeds,Leeds City Council,31/07/2016,Adult Social Care,Services For Older People - 65 And Over,Third Party Payments,Home Care,568,29-Jul-2016,1607-00719,0.00,15532.72,R,Allied Healthcare,No
Http://opendatacommunities.org/id/metropolitan-district-council/leeds,Leeds City Council,31/07/2016,Adult Social Care,Services For Older People Under 65 P/Dis,Third Party Payments,Home Care,568,29-Jul-2016,1607-00720,0.00,9131.19,R,Allied Healthcare,No
Http://opendatacommunities.org/id/metropolitan-district-council/leeds,Leeds City Council,31/07/2016,Adult Social Care,Services For Older People - 65 And Over,Third Party Payments,Home Care,568,29-Jul-2016,1607-00721,0.00,751.77,R,Allied Healthcare,No
Http://opendatacommunities.org/id/metropolitan-district-council/leeds,Leeds City Council,31/07/2016,Adult Social Care,Services For Older People - 65 And Over,Third Party Payments,Home Care,568,29-Jul-2016,1607-00722,0.00,309.22,R,Allied Healthcare,No
Http://opendatacommunities.org/id/metropolitan-district-council/leeds,Leeds City Council,31/07/2016,Adult Social Care,Services For Older People Under 65 P/Dis,Third Party Payments,Home Care,568,29-Jul-2016,1607-00723,0.00,55.34,R,Allied Healthcare,No
Http://opendatacommunities.org/id/metropolitan-district-council/leeds,Leeds City Council,31/07/2016,Adult Social Care,Services For Older People - 65 And Over,Third Party Payments,Home Care,568,29-Jul-2016,1607-00724,0.00,52.08,R,Allied Healthcare,No
Http://opendatacommunities.org/id/metropolitan-district-council/leeds,Leeds City Council,31/07/2016,Adult Social Care,Services For Older People - 65 And Over,Third Party Payments,Home Care,568,29-Jul-2016,1607-00725,0.00,2895.91,R,Allied Healthcare,No
Http://opendatacommunities.org/id/metropolitan-district-council/leeds,Leeds City Council,31/07/2016,Adult Social Care,Services For Older People Under 65 P/Dis,Third Party Payments,Home Care,568,29-Jul-2016,1607-00726,0.00,602.18,R,Allied Healthcare,No
Http://opendatacommunities.org/id/metropolitan-district-council/leeds,Leeds City Council,31/07/2016,Adult Social Care,Services For Older People - 65 And Over,Third Party Payments,Home Care,568,29-Jul-2016,1607-00727,0.00,1779.44,R,Allied Healthcare,No
Http://opendatacommunities.org/id/metropolitan-district-council/leeds,Leeds City Council,31/07/2016,Adult Social Care,Services For Older People Under 65 P/Dis,Third Party Payments,Home Care,568,29-Jul-2016,1607-00728,0.00,2921.95,R,Allied Healthcare,No
Http://opendatacommunities.org/id/metropolitan-district-council/leeds,Leeds City Council,31/07/2016,Public Health,Public Health,Third Party Payments,Public Health Commissioned Services,526,13-Jul-2016,1607-00729,0.00,61.80,R,Allied Pharmacy Ltd,No
Http://opendatacommunities.org/id/metropolitan-district-council/leeds,Leeds City Council,31/07/2016,Public Health,Public Health,Third Party Payments,Public Health Commissioned Services,526,15-Jul-2016,1607-00730,0.00,108.88,R,Allied Pharmacy Ltd,No
Http://opendatacommunities.org/id/metropolitan-district-council/leeds,Leeds City Council,31/07/2016,Adult Social Care,Assessment And Care Management  ,Supplies and Services,Bought In Professional Services,277,22-Jun-2016,1607-00731,0.00,166.78,R,Allpay Moto (Callpay/ivr,Yes
Http://opendatacommunities.org/id/metropolitan-district-council/leeds,Leeds City Council,31/07/2016,Central & Corporate,Democratic Services,Transport,Fuel (Non LCC Supplies),321,07-Jul-2016,1607-00732,0.00,285.83,R,Allstar Business Solutions Ltd,No
Http://opendatacommunities.org/id/metropolitan-district-council/leeds,Leeds City Council,31/07/2016,Environment & Housing,Parks and Countryside,Transport,Fuel (Non LCC Supplies),321,07-Jul-2016,1607-00733,0.00,80.32,R,Allstar Business Solutions Ltd,No
Http://opendatacommunities.org/id/metropolitan-district-council/leeds,Leeds City Council,31/07/2016,City Development,Highways,Transport,Fuel (Non LCC Supplies),321,07-Jul-2016,1607-00734,0.00,369.50,R,Allstar Business Solutions Ltd,No
Http://opendatacommunities.org/id/metropolitan-district-council/leeds,Leeds City Council,31/07/2016,Environment & Housing,Waste Management,Transport,Fuel (Non LCC Supplies),321,07-Jul-2016,1607-00735,0.00,1.20,R,Allstar Business Solutions Ltd,No
Http://opendatacommunities.org/id/metropolitan-district-council/leeds,Leeds City Council,31/07/2016,Environment & Housing,Leeds Building Services,Transport,Fuel (Non LCC Supplies),321,13-Jul-2016,1607-00736,0.00,42.28,R,Allstar Business Solutions Ltd,No
Http://opendatacommunities.org/id/metropolitan-district-council/leeds,Leeds City Council,31/07/2016,Environment & Housing,Leeds Building Services,Transport,Fuel (Non LCC Supplies),321,28-Jul-2016,1607-00737,0.00,25.53,R,Allstar Business Solutions Ltd,No
Http://opendatacommunities.org/id/metropolitan-district-council/leeds,Leeds City Council,31/07/2016,City Development,Libraries  Arts & Heritage,Supplies and Services,Other Hired And Contracted Services,265,18-Jul-2016,1607-00738,0.00,130.00,R,Allyson Mcdermott Limited,No
Http://opendatacommunities.org/id/metropolitan-district-council/leeds,Leeds City Council,31/07/2016,Environment & Housing,SP Contracts & SECC,Third Party Payments,Supporting Ppl - Block Gross Chargeable,514,18-Jul-2016,1607-00739,0.00,59.54,R,Alpha (Rsl) Limited,No
Http://opendatacommunities.org/id/metropolitan-district-council/leeds,Leeds City Council,31/07/2016,Childrens Services,Safeguarding Targeted & Specialist,Support Services,Legal Disbursements,411,01-Jul-2016,1607-00740,0.00,340.00,R,Alpha Biolaboratories Limited,No
Http://opendatacommunities.org/id/metropolitan-district-council/leeds,Leeds City Council,31/07/2016,Childrens Services,Safeguarding Targeted & Specialist,Support Services,Legal Disbursements,411,01-Jul-2016,1607-00741,0.00,440.00,R,Alpha Biolaboratories Limited,No
Http://opendatacommunities.org/id/metropolitan-district-council/leeds,Leeds City Council,31/07/2016,Childrens Services,Safeguarding Targeted & Specialist,Support Services,Legal Disbursements,411,08-Jul-2016,1607-00742,0.00,545.00,R,Alpha Biolaboratories Limited,No
Http://opendatacommunities.org/id/metropolitan-district-council/leeds,Leeds City Council,31/07/2016,Childrens Services,Safeguarding Targeted & Specialist,Support Services,Legal Disbursements,411,21-Jul-2016,1607-00743,0.00,113.34,R,Alpha Biolaboratories Limited,No
Http://opendatacommunities.org/id/metropolitan-district-council/leeds,Leeds City Council,31/07/2016,Childrens Services,Safeguarding Targeted & Specialist,Support Services,Legal Disbursements,411,21-Jul-2016,1607-00744,0.00,205.00,R,Alpha Biolaboratories Limited,No
Http://opendatacommunities.org/id/metropolitan-district-council/leeds,Leeds City Council,31/07/2016,Childrens Services,Safeguarding Targeted & Specialist,Support Services,Legal Disbursements,411,22-Jul-2016,1607-00745,0.00,78.13,R,Alpha Biolaboratories Limited,No
Http://opendatacommunities.org/id/metropolitan-district-council/leeds,Leeds City Council,31/07/2016,Childrens Services,Safeguarding Targeted & Specialist,Third Party Payments,Section 17,551,22-Jul-2016,1607-00746,0.00,390.00,R,Alpha Biolaboratories Limited,No
